Workbook

Sheet AEG Input File
E1: Winter Peak Reduction Therms | F1: Winter Peak Reduction Therms | G1: Winter Peak Reduction Therms | H1: Winter Peak Reduction Therms | I1: Winter Peak Reduction Therms | J1: Winter Peak Reduction Therms | K1: Winter Peak Reduction Therms | L1: Winter Peak Reduction Therms | M1: Winter Peak Reduction Therms | N1: Winter Peak Reduction Therms | O1: Winter Peak Reduction Therms | P1: Winter Peak Reduction Therms | Q1: Winter Peak Reduction Therms | R1: Winter Peak Reduction Therms | S1: Winter Peak Reduction Therms | T1: Winter Peak Reduction Therms | U1: Winter Peak Reduction Therms | V1: Winter Peak Reduction Therms | W1: Winter Peak Reduction Therms | X1: Winter Peak Reduction Therms | Y1: Winter Peak Reduction Therms | Z1: Winter Peak Reduction Therms | AA1: Winter Peak Reduction Therms | AB1: Winter Peak Reduction Therms | AC1: Capital Expense Costs | AD1: Capital Expense Costs | AE1: Capital Expense Costs | AF1: Capital Expense Costs | AG1: Capital Expense Costs | AH1: Capital Expense Costs | AI1: Capital Expense Costs | AJ1: Capital Expense Costs | AK1: Capital Expense Costs | AL1: Capital Expense Costs | AM1: Capital Expense Costs | AN1: Capital Expense Costs | AO1: Capital Expense Costs | AP1: Capital Expense Costs | AQ1: Capital Expense Costs | AR1: Capital Expense Costs | AS1: Capital Expense Costs | AT1: Capital Expense Costs | AU1: Capital Expense Costs | AV1: Capital Expense Costs | AW1: Capital Expense Costs | AX1: Capital Expense Costs | AY1: Capital Expense Costs | AZ1: Capital Expense Costs | BA1: O&M Costs | BB1: O&M Costs | BC1: O&M Costs | BD1: O&M Costs | BE1: O&M Costs | BF1: O&M Costs | BG1: O&M Costs | BH1: O&M Costs | BI1: O&M Costs | BJ1: O&M Costs | BK1: O&M Costs | BL1: O&M Costs | BM1: O&M Costs | BN1: O&M Costs | BO1: O&M Costs | BP1: O&M Costs | BQ1: O&M Costs | BR1: O&M Costs | BS1: O&M Costs | BT1: O&M Costs | BU1: O&M Costs | BV1: O&M Costs | BW1: O&M Costs | BX1: O&M Costs
B2: Row Labels | C2: Option | D2: Start Year | E2: 2023 | F2: 2024 | G2: 2025 | H2: 2026 | I2: 2027 | J2: 2028 | K2: 2029 | L2: 2030 | M2: 2031 | N2: 2032 | O2: 2033 | P2: 2034 | Q2: 2035 | R2: 2036 | S2: 2037 | T2: 2038 | U2: 2039 | V2: 2040 | W2: 2041 | X2: 2042 | Y2: 2043 | Z2: 2044 | AA2: 2045 | AB2: 2046 | AC2: 2023 | AD2: 2024 | AE2: 2025 | AF2: 2026 | AG2: 2027 | AH2: 2028 | AI2: 2029 | AJ2: 2030 | AK2: 2031 | AL2: 2032 | AM2: 2033 | AN2: 2034 | AO2: 2035 | AP2: 2036 | AQ2: 2037 | AR2: 2038 | AS2: 2039 | AT2: 2040 | AU2: 2041 | AV2: 2042 | AW2: 2043 | AX2: 2044 | AY2: 2045 | AZ2: 2046 | BA2: 2023 | BB2: 2024 | BC2: 2025 | BD2: 2026 | BE2: 2027 | BF2: 2028 | BG2: 2029 | BH2: 2030 | BI2: 2031 | BJ2: 2032 | BK2: 2033 | BL2: 2034 | BM2: 2035 | BN2: 2036 | BO2: 2037 | BP2: 2038 | BQ2: 2039 | BR2: 2040 | BS2: 2041 | BT2: 2042 | BU2: 2043 | BV2: 2044 | BW2: 2045 | BX2: 2046
A3: 2 | B3: Stand Alone | C3: Behavioral | D3: 2023 | E3: 0 | F3: 0 | G3: 0 | H3: 0 | I3: 0 | J3: 0 | K3: 0 | L3: 0 | M3: 0 | N3: 0 | O3: 0 | P3: 0 | Q3: 0 | R3: 0 | S3: 0 | T3: 0 | U3: 0 | V3: 0 | W3: 0 | X3: 0 | Y3: 0 | Z3: 0 | AA3: 0 | AB3: 0 | AC3: 0 | AD3: 0 | AE3: 0 | AF3: 0 | AG3: 0 | AH3: 0 | AI3: 0 | AJ3: 0 | AK3: 0 | AL3: 0 | AM3: 0 | AN3: 0 | AO3: 0 | AP3: 0 | AQ3: 0 | AR3: 0 | AS3: 0 | AT3: 0 | AU3: 0 | AV3: 0 | AW3: 0 | AX3: 0 | AY3: 0 | AZ3: 0 | BA3: 0 | BB3: 0 | BC3: 0 | BD3: 0 | BE3: 0 | BF3: 0 | BG3: 0 | BH3: 0 | BI3: 0 | BJ3: 0 | BK3: 0 | BL3: 0 | BM3: 0 | BN3: 0 | BO3: 0 | BP3: 0 | BQ3: 0 | BR3: 0 | BS3: 0 | BT3: 0 | BU3: 0 | BV3: 0 | BW3: 0 | BX3: 0
A4: 3 | B4: Stand Alone | C4: DLC Water Heating | D4: 2023 | AC4: 0 | AD4: 0 | AE4: 0 | AF4: 0 | AG4: 0 | AH4: 0 | AI4: 0 | AJ4: 0 | AK4: 0 | AL4: 0 | AM4: 0 | AN4: 0 | AO4: 0 | AP4: 0 | AQ4: 0 | AR4: 0 | AS4: 0 | AT4: 0 | AU4: 0 | AV4: 0 | AW4: 0 | AX4: 0 | AY4: 0 | AZ4: 0 | BA4: 0 | BB4: 0 | BC4: 0 | BD4: 0 | BE4: 0 | BF4: 0 | BG4: 0 | BH4: 0 | BI4: 0 | BJ4: 0 | BK4: 0 | BL4: 0 | BM4: 0 | BN4: 0 | BO4: 0 | BP4: 0 | BQ4: 0 | BR4: 0 | BS4: 0 | BT4: 0 | BU4: 0 | BV4: 0 | BW4: 0 | BX4: 0
A5: 4 | B5: Stand Alone | C5: DLC Smart Thermostats - BYOT | D5: 2023 | E5: 0 | F5: 6.023610877 | G5: 18.23873612 | H5: 42.98193839 | I5: 55.73686227 | J5: 62.46155272 | K5: 62.99792783 | L5: 63.53901408 | M5: 64.08485366 | N5: 64.63548912 | O5: 65.19096342 | P5: 65.7513199 | Q5: 66.3166023 | R5: 66.88685476 | S5: 67.46212179 | T5: 68.04244835 | U5: 68.62787979 | V5: 69.21846187 | W5: 69.81424077 | X5: 70.41526308 | Y5: 71.02157584 | Z5: 71.63322649 | AA5: 72.25026292 | AB5: 72.87273345 | AC5: 0 | AD5: 36648.75774 | AE5: 72497.7408 | AF5: 144805.9681 | AG5: 77462.14204 | AH5: 43200.18735 | AI5: 7698.042262 | AJ5: 7761.877018 | AK5: 6885.280674 | AL5: 6934.888788 | AM5: 6985.107667 | AN5: 7035.946553 | AO5: 7087.414414 | AP5: 7139.514361 | AQ5: 7192.253029 | AR5: 7245.644224 | AS5: 7299.682953 | AT5: 7354.388046 | AU5: 7409.76509 | AV5: 7465.815781 | AW5: 7522.55073 | AX5: 7579.982048 | AY5: 7638.107059 | AZ5: 7696.948154 | BA5: 0 | BB5: 49246.30889 | BC5: 89332.19968 | BD5: 170569.1693 | BE5: 212777.6521 | BF5: 235248.9453 | BG5: 237327.527 | BH5: 239429.103 | BI5: 241504.8507 | BJ5: 243602.7185 | BK5: 245722.9363 | BL5: 247865.731 | BM5: 250031.3382 | BN5: 252219.9845 | BO5: 254431.9142 | BP5: 256667.3587 | BQ5: 258926.5683 | BR5: 261209.773 | BS5: 263517.234 | BT5: 265849.1885 | BU5: 268205.8933 | BV5: 270587.5972 | BW5: 272994.5578 | BX5: 275427.0366
A6: 5 | B6: Stand Alone | C6: Time-of-Use | D6: 2023 | E6: 0 | F6: 0 | G6: 0 | H6: 0 | I6: 0 | J6: 0 | K6: 0 | L6: 0 | M6: 0 | N6: 0 | O6: 0 | P6: 0 | Q6: 0 | R6: 0 | S6: 0 | T6: 0 | U6: 0 | V6: 0 | W6: 0 | X6: 0 | Y6: 0 | Z6: 0 | AA6: 0 | AB6: 0 | AC6: 0 | AD6: 0 | AE6: 0 | AF6: 0 | AG6: 0 | AH6: 0 | AI6: 0 | AJ6: 0 | AK6: 0 | AL6: 0 | AM6: 0 | AN6: 0 | AO6: 0 | AP6: 0 | AQ6: 0 | AR6: 0 | AS6: 0 | AT6: 0 | AU6: 0 | AV6: 0 | AW6: 0 | AX6: 0 | AY6: 0 | AZ6: 0 | BA6: 0 | BB6: 0 | BC6: 0 | BD6: 0 | BE6: 0 | BF6: 0 | BG6: 0 | BH6: 0 | BI6: 0 | BJ6: 0 | BK6: 0 | BL6: 0 | BM6: 0 | BN6: 0 | BO6: 0 | BP6: 0 | BQ6: 0 | BR6: 0 | BS6: 0 | BT6: 0 | BU6: 0 | BV6: 0 | BW6: 0 | BX6: 0
A7: 6 | B7: Stand Alone | C7: Variable Peak Pricing | D7: 2023 | E7: 0 | F7: 0 | G7: 0 | H7: 0 | I7: 0 | J7: 0 | K7: 0 | L7: 0 | M7: 0 | N7: 0 | O7: 0 | P7: 0 | Q7: 0 | R7: 0 | S7: 0 | T7: 0 | U7: 0 | V7: 0 | W7: 0 | X7: 0 | Y7: 0 | Z7: 0 | AA7: 0 | AB7: 0 | AC7: 0 | AD7: 0 | AE7: 0 | AF7: 0 | AG7: 0 | AH7: 0 | AI7: 0 | AJ7: 0 | AK7: 0 | AL7: 0 | AM7: 0 | AN7: 0 | AO7: 0 | AP7: 0 | AQ7: 0 | AR7: 0 | AS7: 0 | AT7: 0 | AU7: 0 | AV7: 0 | AW7: 0 | AX7: 0 | AY7: 0 | AZ7: 0 | BA7: 0 | BB7: 0 | BC7: 0 | BD7: 0 | BE7: 0 | BF7: 0 | BG7: 0 | BH7: 0 | BI7: 0 | BJ7: 0 | BK7: 0 | BL7: 0 | BM7: 0 | BN7: 0 | BO7: 0 | BP7: 0 | BQ7: 0 | BR7: 0 | BS7: 0 | BT7: 0 | BU7: 0 | BV7: 0 | BW7: 0 | BX7: 0
A8: 7 | B8: Stand Alone | C8: Third Party Contracts | D8: 2023 | E8: 0 | F8: 0.212572224 | G8: 0.3411360528 | H8: 0.4276413556 | I8: 0.4295909765 | J8: 0.4315494856 | K8: 0.4335169237 | L8: 0.4354933313 | M8: 0.4374787494 | N8: 0.439473219 | O8: 0.4414767814 | P8: 0.4434894781 | Q8: 0.4455113506 | R8: 0.447542441 | S8: 0.449582791 | T8: 0.4516324431 | U8: 0.4536914395 | V8: 0.4557598229 | W8: 0.4578376361 | X8: 0.4599249221 | Y8: 0.462021724 | Z8: 0.4641280852 | AA8: 0.4662440494 | AB8: 0.4683696603 | AC8: 0 | AD8: 7512.896325 | AE8: 7482.561644 | AF8: 7432.177713 | AG8: 7393.857426 | AH8: 7355.216407 | AI8: 7316.26181 | AJ8: 7277.000887 | AK8: 7237.440982 | AL8: 7197.589528 | AM8: 7157.454042 | AN8: 7117.042121 | AO8: 7076.361436 | AP8: 7035.419733 | AQ8: 6994.224822 | AR8: 6952.784575 | AS8: 6911.106923 | AT8: 6869.199849 | AU8: 6827.071386 | AV8: 6784.729608 | AW8: 6742.18263 | AX8: 6699.438603 | AY8: 6656.505705 | AZ8: 6613.392141 | BA8: 0 | BB8: 40944.26413 | BC8: 40891.04433 | BD8: 40691.3313 | BE8: 40483.39399 | BF8: 40273.71584 | BG8: 40062.33004 | BH8: 39849.28075 | BI8: 39634.60567 | BJ8: 39418.34474 | BK8: 39200.54511 | BL8: 38981.23741 | BM8: 38760.47131 | BN8: 38538.28835 | BO8: 38314.72879 | BP8: 38089.83822 | BQ8: 37863.65429 | BR8: 37636.22641 | BS8: 37407.59926 | BT8: 37177.81135 | BU8: 36946.90946 | BV8: 36714.93731 | BW8: 36481.94353 | BX8: 36247.96738
C11: Behavioral | E11: =IFERROR(E3/$AA3,0) -> 0 | F11: 0 | G11: 0 | H11: 0 | I11: 0 | J11: 0 | K11: 0 | L11: 0 | M11: 0 | N11: 0 | O11: 0 | P11: 0 | Q11: 0 | R11: 0 | S11: 0 | T11: 0 | U11: 0 | V11: 0 | W11: 0 | X11: 0 | Y11: 0 | Z11: 0 | AA11: 0
C12: DLC Water Heating | E12: =IFERROR(E4/$AA4,0) -> 0 | F12: 0 | G12: 0 | H12: 0 | I12: 0 | J12: 0 | K12: 0 | L12: 0 | M12: 0 | N12: 0 | O12: 0 | P12: 0 | Q12: 0 | R12: 0 | S12: 0 | T12: 0 | U12: 0 | V12: 0 | W12: 0 | X12: 0 | Y12: 0 | Z12: 0 | AA12: 0
C13: DLC Smart Thermostats - BYOT | E13: =IFERROR(E5/$AA5,0) -> 0 | F13: 0.08337147345 | G13: 0.2524383357 | H13: 0.5949035567 | I13: 0.7714416531 | J13: 0.8645166149 | K13: 0.8719404648 | L13: 0.8794295206 | M13: 0.8869843661 | N13: 0.8946055904 | O13: 0.9022937881 | P13: 0.9100495589 | Q13: 0.9178735083 | R13: 0.9257662471 | S13: 0.9337283916 | T13: 0.941760564 | U13: 0.9498633918 | V13: 0.9580375084 | W13: 0.9662835531 | X13: 0.9746021708 | Y13: 0.9829940123 | Z13: 0.9914597345 | AA13: 1
C14: Time-of-Use | E14: =IFERROR(E6/$AA6,0) -> 0 | F14: 0 | G14: 0 | H14: 0 | I14: 0 | J14: 0 | K14: 0 | L14: 0 | M14: 0 | N14: 0 | O14: 0 | P14: 0 | Q14: 0 | R14: 0 | S14: 0 | T14: 0 | U14: 0 | V14: 0 | W14: 0 | X14: 0 | Y14: 0 | Z14: 0 | AA14: 0
C15: Variable Peak Pricing | E15: =IFERROR(E7/$AA7,0) -> 0 | F15: 0 | G15: 0 | H15: 0 | I15: 0 | J15: 0 | K15: 0 | L15: 0 | M15: 0 | N15: 0 | O15: 0 | P15: 0 | Q15: 0 | R15: 0 | S15: 0 | T15: 0 | U15: 0 | V15: 0 | W15: 0 | X15: 0 | Y15: 0 | Z15: 0 | AA15: 0
C16: Third Party Contracts | E16: =IFERROR(E8/$AA8,0) -> 0 | F16: 0.4559247978 | G16: 0.7316684326 | H16: 0.917204962 | I16: 0.9213865078 | J16: 0.9255871173 | K16: 0.9298068774 | L16: 0.9340458754 | M16: 0.9383041991 | N16: 0.9425819365 | O16: 0.9468791762 | P16: 0.951196007 | Q16: 0.9555325182 | R16: 0.9598887997 | S16: 0.9642649415 | T16: 0.9686610342 | U16: 0.9730771687 | V16: 0.9775134363 | W16: 0.981969929 | X16: 0.9864467389 | Y16: 0.9909439586 | Z16: 0.9954616811 | AA16: 1

Sheet LC
C2: 2 | D2: 3 | E2: 4 | F2: 5 | G2: 6 | H2: 7 | I2: 8 | J2: 9 | K2: 10 | L2: 11 | M2: 12 | N2: 13 | O2: 14 | P2: 15 | Q2: 16 | R2: 17 | S2: 18 | T2: 19 | U2: 20 | V2: 21 | W2: 22 | X2: 23 | Y2: 24
A3: Revenue Requirement | B3: Levelization | C3: 2023 | D3: 2024 | E3: 2025 | F3: 2026 | G3: 2027 | H3: 2028 | I3: 2029 | J3: 2030 | K3: 2031 | L3: 2032 | M3: 2033 | N3: 2034 | O3: 2035 | P3: 2036 | Q3: 2037 | R3: 2038 | S3: 2039 | T3: 2040 | U3: 2041 | V3: 2042 | W3: 2043 | X3: 2044 | Y3: 2045
A4: Behavioral | B4: =IFERROR(-PMT($B$31,24,NPV($B$31,LC!C4:Y4)),0) -> 0 | C4: 0 | D4: 0 | E4: 0 | F4: 0 | G4: 0 | H4: 0 | I4: 0 | J4: 0 | K4: 0 | L4: 0 | M4: 0 | N4: 0 | O4: 0 | P4: 0 | Q4: 0 | R4: 0 | S4: 0 | T4: 0 | U4: 0 | V4: 0 | W4: 0 | X4: 0 | Y4: 0
A5: DLC Water Heating | B5: =IFERROR(-PMT($B$31,24,NPV($B$31,LC!C5:Y5)),0) -> 0 | C5: 0 | D5: 0 | E5: 0 | F5: 0 | G5: 0 | H5: 0 | I5: 0 | J5: 0 | K5: 0 | L5: 0 | M5: 0 | N5: 0 | O5: 0 | P5: 0 | Q5: 0 | R5: 0 | S5: 0 | T5: 0 | U5: 0 | V5: 0 | W5: 0 | X5: 0 | Y5: 0
A6: DLC Smart Thermostats - BYOT | B6: =IFERROR(-PMT($B$31,24,NPV($B$31,LC!C6:Y6)),0) -> 301348.6888 | C6: =VLOOKUP(C$3,'DLC-Smart TS'!$A$28:$S$50,19,FALSE) -> 0 | D6: =VLOOKUP(D$3,'DLC-Smart TS'!$A$28:$S$50,19,FALSE) -> 62212.45899 | E6: =VLOOKUP(E$3,'DLC-Smart TS'!$A$28:$S$50,19,FALSE) -> 124262.0882 | F6: =VLOOKUP(F$3,'DLC-Smart TS'!$A$28:$S$50,19,FALSE) -> 251441.0964 | G6: =VLOOKUP(G$3,'DLC-Smart TS'!$A$28:$S$50,19,FALSE) -> 319845.4385 | H6: =VLOOKUP(H$3,'DLC-Smart TS'!$A$28:$S$50,19,FALSE) -> 358053.5208 | I6: =VLOOKUP(I$3,'DLC-Smart TS'!$A$28:$S$50,19,FALSE) -> 363710.2502 | J6: =VLOOKUP(J$3,'DLC-Smart TS'!$A$28:$S$50,19,FALSE) -> 369955.896 | K6: =VLOOKUP(K$3,'DLC-Smart TS'!$A$28:$S$50,19,FALSE) -> 376475.9402 | L6: =VLOOKUP(L$3,'DLC-Smart TS'!$A$28:$S$50,19,FALSE) -> 383545.4347 | M6: =VLOOKUP(M$3,'DLC-Smart TS'!$A$28:$S$50,19,FALSE) -> 391086.8877 | N6: =VLOOKUP(N$3,'DLC-Smart TS'!$A$28:$S$50,19,FALSE) -> 395103.6204 | O6: =VLOOKUP(O$3,'DLC-Smart TS'!$A$28:$S$50,19,FALSE) -> 395780.2426 | P6: =VLOOKUP(P$3,'DLC-Smart TS'!$A$28:$S$50,19,FALSE) -> 389219.1851 | Q6: =VLOOKUP(Q$3,'DLC-Smart TS'!$A$28:$S$50,19,FALSE) -> 391674.3021 | R6: =VLOOKUP(R$3,'DLC-Smart TS'!$A$28:$S$50,19,FALSE) -> 399005.826 | S6: =VLOOKUP(S$3,'DLC-Smart TS'!$A$28:$S$50,19,FALSE) -> 411216.6293 | T6: =VLOOKUP(T$3,'DLC-Smart TS'!$A$28:$S$50,19,FALSE) -> 423821.3425 | U6: =VLOOKUP(U$3,'DLC-Smart TS'!$A$28:$S$50,19,FALSE) -> 436949.5068 | V6: =VLOOKUP(V$3,'DLC-Smart TS'!$A$28:$S$50,19,FALSE) -> 450491.6428 | W6: =VLOOKUP(W$3,'DLC-Smart TS'!$A$28:$S$50,19,FALSE) -> 464460.9691 | X6: =VLOOKUP(X$3,'DLC-Smart TS'!$A$28:$S$50,19,FALSE) -> 478871.1128 | Y6: =VLOOKUP(Y$3,'DLC-Smart TS'!$A$28:$S$50,19,FALSE) -> 493736.1449
A7: Time-of-Use | B7: =IFERROR(-PMT($B$31,24,NPV($B$31,LC!C7:Y7)),0) -> 0 | C7: 0 | D7: 0 | E7: 0 | F7: 0 | G7: 0 | H7: 0 | I7: 0 | J7: 0 | K7: 0 | L7: 0 | M7: 0 | N7: 0 | O7: 0 | P7: 0 | Q7: 0 | R7: 0 | S7: 0 | T7: 0 | U7: 0 | V7: 0 | W7: 0 | X7: 0 | Y7: 0
A8: Variable Peak Pricing | B8: =IFERROR(-PMT($B$31,24,NPV($B$31,LC!C8:Y8)),0) -> 0 | C8: 0 | D8: 0 | E8: 0 | F8: 0 | G8: 0 | H8: 0 | I8: 0 | J8: 0 | K8: 0 | L8: 0 | M8: 0 | N8: 0 | O8: 0 | P8: 0 | Q8: 0 | R8: 0 | S8: 0 | T8: 0 | U8: 0 | V8: 0 | W8: 0 | X8: 0 | Y8: 0
A9: Third Party Contracts | B9: =IFERROR(-PMT($B$31,24,NPV($B$31,LC!C9:Y9)),0) -> 55895.69024 | C9: =VLOOKUP(C$3,'3rd party cont.'!$A$28:$S$50,19,FALSE) -> 0 | D9: =VLOOKUP(D$3,'3rd party cont.'!$A$28:$S$50,19,FALSE) -> 46744.80154 | E9: =VLOOKUP(E$3,'3rd party cont.'!$A$28:$S$50,19,FALSE) -> 49298.47367 | F9: =VLOOKUP(F$3,'3rd party cont.'!$A$28:$S$50,19,FALSE) -> 51565.97678 | G9: =VLOOKUP(G$3,'3rd party cont.'!$A$28:$S$50,19,FALSE) -> 53768.8104 | H9: =VLOOKUP(H$3,'3rd party cont.'!$A$28:$S$50,19,FALSE) -> 55918.88057 | I9: =VLOOKUP(I$3,'3rd party cont.'!$A$28:$S$50,19,FALSE) -> 58002.72711 | J9: =VLOOKUP(J$3,'3rd party cont.'!$A$28:$S$50,19,FALSE) -> 60043.57865 | K9: =VLOOKUP(K$3,'3rd party cont.'!$A$28:$S$50,19,FALSE) -> 62044.87466 | L9: =VLOOKUP(L$3,'3rd party cont.'!$A$28:$S$50,19,FALSE) -> 64005.73231 | M9: =VLOOKUP(M$3,'3rd party cont.'!$A$28:$S$50,19,FALSE) -> 65925.2596 | N9: =VLOOKUP(N$3,'3rd party cont.'!$A$28:$S$50,19,FALSE) -> 67003.20208 | O9: =VLOOKUP(O$3,'3rd party cont.'!$A$28:$S$50,19,FALSE) -> 68091.87457 | P9: =VLOOKUP(P$3,'3rd party cont.'!$A$28:$S$50,19,FALSE) -> 69194.59052 | Q9: =VLOOKUP(Q$3,'3rd party cont.'!$A$28:$S$50,19,FALSE) -> 70309.9541 | R9: =VLOOKUP(R$3,'3rd party cont.'!$A$28:$S$50,19,FALSE) -> 71438.04301 | S9: =VLOOKUP(S$3,'3rd party cont.'!$A$28:$S$50,19,FALSE) -> 72579.20634 | T9: =VLOOKUP(T$3,'3rd party cont.'!$A$28:$S$50,19,FALSE) -> 73733.51136 | U9: =VLOOKUP(U$3,'3rd party cont.'!$A$28:$S$50,19,FALSE) -> 74901.01744 | V9: =VLOOKUP(V$3,'3rd party cont.'!$A$28:$S$50,19,FALSE) -> 76081.77292 | W9: =VLOOKUP(W$3,'3rd party cont.'!$A$28:$S$50,19,FALSE) -> 77275.83815 | X9: =VLOOKUP(X$3,'3rd party cont.'!$A$28:$S$50,19,FALSE) -> 78483.26772 | Y9: =VLOOKUP(Y$3,'3rd party cont.'!$A$28:$S$50,19,FALSE) -> 79704.12372
A11: Dth | B11: Avg
A12: Behavioral | B12: =AVERAGE(C12:Y12) -> 0 | C12: =HLOOKUP(C$3,'AEG Input File'!$E$2:$AB$8,2,FALSE) -> 0 | D12: =HLOOKUP(D$3,'AEG Input File'!$E$2:$AB$8,2,FALSE) -> 0 | E12: =HLOOKUP(E$3,'AEG Input File'!$E$2:$AB$8,2,FALSE) -> 0 | F12: =HLOOKUP(F$3,'AEG Input File'!$E$2:$AB$8,2,FALSE) -> 0 | G12: =HLOOKUP(G$3,'AEG Input File'!$E$2:$AB$8,2,FALSE) -> 0 | H12: =HLOOKUP(H$3,'AEG Input File'!$E$2:$AB$8,2,FALSE) -> 0 | I12: =HLOOKUP(I$3,'AEG Input File'!$E$2:$AB$8,2,FALSE) -> 0 | J12: =HLOOKUP(J$3,'AEG Input File'!$E$2:$AB$8,2,FALSE) -> 0 | K12: =HLOOKUP(K$3,'AEG Input File'!$E$2:$AB$8,2,FALSE) -> 0 | L12: =HLOOKUP(L$3,'AEG Input File'!$E$2:$AB$8,2,FALSE) -> 0 | M12: =HLOOKUP(M$3,'AEG Input File'!$E$2:$AB$8,2,FALSE) -> 0 | N12: =HLOOKUP(N$3,'AEG Input File'!$E$2:$AB$8,2,FALSE) -> 0 | O12: =HLOOKUP(O$3,'AEG Input File'!$E$2:$AB$8,2,FALSE) -> 0 | P12: =HLOOKUP(P$3,'AEG Input File'!$E$2:$AB$8,2,FALSE) -> 0 | Q12: =HLOOKUP(Q$3,'AEG Input File'!$E$2:$AB$8,2,FALSE) -> 0 | R12: =HLOOKUP(R$3,'AEG Input File'!$E$2:$AB$8,2,FALSE) -> 0 | S12: =HLOOKUP(S$3,'AEG Input File'!$E$2:$AB$8,2,FALSE) -> 0 | T12: =HLOOKUP(T$3,'AEG Input File'!$E$2:$AB$8,2,FALSE) -> 0 | U12: =HLOOKUP(U$3,'AEG Input File'!$E$2:$AB$8,2,FALSE) -> 0 | V12: =HLOOKUP(V$3,'AEG Input File'!$E$2:$AB$8,2,FALSE) -> 0 | W12: =HLOOKUP(W$3,'AEG Input File'!$E$2:$AB$8,2,FALSE) -> 0 | X12: =HLOOKUP(X$3,'AEG Input File'!$E$2:$AB$8,2,FALSE) -> 0 | Y12: =HLOOKUP(Y$3,'AEG Input File'!$E$2:$AB$8,2,FALSE) -> 0
A13: DLC Water Heating | B13: =AVERAGE(C13:Y13) -> 0 | C13: =HLOOKUP(C$3,'AEG Input File'!$E$2:$AB$8,3,FALSE) -> 0 | D13: =HLOOKUP(D$3,'AEG Input File'!$E$2:$AB$8,3,FALSE) -> 0 | E13: =HLOOKUP(E$3,'AEG Input File'!$E$2:$AB$8,3,FALSE) -> 0 | F13: =HLOOKUP(F$3,'AEG Input File'!$E$2:$AB$8,3,FALSE) -> 0 | G13: =HLOOKUP(G$3,'AEG Input File'!$E$2:$AB$8,3,FALSE) -> 0 | H13: =HLOOKUP(H$3,'AEG Input File'!$E$2:$AB$8,3,FALSE) -> 0 | I13: =HLOOKUP(I$3,'AEG Input File'!$E$2:$AB$8,3,FALSE) -> 0 | J13: =HLOOKUP(J$3,'AEG Input File'!$E$2:$AB$8,3,FALSE) -> 0 | K13: =HLOOKUP(K$3,'AEG Input File'!$E$2:$AB$8,3,FALSE) -> 0 | L13: =HLOOKUP(L$3,'AEG Input File'!$E$2:$AB$8,3,FALSE) -> 0 | M13: =HLOOKUP(M$3,'AEG Input File'!$E$2:$AB$8,3,FALSE) -> 0 | N13: =HLOOKUP(N$3,'AEG Input File'!$E$2:$AB$8,3,FALSE) -> 0 | O13: =HLOOKUP(O$3,'AEG Input File'!$E$2:$AB$8,3,FALSE) -> 0 | P13: =HLOOKUP(P$3,'AEG Input File'!$E$2:$AB$8,3,FALSE) -> 0 | Q13: =HLOOKUP(Q$3,'AEG Input File'!$E$2:$AB$8,3,FALSE) -> 0 | R13: =HLOOKUP(R$3,'AEG Input File'!$E$2:$AB$8,3,FALSE) -> 0 | S13: =HLOOKUP(S$3,'AEG Input File'!$E$2:$AB$8,3,FALSE) -> 0 | T13: =HLOOKUP(T$3,'AEG Input File'!$E$2:$AB$8,3,FALSE) -> 0 | U13: =HLOOKUP(U$3,'AEG Input File'!$E$2:$AB$8,3,FALSE) -> 0 | V13: =HLOOKUP(V$3,'AEG Input File'!$E$2:$AB$8,3,FALSE) -> 0 | W13: =HLOOKUP(W$3,'AEG Input File'!$E$2:$AB$8,3,FALSE) -> 0 | X13: =HLOOKUP(X$3,'AEG Input File'!$E$2:$AB$8,3,FALSE) -> 0 | Y13: =HLOOKUP(Y$3,'AEG Input File'!$E$2:$AB$8,3,FALSE) -> 0
A14: DLC Smart Thermostats - BYOT | B14: 57.97092202 | C14: =HLOOKUP(C$3,'AEG Input File'!$E$2:$AB$8,4,FALSE) -> 0 | D14: =HLOOKUP(D$3,'AEG Input File'!$E$2:$AB$8,4,FALSE) -> 6.023610877 | E14: =HLOOKUP(E$3,'AEG Input File'!$E$2:$AB$8,4,FALSE) -> 18.23873612 | F14: =HLOOKUP(F$3,'AEG Input File'!$E$2:$AB$8,4,FALSE) -> 42.98193839 | G14: =HLOOKUP(G$3,'AEG Input File'!$E$2:$AB$8,4,FALSE) -> 55.73686227 | H14: =HLOOKUP(H$3,'AEG Input File'!$E$2:$AB$8,4,FALSE) -> 62.46155272 | I14: =HLOOKUP(I$3,'AEG Input File'!$E$2:$AB$8,4,FALSE) -> 62.99792783 | J14: =HLOOKUP(J$3,'AEG Input File'!$E$2:$AB$8,4,FALSE) -> 63.53901408 | K14: =HLOOKUP(K$3,'AEG Input File'!$E$2:$AB$8,4,FALSE) -> 64.08485366 | L14: =HLOOKUP(L$3,'AEG Input File'!$E$2:$AB$8,4,FALSE) -> 64.63548912 | M14: =HLOOKUP(M$3,'AEG Input File'!$E$2:$AB$8,4,FALSE) -> 65.19096342 | N14: =HLOOKUP(N$3,'AEG Input File'!$E$2:$AB$8,4,FALSE) -> 65.7513199 | O14: =HLOOKUP(O$3,'AEG Input File'!$E$2:$AB$8,4,FALSE) -> 66.3166023 | P14: =HLOOKUP(P$3,'AEG Input File'!$E$2:$AB$8,4,FALSE) -> 66.88685476 | Q14: =HLOOKUP(Q$3,'AEG Input File'!$E$2:$AB$8,4,FALSE) -> 67.46212179 | R14: =HLOOKUP(R$3,'AEG Input File'!$E$2:$AB$8,4,FALSE) -> 68.04244835 | S14: =HLOOKUP(S$3,'AEG Input File'!$E$2:$AB$8,4,FALSE) -> 68.62787979 | T14: =HLOOKUP(T$3,'AEG Input File'!$E$2:$AB$8,4,FALSE) -> 69.21846187 | U14: =HLOOKUP(U$3,'AEG Input File'!$E$2:$AB$8,4,FALSE) -> 69.81424077 | V14: =HLOOKUP(V$3,'AEG Input File'!$E$2:$AB$8,4,FALSE) -> 70.41526308 | W14: =HLOOKUP(W$3,'AEG Input File'!$E$2:$AB$8,4,FALSE) -> 71.02157584 | X14: =HLOOKUP(X$3,'AEG Input File'!$E$2:$AB$8,4,FALSE) -> 71.63322649 | Y14: =HLOOKUP(Y$3,'AEG Input File'!$E$2:$AB$8,4,FALSE) -> 72.25026292
A15: Time-of-Use | B15: 0 | C15: =HLOOKUP(C$3,'AEG Input File'!$E$2:$AB$8,5,FALSE) -> 0 | D15: =HLOOKUP(D$3,'AEG Input File'!$E$2:$AB$8,5,FALSE) -> 0 | E15: =HLOOKUP(E$3,'AEG Input File'!$E$2:$AB$8,5,FALSE) -> 0 | F15: =HLOOKUP(F$3,'AEG Input File'!$E$2:$AB$8,5,FALSE) -> 0 | G15: =HLOOKUP(G$3,'AEG Input File'!$E$2:$AB$8,5,FALSE) -> 0 | H15: =HLOOKUP(H$3,'AEG Input File'!$E$2:$AB$8,5,FALSE) -> 0 | I15: =HLOOKUP(I$3,'AEG Input File'!$E$2:$AB$8,5,FALSE) -> 0 | J15: =HLOOKUP(J$3,'AEG Input File'!$E$2:$AB$8,5,FALSE) -> 0 | K15: =HLOOKUP(K$3,'AEG Input File'!$E$2:$AB$8,5,FALSE) -> 0 | L15: =HLOOKUP(L$3,'AEG Input File'!$E$2:$AB$8,5,FALSE) -> 0 | M15: =HLOOKUP(M$3,'AEG Input File'!$E$2:$AB$8,5,FALSE) -> 0 | N15: =HLOOKUP(N$3,'AEG Input File'!$E$2:$AB$8,5,FALSE) -> 0 | O15: =HLOOKUP(O$3,'AEG Input File'!$E$2:$AB$8,5,FALSE) -> 0 | P15: =HLOOKUP(P$3,'AEG Input File'!$E$2:$AB$8,5,FALSE) -> 0 | Q15: =HLOOKUP(Q$3,'AEG Input File'!$E$2:$AB$8,5,FALSE) -> 0 | R15: =HLOOKUP(R$3,'AEG Input File'!$E$2:$AB$8,5,FALSE) -> 0 | S15: =HLOOKUP(S$3,'AEG Input File'!$E$2:$AB$8,5,FALSE) -> 0 | T15: =HLOOKUP(T$3,'AEG Input File'!$E$2:$AB$8,5,FALSE) -> 0 | U15: =HLOOKUP(U$3,'AEG Input File'!$E$2:$AB$8,5,FALSE) -> 0 | V15: =HLOOKUP(V$3,'AEG Input File'!$E$2:$AB$8,5,FALSE) -> 0 | W15: =HLOOKUP(W$3,'AEG Input File'!$E$2:$AB$8,5,FALSE) -> 0 | X15: =HLOOKUP(X$3,'AEG Input File'!$E$2:$AB$8,5,FALSE) -> 0 | Y15: =HLOOKUP(Y$3,'AEG Input File'!$E$2:$AB$8,5,FALSE) -> 0
A16: Variable Peak Pricing | B16: 0 | C16: =HLOOKUP(C$3,'AEG Input File'!$E$2:$AB$8,6,FALSE) -> 0 | D16: =HLOOKUP(D$3,'AEG Input File'!$E$2:$AB$8,6,FALSE) -> 0 | E16: =HLOOKUP(E$3,'AEG Input File'!$E$2:$AB$8,6,FALSE) -> 0 | F16: =HLOOKUP(F$3,'AEG Input File'!$E$2:$AB$8,6,FALSE) -> 0 | G16: =HLOOKUP(G$3,'AEG Input File'!$E$2:$AB$8,6,FALSE) -> 0 | H16: =HLOOKUP(H$3,'AEG Input File'!$E$2:$AB$8,6,FALSE) -> 0 | I16: =HLOOKUP(I$3,'AEG Input File'!$E$2:$AB$8,6,FALSE) -> 0 | J16: =HLOOKUP(J$3,'AEG Input File'!$E$2:$AB$8,6,FALSE) -> 0 | K16: =HLOOKUP(K$3,'AEG Input File'!$E$2:$AB$8,6,FALSE) -> 0 | L16: =HLOOKUP(L$3,'AEG Input File'!$E$2:$AB$8,6,FALSE) -> 0 | M16: =HLOOKUP(M$3,'AEG Input File'!$E$2:$AB$8,6,FALSE) -> 0 | N16: =HLOOKUP(N$3,'AEG Input File'!$E$2:$AB$8,6,FALSE) -> 0 | O16: =HLOOKUP(O$3,'AEG Input File'!$E$2:$AB$8,6,FALSE) -> 0 | P16: =HLOOKUP(P$3,'AEG Input File'!$E$2:$AB$8,6,FALSE) -> 0 | Q16: =HLOOKUP(Q$3,'AEG Input File'!$E$2:$AB$8,6,FALSE) -> 0 | R16: =HLOOKUP(R$3,'AEG Input File'!$E$2:$AB$8,6,FALSE) -> 0 | S16: =HLOOKUP(S$3,'AEG Input File'!$E$2:$AB$8,6,FALSE) -> 0 | T16: =HLOOKUP(T$3,'AEG Input File'!$E$2:$AB$8,6,FALSE) -> 0 | U16: =HLOOKUP(U$3,'AEG Input File'!$E$2:$AB$8,6,FALSE) -> 0 | V16: =HLOOKUP(V$3,'AEG Input File'!$E$2:$AB$8,6,FALSE) -> 0 | W16: =HLOOKUP(W$3,'AEG Input File'!$E$2:$AB$8,6,FALSE) -> 0 | X16: =HLOOKUP(X$3,'AEG Input File'!$E$2:$AB$8,6,FALSE) -> 0 | Y16: =HLOOKUP(Y$3,'AEG Input File'!$E$2:$AB$8,6,FALSE) -> 0
A17: Third Party Contracts | B17: 0.4124910992 | C17: =HLOOKUP(C$3,'AEG Input File'!$E$2:$AB$8,7,FALSE) -> 0 | D17: =HLOOKUP(D$3,'AEG Input File'!$E$2:$AB$8,7,FALSE) -> 0.212572224 | E17: =HLOOKUP(E$3,'AEG Input File'!$E$2:$AB$8,7,FALSE) -> 0.3411360528 | F17: =HLOOKUP(F$3,'AEG Input File'!$E$2:$AB$8,7,FALSE) -> 0.4276413556 | G17: =HLOOKUP(G$3,'AEG Input File'!$E$2:$AB$8,7,FALSE) -> 0.4295909765 | H17: =HLOOKUP(H$3,'AEG Input File'!$E$2:$AB$8,7,FALSE) -> 0.4315494856 | I17: =HLOOKUP(I$3,'AEG Input File'!$E$2:$AB$8,7,FALSE) -> 0.4335169237 | J17: =HLOOKUP(J$3,'AEG Input File'!$E$2:$AB$8,7,FALSE) -> 0.4354933313 | K17: =HLOOKUP(K$3,'AEG Input File'!$E$2:$AB$8,7,FALSE) -> 0.4374787494 | L17: =HLOOKUP(L$3,'AEG Input File'!$E$2:$AB$8,7,FALSE) -> 0.439473219 | M17: =HLOOKUP(M$3,'AEG Input File'!$E$2:$AB$8,7,FALSE) -> 0.4414767814 | N17: =HLOOKUP(N$3,'AEG Input File'!$E$2:$AB$8,7,FALSE) -> 0.4434894781 | O17: =HLOOKUP(O$3,'AEG Input File'!$E$2:$AB$8,7,FALSE) -> 0.4455113506 | P17: =HLOOKUP(P$3,'AEG Input File'!$E$2:$AB$8,7,FALSE) -> 0.447542441 | Q17: =HLOOKUP(Q$3,'AEG Input File'!$E$2:$AB$8,7,FALSE) -> 0.449582791 | R17: =HLOOKUP(R$3,'AEG Input File'!$E$2:$AB$8,7,FALSE) -> 0.4516324431 | S17: =HLOOKUP(S$3,'AEG Input File'!$E$2:$AB$8,7,FALSE) -> 0.4536914395 | T17: =HLOOKUP(T$3,'AEG Input File'!$E$2:$AB$8,7,FALSE) -> 0.4557598229 | U17: =HLOOKUP(U$3,'AEG Input File'!$E$2:$AB$8,7,FALSE) -> 0.4578376361 | V17: =HLOOKUP(V$3,'AEG Input File'!$E$2:$AB$8,7,FALSE) -> 0.4599249221 | W17: =HLOOKUP(W$3,'AEG Input File'!$E$2:$AB$8,7,FALSE) -> 0.462021724 | X17: =HLOOKUP(X$3,'AEG Input File'!$E$2:$AB$8,7,FALSE) -> 0.4641280852 | Y17: =HLOOKUP(Y$3,'AEG Input File'!$E$2:$AB$8,7,FALSE) -> 0.4662440494
A19: Input into Plexos | B19: Per Dth Price
A20: Behavioral | B20: =-PMT($B$31,24,NPV($B$31,LC!C20:Y20)) -> 0 | C20: =IFERROR(C4/(C12*1000),0) -> 0 | D20: =IFERROR(D4/(D12),0) -> 0 | E20: =IFERROR(E4/(E12),0) -> 0 | F20: 0 | G20: 0 | H20: 0 | I20: 0 | J20: 0 | K20: 0 | L20: 0 | M20: 0 | N20: 0 | O20: 0 | P20: 0 | Q20: 0 | R20: 0 | S20: 0 | T20: 0 | U20: 0 | V20: 0 | W20: 0 | X20: 0 | Y20: 0
A21: DLC Water Heating | B21: =-PMT($B$31,24,NPV($B$31,LC!C21:Y21)) -> 0 | C21: =IFERROR(C5/(C13*1000),0) -> 0 | D21: =IFERROR(D5/(D13),0) -> 0 | E21: 0 | F21: 0 | G21: 0 | H21: 0 | I21: 0 | J21: 0 | K21: 0 | L21: 0 | M21: 0 | N21: 0 | O21: 0 | P21: 0 | Q21: 0 | R21: 0 | S21: 0 | T21: 0 | U21: 0 | V21: 0 | W21: 0 | X21: 0 | Y21: 0
A22: DLC Smart Thermostats - BYOT | B22: =-PMT($B$31,24,NPV($B$31,LC!C22:Y22)) -> 5766.920166 | C22: =IFERROR(C6/(C14*1000),0) -> 0 | D22: =IFERROR(D6/(D14),0) -> 10328.10058 | E22: 6813.086572 | F22: 5849.924547 | G22: 5738.490211 | H22: 5732.382645 | I22: 5773.36847 | J22: 5822.499787 | K22: 5874.647733 | L22: 5933.9759 | M22: 5999.096611 | N22: 6009.059909 | O22: 5968.041619 | P22: 5819.068433 | Q22: 5805.840251 | R22: 5864.072145 | S22: 5991.976301 | T22: 6122.952332 | U22: 6258.744663 | V22: 6397.641976 | W22: 6539.716468 | X22: 6685.041791 | Y22: 6833.6934
A23: Time-of-Use | B23: =-PMT($B$31,24,NPV($B$31,LC!C23:Y23)) -> 0 | C23: =IFERROR(C7/(C15*1000),0) -> 0 | D23: 0 | E23: 0 | F23: 0 | G23: 0 | H23: 0 | I23: 0 | J23: 0 | K23: 0 | L23: 0 | M23: 0 | N23: 0 | O23: 0 | P23: 0 | Q23: 0 | R23: 0 | S23: 0 | T23: 0 | U23: 0 | V23: 0 | W23: 0 | X23: 0 | Y23: 0
A24: Variable Peak Pricing | B24: =-PMT($B$31,24,NPV($B$31,LC!C24:Y24)) -> 0 | C24: =IFERROR(C8/(C16*1000),0) -> 0 | D24: 0 | E24: 0 | F24: 0 | G24: 0 | H24: 0 | I24: 0 | J24: 0 | K24: 0 | L24: 0 | M24: 0 | N24: 0 | O24: 0 | P24: 0 | Q24: 0 | R24: 0 | S24: 0 | T24: 0 | U24: 0 | V24: 0 | W24: 0 | X24: 0 | Y24: 0
A25: Third Party Contracts | B25: =-PMT($B$31,24,NPV($B$31,LC!C25:Y25)) -> 136783.2339 | C25: =IFERROR(C9/(C17*1000),0) -> 0 | D25: =IFERROR(D9/(D17),0) -> 219900.7974 | E25: 144512.6461 | F25: 120582.2966 | G25: 125162.8022 | H25: 129576.9835 | I25: 133795.7619 | J25: 137874.8521 | K25: 141823.7451 | L25: 145641.9403 | M25: 149328.9395 | N25: 151081.8303 | O25: 152839.8198 | P25: 154610.12 | Q25: 156389.3359 | R25: 158177.3943 | S25: 159974.8199 | T25: 161781.5078 | U25: 163597.3357 | V25: 165422.1575 | W25: 167255.8543 | X25: 169098.2947 | Y25: 170949.364
A31: WA Discount Factor | B31: 0.0658
A32: ID Discount Factor | B32: 0.0656
A33: OR Discount Factor | B33: 0.0671

Sheet DLC-Smart TS
A1: State Income Tax Rate ............ | D1: 0.0164024 | I1: Debt ........................... | L1: 0.5 | M1: 0.052 | N1: =ROUND(L1*M1,4) -> 0.026 | O1: =N1*(1-D2) -> 0.02054 | Q1: Gross Revenue | T1: 1
A2: Federal Income Tax Rate ........ | D2: 0.21 | I2: Preferred Stock ................. | L2: 0 | M2: 0 | N2: =ROUND(L2*M2,4) -> 0 | O2: =N2 -> 0 | Q2: Uncollectables | T2: 0
A3: Discount Factor ...................... | D3: =+O4 -> 0.06804 | I3: Common Equity ...................... | L3: 0.5 | M3: 0.095 | N3: =ROUND(L3*M3,4) -> 0.0475 | O3: =N3 -> 0.0475 | Q3: Commission Fees | T3: 0
A4: Capital Class ........................... | D4: 4 | E4: (1) General Structures. | N4: =SUM(N1:N3) -> 0.0735 | O4: =SUM(O1:O3) -> 0.06804 | Q4: Excise Tax | T4: 0
E5: (2) Generation, Transmission, | Q5: Franchise Fees | T5: 0
E6: and Distribution. | Q6: ERSA | T6: 0
E7: (3) Other Equipment. | N7: IRR CALC | T7: -
E8: (4) Transportation Equipment. | I8: Principal ...................... | L8: =T24 -> 5.892654519e-52 | N8: =L8 -> 5.892654519e-52 | O8: pv princ | Q8: Misc. Revenue Items | T8: =SUM(T2:T6) -> 0
A9: Book Life (Years) .............. | D9: 10 | I9: Interest ....................... | L9: =D3 -> 0.06804 | N9: =V20 -> 0 | O9: pv lvlized margin | T9: -
A10: Property Tax Rate ............... | D10: 0.015 | I10: Term ............................. | L10: 10 | N10: =IRR($AI$28:$AI$102,0.059065190478108) ->  | O10: IRR | Q10: Before State Income Tax | T10: =T1-T8 -> 1
A11: O&M Escalation Factor .......... | D11: 0.03 | I11: Levelized Gr. Mar. Requirement ....... | L11: =PMT($L$9,$L$10,-$L$8) -> 8.313963366e-53 | Q11: State Income Tax | T11: 0
T12: -
B13: Idaho | C13: Oregon | D13: Washington | Q13: Before Federal Income Tax | T13: =T10-T11 -> 1
A14: Electric | B14: 0.35 | C14: 0 | D14: 0.65 | E14: =SUM(B14:D14) -> 1 | K14: Lev ROE | L14: =PMT(L9,L10,-L15) -> 10140.35615 | Q14: Federal Income Tax | T14: =T13*D2 -> 0.21 | V14: (v) | W14: (w) | X14: (x) | Y14: (y) | Z14: (z) | AA14: (aa) | AB14: (ab) | AC14: (ac) | AD14: (ad) | AE14: (ae) | AF14: (af) | AG14: (ag) | AH14: (ah)
A15: Gas | B15: 0 | C15: 0 | D15: 0 | E15: =SUM(B15:D15) -> 0 | K15: NPV equity | L15: =NPV(L9,$M$28:$M$103) -> 71871.39616 | T15: - | V15: PV GM
B16: =SUM(B14:B15) -> 0.35 | C16: =SUM(C14:C15) -> 0 | D16: 0.65 | E16: 1 | Q16: Conversion Factor | T16: =T13-T14 -> 0.79 | V16: =NPV(O4,$V$29:$V$103)+V28 -> 0
A17: ...................................................................................................................................................................................................................... | V17: TERM
B18: Capital Additions | V18: =L10 -> 10 | AD18: pv of contribution to fixed costs | AG18: =NPV(O4,20,AG28:AG28) -> 18.72589042
B19: ----------------- | D19: Rate | E19: Accum. | G19: Book Dep. | I19: Rate | K19: Average | P19: Misc. | Q19: State | R19: Federal | S19: Total | T19: Present Val | V19: LEVELIZED | AE19: Interest ....................... | AG19: =O4 -> 0.06804 | AL19: Inter.
B20: Tax | C20: Book | D20: Base | E20: Book | F20: Tax | G20: on Tax | H20: Deferred | I20: Base | J20: Book | K20: Rate | L20: Interest | M20: Equity | N20: O&M & A&G | O20: Property | P20: Revenue | Q20: Income | R20: Income | S20: Gross Marg | T20: Gross Marg | V20: =PMT(L9,V18,-V16) -> 0 | AE20: Term ............................. | AG20: 50 | AH20: per kwh | AL20: Revenue | AN20: Net Book
B21: Basis | C21: Basis | D21: BOP | E21: Deprec. | F21: Deprec. | G21: Basis | H21: Taxes | I21: EOP | J21: Deprec. | K21: Base | L21: Expense | M21: Return | N21: Expense | O21: Taxes | P21: Items | Q21: Tax | R21: Taxes | S21: Reqmnt | T21: Reqmnt | AD21: levelized cont. to fixed costs | AG21: =PMT(AG19,AG20,-AG18) -> 1.323347304 | AH21: =AG21/(400*1000) -> 3.308368259e-06 | AL21: Requirement | AN21: BOP
A22: (a) | B22: (b) | C22: (c) | D22: (d) | E22: (e) | F22: (f) | G22: (g) | H22: (h) | I22: (i) | J22: (j) | K22: (k) | L22: (l) | M22: (m) | N22: (n) | O22: (o) | P22: (p) | Q22: (q) | R22: (r) | S22: (s) | T22: (t) | W22: - | X22: - | Y22: - | Z22: - | AA22: - | AB22: - | AC22: - | AD22: - | AE22: - | AF22: - | AG22: - | AH22: -
B23: - | C23: - | D23: - | E23: - | F23: - | G23: - | H23: - | I23: - | J23: - | K23: - | L23: - | M23: - | N23: - | O23: - | P23: - | Q23: - | R23: - | S23: - | T23: - | Z23: RES LOAD @ | AG23: ANNUAL | AH23: CUMULATIVE | AL23: - | AN23: -
A24: Total => | B24: =SUM(B25:B104) -> 618138.3763 | C24: =SUM(C25:C104) -> 618138.3763 | F24: =SUM(F25:F104) -> 618138.3763 | G24: =SUM(G25:G104) -> 618138.3763 | H24: =SUM(H25:H104) -> -5.513811629e-12 | J24: =SUM(J25:J104) -> 618138.3763 | L24: =SUM(L25:L104) -> 71239.99292 | M24: 130149.9871 | N24: 7324860.797 | O24: 50996.41605 | P24: 0 | Q24: 532.3825211 | R24: 6704.295451 | S24: 8528315.925 | T24: 5.892654519e-52 | V24: Offsets | X24: NEW | Y24: CUML | Z24: 12000 | AA24: COMM | AB24: COMM | AC24: TOTAL | AD24: TOTAL | AE24: REVENUE | AF24: ESTIMATED | AG24: (SHORTFALL) | AH24: (SHORTFALL)
A25: Period | B25: - | C25: - | D25: - | E25: - | F25: - | G25: - | H25: - | I25: - | J25: - | K25: - | L25: - | M25: - | N25: - | O25: - | P25: - | Q25: - | R25: - | S25: - | T25: - | W25: YR | X25: CUST | Y25: CUST | Z25: KWH EA | AA25: CUST | AB25: LOAD | AC25: CUST | AD25: LOAD | AE25: REQ | AF25: MARGIN | AG25: EXCESS | AH25: EXCESS | AI25: 0.05906519048 | AL25: - | AN25: -
W26: - | X26: - | Y26: - | Z26: - | AA26: - | AB26: - | AC26: - | AD26: - | AE26: - | AF26: - | AG26: - | AH26: - | AJ26: =NPV(AI25,$AI$28:$AI$103) -> 0
S27: =-PMT(O4,20,NPV(O4,S28:S51)) -> 325693.6779
A28: 2023 | B28: =HLOOKUP($A28,'AEG Input File'!$AC$2:$AZ$8,4,FALSE)*Inflation!$B4/100 -> 0 | C28: =B28 -> 0 | D28: =I27+C28 -> 0 | E28: =E27+J28 -> 0 | F28: =CA137 -> 0 | G28: =CA229 -> 0 | H28: =(F28-G28)*$D$2 -> 0 | I28: =D28-J28-H28 -> 0 | J28: =CA323 -> 0 | K28: =(+I28+D28)/2 -> 0 | L28: =IF(A28=1,$N$1*K28,$N$1*K28) -> 0 | M28: =IF(A28=1,($N$3+$N$2)*K28,($N$3+$N$2)*K28) -> 0 | N28: =HLOOKUP($A28,'AEG Input File'!$BA$2:$BX$8,4,FALSE)*Inflation!$B4/100 -> 0 | O28: =AN28*$D$10 -> 0 | P28: =AL28*$T$8 -> 0 | Q28: =(+AL28-(G28+L28+N28+O28+P28))*$D$1 -> 0 | R28: =(+AL28-(G28+L28+N28+O28+P28+Q28))*$D$2 -> 0 | S28: =J28+M28+L28+N28+O28+P28+Q28+R28 -> 0 | T28: =S28/(1+$D$3)^(A28-1) -> 0 | V28: 0 | W28: =1+W27 -> 1 | X28: 0 | Y28: =+X28 -> 0 | Z28: =X28*$Z$24 -> 0 | AA28: 0 | AB28: 0 | AC28: =Y28+AA28 -> 0 | AD28: 0 | AE28: =S28 -> 0 | AF28: =V28 -> 0 | AG28: =AF28-AE28 -> 0 | AH28: =AF28-AE28 -> 0 | AI28: =IF(A28=1,AF28-T24,AF28) -> 0 | AL28: =(+J28+L28+M28+N28+O28-(($D$1+(1-$D$1)*$D$2)*(G28+L28+N28+O28)))/$T$16 -> 0 | AN28: =C28-J27+AN27 -> 0
A29: =1+A28 -> 2024 | B29: =HLOOKUP($A29,'AEG Input File'!$AC$2:$AZ$8,4,FALSE)*Inflation!$B5/100 -> 40530.30923 | C29: =B29 -> 40530.30923 | D29: =I28+C29 -> 40530.30923 | E29: 4053.030923 | F29: 8106.061847 | G29: =CA230 -> 4053.030923 | H29: 851.1364939 | I29: 35626.14182 | J29: 4053.030923 | K29: 38078.22553 | L29: =IF(A29=1,$N$1*K29,$N$1*K29) -> 990.0338637 | M29: 1808.715712 | N29: =HLOOKUP($A29,'AEG Input File'!$BA$2:$BX$8,4,FALSE)*Inflation!$B5/100 -> 54462.09507 | O29: 607.9546385 | P29: =AL29*$T$8 -> 0 | Q29: 21.38076149 | R29: 269.2480244 | S29: 62212.45899 | T29: =S29/(1+$D$3)^(A29-1) -> 9.148044182e-54 | V29: 0 | W29: =1+W28 -> 2 | X29: 0 | Y29: =+X29 -> 0 | Z29: =X29*$Z$24 -> 0 | AA29: 0 | AB29: 0 | AC29: 0 | AD29: 0 | AE29: 62212.45899 | AF29: 0 | AG29: -62212.45899 | AH29: =AF29-AE29 -> -62212.45899 | AI29: =IF(A29=1,AF29-T25,AF29) -> 0 | AL29: =(+J29+L29+M29+N29+O29-(($D$1+(1-$D$1)*$D$2)*(G29+L29+N29+O29)))/$T$16 -> 61416.6287 | AN29: =C29-J28+AN28 -> 40530.30923
A30: 2025 | B30: =HLOOKUP($A30,'AEG Input File'!$AC$2:$AZ$8,4,FALSE)*Inflation!$B6/100 -> 82062.11448 | C30: 82062.11448 | D30: 117688.2563 | E30: 16312.2733 | F30: 29382.12185 | G30: 12259.24237 | H30: 3595.804691 | I30: 101833.2092 | J30: 12259.24237 | K30: 109760.7328 | L30: 2853.779052 | M30: 5213.634806 | N30: =HLOOKUP($A30,'AEG Input File'!$BA$2:$BX$8,4,FALSE)*Inflation!$B6/100 -> 101117.4847 | O30: 1778.090892 | P30: 0 | Q30: 76.49937508 | R30: 963.35697 | S30: 124262.0882 | T30: 1.710810927e-53 | V30: 0 | W30: 3 | X30: 0 | Y30: 0 | Z30: 0 | AA30: 0 | AB30: 0 | AC30: 0 | AD30: 0 | AE30: 124262.0882 | AF30: 0 | AG30: -124262.0882 | AH30: -124262.0882 | AI30: 0 | AL30: 122672.5105 | AN30: 118539.3928
A31: 2026 | B31: =HLOOKUP($A31,'AEG Input File'!$AC$2:$AZ$8,4,FALSE)*Inflation!$B7/100 -> 167570.3639 | C31: 167570.3639 | D31: 269403.5732 | E31: 45328.55206 | F31: 67555.76879 | G31: 29016.27876 | H31: 8093.292906 | I31: 232294.0015 | J31: 29016.27876 | K31: 250848.7873 | L31: 6522.068471 | M31: 11915.3174 | N31: =HLOOKUP($A31,'AEG Input File'!$BA$2:$BX$8,4,FALSE)*Inflation!$B7/100 -> 197383.7 | O31: 4107.757715 | P31: 0 | Q31: 183.6219579 | R31: 2312.35213 | S31: 251441.0964 | T31: 3.241246879e-53 | V31: 0 | W31: 4 | X31: 0 | Y31: 0 | Z31: 0 | AA31: 0 | AB31: 0 | AC31: 0 | AD31: 0 | AE31: 251441.0964 | AF31: 0 | AG31: -251441.0964 | AH31: -251441.0964 | AI31: 0 | AL31: 248224.6275 | AN31: 273850.5144
A32: 2027 | B32: =HLOOKUP($A32,'AEG Input File'!$AC$2:$AZ$8,4,FALSE)*Inflation!$B8/100 -> 91641.62357 | C32: 91641.62357 | D32: 323935.6251 | E32: 83508.99318 | F32: 92375.85878 | G32: 38180.44112 | H32: 11381.03771 | I32: 274374.1462 | J32: 38180.44112 | K32: 299154.8857 | L32: 7778.027027 | M32: 14209.85707 | N32: =HLOOKUP($A32,'AEG Input File'!$BA$2:$BX$8,4,FALSE)*Inflation!$B8/100 -> 251726.7014 | O32: 5047.137887 | P32: 0 | Q32: 213.5858928 | R32: 2689.688096 | S32: 319845.4385 | T32: 3.860366099e-53 | V32: 0 | W32: 5 | X32: 0 | Y32: 0 | Z32: 0 | AA32: 0 | AB32: 0 | AC32: 0 | AD32: 0 | AE32: 319845.4385 | AF32: 0 | AG32: -319845.4385 | AH32: -319845.4385 | AI32: 0 | AL32: 315753.9319 | AN32: 336475.8592
A33: 2028 | B33: =HLOOKUP($A33,'AEG Input File'!$AC$2:$AZ$8,4,FALSE)*Inflation!$B9/100 -> 52249.41401 | C33: 52249.41401 | D33: 326623.5602 | E33: 126914.3757 | F33: 86071.35943 | G33: 43405.38252 | H33: 8959.855151 | I33: 274258.3226 | J33: 43405.38252 | K33: 300440.9414 | L33: 7811.464477 | M33: 14270.94472 | N33: =HLOOKUP($A33,'AEG Input File'!$BA$2:$BX$8,4,FALSE)*Inflation!$B9/100 -> 284526.9962 | O33: 5258.172481 | P33: 0 | Q33: 204.5581935 | R33: 2576.002239 | S33: 358053.5208 | T33: 4.046213196e-53 | V33: 0 | W33: 6 | X33: 0 | Y33: 0 | Z33: 0 | AA33: 0 | AB33: 0 | AC33: 0 | AD33: 0 | AE33: 358053.5208 | AF33: 0 | AG33: -358053.5208 | AH33: -358053.5208 | AI33: 0 | AL33: 353473.2512 | AN33: 350544.832
A34: 2029 | B34: =HLOOKUP($A34,'AEG Input File'!$AC$2:$AZ$8,4,FALSE)*Inflation!$B10/100 -> 9515.398491 | C34: 9515.398491 | D34: 283773.7211 | E34: 171271.2981 | F34: 67310.29123 | G34: 44356.92237 | H34: 4820.207461 | I34: 234596.5912 | J34: 44356.92237 | K34: 259185.1562 | L34: 6738.81406 | M34: 12311.29492 | N34: =HLOOKUP($A34,'AEG Input File'!$BA$2:$BX$8,4,FALSE)*Inflation!$B10/100 -> 293355.8839 | O34: 4749.82272 | P34: 0 | Q34: 161.664939 | R34: 2035.847295 | S34: 363710.2502 | T34: 3.84829925e-53 | V34: 0 | W34: 7 | X34: 0 | Y34: 0 | Z34: 0 | AA34: 0 | AB34: 0 | AC34: 0 | AD34: 0 | AE34: 363710.2502 | AF34: 0 | AG34: -363710.2502 | AH34: -363710.2502 | AI34: 0 | AL34: 359057.6189 | AN34: 316654.848
A35: 2030 | B35: =HLOOKUP($A35,'AEG Input File'!$AC$2:$AZ$8,4,FALSE)*Inflation!$B11/100 -> 9805.378051 | C35: 9805.378051 | D35: 244401.9693 | E35: 216608.7583 | F35: 49625.88937 | G35: 45337.46018 | H35: 900.5701309 | I35: 198163.939 | J35: 45337.46018 | K35: 221282.9541 | L35: 5753.356807 | M35: 10510.94032 | N35: =HLOOKUP($A35,'AEG Input File'!$BA$2:$BX$8,4,FALSE)*Inflation!$B11/100 -> 302464.5798 | O35: 4231.549555 | P35: 0 | Q35: 121.9751869 | R35: 1536.03407 | S35: 369955.896 | T35: 3.66501478e-53 | V35: 0 | W35: 8 | X35: 0 | Y35: 0 | Z35: 0 | AA35: 0 | AB35: 0 | AC35: 0 | AD35: 0 | AE35: 369955.896 | AF35: 0 | AG35: -369955.896 | AH35: -369955.896 | AI35: 0 | AL35: 365223.3695 | AN35: 282103.3037
A36: 2031 | B36: =HLOOKUP($A36,'AEG Input File'!$AC$2:$AZ$8,4,FALSE)*Inflation!$B12/100 -> 8889.352536 | C36: 8889.352536 | D36: 207053.2915 | E36: 262835.1537 | F36: 32970.84849 | G36: 46226.39543 | H36: -2783.664858 | I36: 163610.5609 | J36: 46226.39543 | K36: 185331.9262 | L36: 4818.630082 | M36: 8803.266496 | N36: =HLOOKUP($A36,'AEG Input File'!$BA$2:$BX$8,4,FALSE)*Inflation!$B12/100 -> 311798.7281 | O36: 3684.827941 | P36: 0 | Q36: 84.16771666 | R36: 1059.924429 | S36: 376475.9402 | T36: 3.492010058e-53 | V36: 0 | W36: 9 | X36: 0 | Y36: 0 | Z36: 0 | AA36: 0 | AB36: 0 | AC36: 0 | AD36: 0 | AE36: 376475.9402 | AF36: 0 | AG36: -376475.9402 | AH36: -376475.9402 | AI36: 0 | AL36: 371660.0085 | AN36: 245655.1961
A37: 2032 | B37: =HLOOKUP($A37,'AEG Input File'!$AC$2:$AZ$8,4,FALSE)*Inflation!$B13/100 -> 9150.374688 | C37: 9150.374688 | D37: 172760.9356 | E37: 309976.5866 | F37: 18951.16425 | G37: 47141.4329 | H37: -5919.956416 | I37: 131539.4591 | J37: 47141.4329 | K37: 152150.1974 | L37: 3955.905132 | M37: 7227.134376 | N37: =HLOOKUP($A37,'AEG Input File'!$BA$2:$BX$8,4,FALSE)*Inflation!$B13/100 -> 321426.3729 | O37: 3128.68763 | P37: 0 | Q37: 48.98856355 | R37: 616.9131982 | S37: 383545.4347 | T37: 3.330945745e-53 | V37: 0 | W37: 10 | X37: 0 | Y37: 0 | Z37: 0 | AA37: 0 | AB37: 0 | AC37: 0 | AD37: 0 | AE37: 383545.4347 | AF37: 0 | AG37: -383545.4347 | AH37: -383545.4347 | AI37: 0 | AL37: 378639.069 | AN37: 208579.1753
A38: 2033 | B38: =HLOOKUP($A38,'AEG Input File'!$AC$2:$AZ$8,4,FALSE)*Inflation!$B14/100 -> 9419.402985 | C38: 9419.402985 | D38: 140958.8621 | E38: 358059.9598 | F38: 11754.07589 | G38: 48083.3732 | H38: -7629.152435 | I38: 100504.6414 | J38: 48083.3732 | K38: 120731.7517 | L38: 3139.025545 | M38: 5734.758208 | N38: =HLOOKUP($A38,'AEG Input File'!$BA$2:$BX$8,4,FALSE)*Inflation!$B14/100 -> 331356.8623 | O38: 2562.857181 | P38: 0 | Q38: 15.44995406 | R38: 194.56134 | S38: 391086.8877 | T38: 3.180068525e-53 | V38: 0 | W38: 11 | X38: 0 | Y38: 0 | Z38: 0 | AA38: 0 | AB38: 0 | AC38: 0 | AD38: 0 | AE38: 391086.8877 | AF38: 0 | AG38: -391086.8877 | AH38: -391086.8877 | AI38: 0 | AL38: 386084.0507 | AN38: 170857.1454
A39: 2034 | B39: =HLOOKUP($A39,'AEG Input File'!$AC$2:$AZ$8,4,FALSE)*Inflation!$B15/100 -> 9696.694215 | C39: 9696.694215 | D39: 110201.3356 | E39: 403059.9715 | F39: 9412.139655 | G39: 45000.0117 | H39: -7473.453129 | I39: 72674.77701 | J39: 45000.0117 | K39: 91438.0563 | L39: 2377.389464 | M39: 4343.307674 | N39: =HLOOKUP($A39,'AEG Input File'!$BA$2:$BX$8,4,FALSE)*Inflation!$B15/100 -> 341599.8376 | O39: 1987.056996 | P39: 0 | Q39: -15.00647293 | R39: -188.9765802 | S39: 395103.6204 | T39: 3.008061521e-53 | V39: 0 | W39: 12 | X39: 0 | Y39: 0 | Z39: 0 | AA39: 0 | AB39: 0 | AC39: 0 | AD39: 0 | AE39: 395103.6204 | AF39: 0 | AG39: -395103.6204 | AH39: -395103.6204 | AI39: 0 | AL39: 390049.4008 | AN39: 132470.4664
A40: 2035 | B40: =HLOOKUP($A40,'AEG Input File'!$AC$2:$AZ$8,4,FALSE)*Inflation!$B16/100 -> 9982.513172 | C40: 9982.513172 | D40: 82657.29019 | E40: 440852.023 | F40: 9550.936508 | G40: 37792.05157 | H40: -5930.634162 | I40: 50795.87278 | J40: 37792.05157 | K40: 66726.58149 | L40: 1734.891119 | M40: 3169.512621 | N40: =HLOOKUP($A40,'AEG Input File'!$BA$2:$BX$8,4,FALSE)*Inflation!$B16/100 -> 352165.2581 | O40: 1461.794518 | P40: 0 | Q40: -39.96654385 | R40: -503.2988641 | S40: 395780.2426 | T40: 2.821254711e-53 | V40: 0 | W40: 13 | X40: 0 | Y40: 0 | Z40: 0 | AA40: 0 | AB40: 0 | AC40: 0 | AD40: 0 | AE40: 395780.2426 | AF40: 0 | AG40: -395780.2426 | AH40: -395780.2426 | AI40: 0 | AL40: 390717.3675 | AN40: 97452.96789
A41: 2036 | B41: =HLOOKUP($A41,'AEG Input File'!$AC$2:$AZ$8,4,FALSE)*Inflation!$B17/100 -> 10277.12483 | C41: 10277.12483 | D41: 61072.99761 | E41: 462914.7507 | F41: 9762.859565 | G41: 22062.72766 | H41: -2582.972299 | I41: 41593.24226 | J41: 22062.72766 | K41: 51333.11994 | L41: 1334.661118 | M41: 2438.323197 | N41: =HLOOKUP($A41,'AEG Input File'!$BA$2:$BX$8,4,FALSE)*Inflation!$B17/100 -> 363063.3871 | O41: 1049.070617 | P41: 0 | Q41: -53.62939277 | R41: -675.3551812 | S41: 389219.1851 | T41: 2.597735371e-53 | V41: 0 | W41: 14 | X41: 0 | Y41: 0 | Z41: 0 | AA41: 0 | AB41: 0 | AC41: 0 | AD41: 0 | AE41: 389219.1851 | AF41: 0 | AG41: -389219.1851 | AH41: -389219.1851 | AI41: 0 | AL41: 384240.24 | AN41: 69938.04116
A42: 2037 | B42: =HLOOKUP($A42,'AEG Input File'!$AC$2:$AZ$8,4,FALSE)*Inflation!$B18/100 -> 10580.80752 | C42: 10580.80752 | D42: 52174.04977 | E42: 476871.3967 | F42: 10050.71996 | G42: 13956.64605 | H42: -820.2444793 | I42: 39037.6482 | J42: 13956.64605 | K42: 45605.84899 | L42: 1185.752074 | M42: 2166.277827 | N42: =HLOOKUP($A42,'AEG Input File'!$BA$2:$BX$8,4,FALSE)*Inflation!$B18/100 -> 374304.8387 | O42: 876.8418152 | P42: 0 | Q42: -60.03488082 | R42: -756.0195206 | S42: 391674.3021 | T42: 2.447587513e-53 | V42: 0 | W42: 15 | X42: 0 | Y42: 0 | Z42: 0 | AA42: 0 | AB42: 0 | AC42: 0 | AD42: 0 | AE42: 391674.3021 | AF42: 0 | AG42: -391674.3021 | AH42: -391674.3021 | AI42: 0 | AL42: 386663.9508 | AN42: 58456.12102
A43: 2038 | B43: =HLOOKUP($A43,'AEG Input File'!$AC$2:$AZ$8,4,FALSE)*Inflation!$B19/100 -> 10893.85919 | C43: 10893.85919 | D43: 49931.50739 | E43: 486692.4873 | F43: 10347.44051 | G43: 9821.090567 | H43: 110.5334886 | I43: 39999.88333 | J43: 9821.090567 | K43: 44965.69536 | L43: 1169.108079 | M43: 2135.87053 | N43: =HLOOKUP($A43,'AEG Input File'!$BA$2:$BX$8,4,FALSE)*Inflation!$B19/100 -> 385900.5462 | O43: 830.9000123 | P43: 0 | Q43: -62.65644507 | R43: -789.0328909 | S43: 399005.826 | T43: 2.334559084e-53 | V43: 0 | W43: 16 | X43: 0 | Y43: 0 | Z43: 0 | AA43: 0 | AB43: 0 | AC43: 0 | AD43: 0 | AE43: 399005.826 | AF43: 0 | AG43: -399005.826 | AH43: -399005.826 | AI43: 0 | AL43: 393901.6889 | AN43: 55393.33415
A44: 2039 | B44: =HLOOKUP($A44,'AEG Input File'!$AC$2:$AZ$8,4,FALSE)*Inflation!$B20/100 -> 11216.55901 | C44: 11216.55901 | D44: 51216.44234 | E44: 496683.6939 | F44: 10653.30167 | G44: 9991.206619 | H44: 139.0399605 | I44: 41086.19576 | J44: 9991.206619 | K44: =(+I44+D44)/2 -> 46151.31905 | L44: 1199.934295 | M44: 2192.187655 | N44: =HLOOKUP($A44,'AEG Input File'!$BA$2:$BX$8,4,FALSE)*Inflation!$B20/100 -> 397861.8183 | O44: 851.8320389 | P44: 0 | Q44: -64.76489715 | R44: =(+AL44-(G44+L44+N44+O44+P44+Q44))*$D$2 -> -815.5846372 | S44: 411216.6293 | T44: 2.252728137e-53 | V44: 0 | W44: 17 | X44: 0 | Y44: 0 | Z44: 0 | AA44: 0 | AB44: 0 | AC44: =Y44+AA44 -> 0 | AD44: 0 | AE44: 411216.6293 | AF44: 0 | AG44: -411216.6293 | AH44: -411216.6293 | AI44: 0 | AL44: 405956.2899 | AN44: 56788.80259
A45: 2040 | B45: =HLOOKUP($A45,'AEG Input File'!$AC$2:$AZ$8,4,FALSE)*Inflation!$B21/100 -> 11549.23144 | C45: 11549.23144 | D45: 52635.42721 | E45: 506849.2859 | F45: 10968.5927 | G45: 10165.59196 | H45: 168.6301558 | I45: 42301.20509 | J45: 10165.59196 | K45: 47468.31615 | L45: 1234.17622 | M45: 2254.745017 | N45: =HLOOKUP($A45,'AEG Input File'!$BA$2:$BX$8,4,FALSE)*Inflation!$B21/100 -> 410200.292 | O45: 875.2024113 | P45: 0 | Q45: -66.84799154 | R45: -841.8170541 | S45: 423821.3425 | T45: 2.173869249e-53 | V45: 0 | W45: 18 | X45: 0 | Y45: 0 | Z45: 0 | AA45: 0 | AB45: 0 | AC45: 0 | AD45: 0 | AE45: 423821.3425 | AF45: 0 | AG45: -423821.3425 | AH45: -423821.3425 | AI45: 0 | AL45: 418399.7619 | AN45: 58346.82742
A46: 2041 | B46: =HLOOKUP($A46,'AEG Input File'!$AC$2:$AZ$8,4,FALSE)*Inflation!$B22/100 -> 11892.19109 | C46: 11892.19109 | D46: 54193.39618 | E46: 517315.1617 | F46: 11293.6156 | G46: 10465.87581 | H46: 173.825356 | I46: 43553.69501 | J46: 10465.87581 | K46: 48873.5456 | L46: 1270.712186 | M46: 2321.493416 | N46: =HLOOKUP($A46,'AEG Input File'!$BA$2:$BX$8,4,FALSE)*Inflation!$B22/100 -> 422928.0233 | O46: 901.1013983 | P46: 0 | Q46: -68.98396382 | R46: -868.7153625 | S46: 436949.5068 | T46: 2.098429252e-53 | V46: 0 | W46: 19 | X46: 0 | Y46: 0 | Z46: 0 | AA46: 0 | AB46: 0 | AC46: 0 | AD46: 0 | AE46: 436949.5068 | AF46: 0 | AG46: -436949.5068 | AH46: -436949.5068 | AI46: 0 | AL46: 431359.9889 | AN46: 60073.42655
A47: 2042 | B47: =HLOOKUP($A47,'AEG Input File'!$AC$2:$AZ$8,4,FALSE)*Inflation!$B23/100 -> 12245.75608 | C47: 12245.75608 | D47: 55799.45109 | E47: 528090.5757 | F47: 11628.67949 | G47: 10775.41395 | H47: 179.185763 | I47: =D47-J47-H47 -> 44844.85138 | J47: 10775.41395 | K47: 50322.15123 | L47: 1308.375932 | M47: 2390.302184 | N47: =HLOOKUP($A47,'AEG Input File'!$BA$2:$BX$8,4,FALSE)*Inflation!$B23/100 -> 436057.4131 | O47: 927.7996022 | P47: 0 | Q47: -71.1882275 | R47: -896.4736648 | S47: 450491.6428 | T47: 2.025640161e-53 | V47: 0 | W47: 20 | X47: 0 | Y47: 0 | Z47: 0 | AA47: 0 | AB47: 0 | AC47: 0 | AD47: 0 | AE47: 450491.6428 | AF47: 0 | AG47: -450491.6428 | AH47: -450491.6428 | AI47: 0 | AL47: 444728.8921 | AN47: 61853.30681
A48: 2043 | B48: =HLOOKUP($A48,'AEG Input File'!$AC$2:$AZ$8,4,FALSE)*Inflation!$B24/100 -> 12610.26915 | C48: 12610.26915 | D48: =I47+C48 -> 57455.12052 | E48: 539185.0762 | F48: 11974.10181 | G48: 11094.50057 | H48: 184.7162612 | I48: 46175.90369 | J48: 11094.50057 | K48: 51815.51211 | L48: 1347.203315 | M48: 2461.236825 | N48: =HLOOKUP($A48,'AEG Input File'!$BA$2:$BX$8,4,FALSE)*Inflation!$B24/100 -> 449601.2884 | O48: 955.3224301 | P48: 0 | Q48: -73.46296916 | R48: -925.1194967 | S48: 464460.9691 | T48: 1.955407453e-53 | V48: 0 | W48: 21 | X48: 0 | Y48: 0 | Z48: 0 | AA48: 0 | AB48: 0 | AC48: 0 | AD48: 0 | AE48: 464460.9691 | AF48: 0 | AG48: -464460.9691 | AH48: -464460.9691 | AI48: 0 | AL48: 458519.5208 | AN48: 63688.16201
A49: 2044 | B49: =HLOOKUP($A49,'AEG Input File'!$AC$2:$AZ$8,4,FALSE)*Inflation!$B25/100 -> 12986.08687 | C49: 12986.08687 | D49: 59161.99056 | E49: 550608.5161 | F49: 12330.21434 | G49: 11423.43983 | H49: 190.4226467 | I49: 47548.12808 | J49: 11423.43983 | K49: 53355.05932 | L49: 1387.231542 | M49: 2534.365318 | N49: =HLOOKUP($A49,'AEG Input File'!$BA$2:$BX$8,4,FALSE)*Inflation!$B25/100 -> 463572.8714 | O49: 983.6962246 | P49: 0 | Q49: -75.81043359 | R49: -954.6811267 | S49: 478871.1128 | T49: 1.887639965e-53 | V49: 0 | W49: 22 | X49: 0 | Y49: 0 | Z49: 0 | AA49: 0 | AB49: 0 | AC49: 0 | AD49: 0 | AE49: 478871.1128 | AF49: 0 | AG49: -478871.1128 | AH49: -478871.1128 | AI49: 0 | AL49: 472745.328 | AN49: 65579.74831
A50: 2045 | B50: =HLOOKUP($A50,'AEG Input File'!$AC$2:$AZ$8,4,FALSE)*Inflation!$B26/100 -> 13373.55179 | C50: 13373.55179 | D50: 60921.67986 | E50: 562371.0598 | F50: 12697.35708 | G50: 11762.5437 | H50: 196.3108099 | I50: 48962.82536 | J50: 11762.5437 | K50: 54942.25261 | L50: 1428.498568 | M50: 2609.756999 | N50: =HLOOKUP($A50,'AEG Input File'!$BA$2:$BX$8,4,FALSE)*Inflation!$B26/100 -> 477985.8186 | O50: 1012.947904 | P50: 0 | Q50: -78.23295671 | R50: -985.1879711 | S50: 493736.1449 | T50: 1.822249869e-53 | V50: 0 | W50: 23 | X50: 0 | Y50: 0 | Z50: 0 | AA50: 0 | AB50: 0 | AC50: 0 | AD50: 0 | AE50: 493736.1449 | AF50: 0 | AG50: -493736.1449 | AH50: -493736.1449 | AI50: 0 | AL50: 487420.2046 | AN50: 67529.86026
A51: 2046 | B51: ='AEG Input File'!$AZ$532*Inflation!B26/100 -> 0 | C51: 0 | D51: 48962.82536 | E51: 573105.891 | F51: 10321.26956 | G51: 10734.83121 | H51: -86.84794639 | I51: 38314.84209 | J51: 10734.83121 | K51: 43638.83373 | L51: 1134.609677 | M51: 2072.844602 | N51: ='AEG Input File'!$BX$532*Inflation!$B$26/100 -> 0 | O51: 836.5097485 | P51: 0 | Q51: 39.61910888 | R51: 498.9236139 | S51: 15317.33796 | T51: 5.293083956e-55 | V51: 0 | W51: 24 | X51: 0 | Y51: 0 | Z51: 0 | AA51: 0 | AB51: 0 | AC51: 0 | AD51: 0 | AE51: 15317.33796 | AF51: 0 | AG51: -15317.33796 | AH51: -15317.33796 | AI51: 0 | AL51: 15121.39648 | AN51: 55767.31656
A52: 2047 | B52: 0 | C52: 0 | D52: 38314.84209 | E52: 582782.6414 | F52: 6221.777706 | G52: 9676.750461 | H52: -725.5442785 | I52: 29363.63591 | J52: 9676.750461 | K52: 33839.239 | L52: 879.8202141 | M52: 1607.363853 | N52: 0 | O52: 675.4872803 | P52: 0 | Q52: 30.3510843 | R52: 382.2113393 | S52: 13251.98423 | T52: 4.287645591e-55 | V52: 0 | W52: 25 | X52: 0 | Y52: 0 | Z52: 0 | AA52: 0 | AB52: 0 | AC52: 0 | AD52: 0 | AE52: 13251.98423 | AF52: 0 | AG52: -13251.98423 | AH52: -13251.98423 | AI52: 0 | AL52: 13082.46304 | AN52: 45032.48535
A53: 2048 | B53: 0 | C53: 0 | D53: 29363.63591 | E53: 591370.006 | F53: 3762.981876 | G53: 8587.364542 | H53: -1013.12036 | I53: 21789.39173 | J53: 8587.364542 | K53: 25576.51382 | L53: 664.9893593 | M53: 1214.884406 | N53: 0 | O53: 530.3360234 | P53: 0 | Q53: 22.5921535 | R53: 284.5030893 | S53: 11304.66957 | T53: 3.424587952e-55 | V53: 0 | W53: 26 | X53: 0 | Y53: 0 | Z53: 0 | AA53: 0 | AB53: 0 | AC53: 0 | AD53: 0 | AE53: 11304.66957 | AF53: 0 | AG53: -11304.66957 | AH53: -11304.66957 | AI53: 0 | AL53: 11160.05869 | AN53: 35355.73489
A54: 2049 | B54: 0 | C54: 0 | D54: 21789.39173 | E54: 598835.7146 | F54: 2288.631769 | G54: 7465.708641 | H54: -1087.186143 | I54: 15410.86923 | J54: 7465.708641 | K54: 18600.13048 | L54: 483.6033925 | M54: 883.5061978 | N54: 0 | O54: 401.5255552 | P54: 0 | Q54: 16.09712669 | R54: 202.7111878 | S54: 9453.152101 | T54: 2.681264013e-55 | V54: 0 | W54: 27 | X54: 0 | Y54: 0 | Z54: 0 | AA54: 0 | AB54: 0 | AC54: 0 | AD54: 0 | AE54: 9453.152101 | AF54: 0 | AG54: -9453.152101 | AH54: -9453.152101 | AI54: 0 | AL54: 9332.226086 | AN54: 26768.37035
A55: 2050 | B55: 0 | C55: 0 | D55: 15410.86923 | E55: 605146.5001 | F55: 770.3165829 | G55: 6310.785497 | H55: -1163.498472 | I55: 10263.58221 | J55: 6310.785497 | K55: 12837.22572 | L55: 333.7678687 | M55: 609.7682217 | N55: 0 | O55: 289.5399256 | P55: 0 | Q55: 10.79479238 | R55: 135.9388683 | S55: 7690.595173 | T55: 2.042374439e-55 | V55: 0 | W55: 28 | X55: 0 | Y55: 0 | Z55: 0 | AA55: 0 | AB55: 0 | AC55: 0 | AD55: 0 | AE55: 7690.595173 | AF55: 0 | AG55: -7690.595173 | AH55: -7690.595173 | AI55: 0 | AL55: 7592.216028 | AN55: 19302.66171
A56: 2051 | B56: 0 | C56: 0 | D56: 10263.58221 | E56: 610268.0665 | F56: 0 | G56: 5121.566388 | H56: -1075.528941 | I56: 6217.544761 | J56: 5121.566388 | K56: 8240.563484 | L56: 214.2546506 | M56: 391.4267655 | N56: 0 | O56: 194.8781432 | P56: 0 | Q56: 6.639038345 | R56: 83.60543935 | S56: 6012.370425 | T56: 1.494973957e-55 | V56: 0 | W56: 29 | X56: 0 | Y56: 0 | Z56: 0 | AA56: 0 | AB56: 0 | AC56: 0 | AD56: 0 | AE56: 6012.370425 | AF56: 0 | AG56: -6012.370425 | AH56: -6012.370425 | AI56: 0 | AL56: 5935.45936 | AN56: 12991.87621
A57: 2052 | B57: 0 | C57: 0 | D57: 6217.544761 | E57: 614165.0573 | F57: 0 | G57: 3896.99078 | H57: -818.3680638 | I57: 3138.922045 | J57: 3896.99078 | K57: 4678.233403 | L57: 121.6340685 | M57: 222.2160866 | N57: 0 | O57: 118.0546474 | P57: 0 | Q57: 3.50084155 | R57: 44.08611318 | S57: 4406.482537 | T57: 1.025870243e-55 | V57: 0 | W57: 30 | X57: 0 | Y57: 0 | Z57: 0 | AA57: 0 | AB57: 0 | AC57: 0 | AD57: 0 | AE57: 4406.482537 | AF57: 0 | AG57: -4406.482537 | AH57: -4406.482537 | AI57: 0 | AL57: 4350.11421 | AN57: 7870.309824
A58: 2053 | B58: 0 | C58: 0 | D58: 3138.922045 | E58: 616801.0211 | F58: 0 | G58: 2635.963865 | H58: -553.5524117 | I58: 1056.510591 | J58: 2635.963865 | K58: 2097.716318 | L58: 54.54062427 | M58: 99.6415251 | N58: 0 | O58: 59.59978566 | P58: 0 | Q58: 1.328925768 | R58: 16.7351681 | S58: 2867.809894 | T58: 6.251197495e-56 | V58: 0 | W58: 31 | X58: 0 | Y58: 0 | Z58: 0 | AA58: 0 | AB58: 0 | AC58: 0 | AD58: 0 | AE58: 2867.809894 | AF58: 0 | AG58: -2867.809894 | AH58: -2867.809894 | AI58: 0 | AL58: 2831.124478 | AN58: 3973.319044
A59: 2054 | B59: 0 | C59: 0 | D59: 1056.510591 | E59: 618138.3763 | F59: 0 | G59: 1337.355179 | H59: -280.8445875 | I59: 8.697043086e-12 | J59: 1337.355179 | K59: 528.2552955 | L59: 13.73463768 | M59: 25.09212654 | N59: 0 | O59: 20.06032768 | P59: 0 | Q59: 0.1520835838 | R59: 1.915189245 | S59: 1398.309543 | T59: 2.853833717e-56 | V59: 0 | W59: 32 | X59: 0 | Y59: 0 | Z59: 0 | AA59: 0 | AB59: 0 | AC59: 0 | AD59: 0 | AE59: 1398.309543 | AF59: 0 | AG59: -1398.309543 | AH59: -1398.309543 | AI59: 0 | AL59: 1380.422176 | AN59: 1337.355179
A60: 2055 | B60: 0 | C60: 0 | D60: 8.697043086e-12 | E60: 618138.3763 | F60: 0 | G60: 0 | H60: 0 | I60: 8.697043086e-12 | J60: 0 | K60: 8.697043086e-12 | L60: 2.261231202e-13 | M60: 4.131095466e-13 | N60: 0 | O60: -7.912603905e-13 | P60: 0 | Q60: 8.729243845e-15 | R60: 1.099274065e-13 | S60: -3.337107342e-14 | T60: -6.376876429e-73 | V60: 0 | W60: 33 | X60: 0 | Y60: 0 | Z60: 0 | AA60: 0 | AB60: 0 | AC60: 0 | AD60: 0 | AE60: -3.337107342e-14 | AF60: 0 | AG60: 3.337107342e-14 | AH60: 3.337107342e-14 | AI60: 0 | AL60: -3.294418608e-14 | AN60: -5.27506927e-11
A61: 2056 | B61: 0 | C61: 0 | D61: 8.697043086e-12 | E61: 618138.3763 | F61: 0 | G61: 0 | H61: 0 | I61: 8.697043086e-12 | J61: 0 | K61: 8.697043086e-12 | L61: 2.261231202e-13 | M61: 4.131095466e-13 | N61: 0 | O61: -7.912603905e-13 | P61: 0 | Q61: 8.729243845e-15 | R61: 1.099274065e-13 | S61: -3.337107342e-14 | T61: -5.970634461e-73 | V61: 0 | W61: 34 | X61: 0 | Y61: 0 | Z61: 0 | AA61: 0 | AB61: 0 | AC61: 0 | AD61: 0 | AE61: -3.337107342e-14 | AF61: 0 | AG61: 3.337107342e-14 | AH61: 3.337107342e-14 | AI61: 0 | AL61: -3.294418608e-14 | AN61: -5.27506927e-11
A62: 2057 | B62: 0 | C62: 0 | D62: 8.697043086e-12 | E62: 618138.3763 | F62: 0 | G62: 0 | H62: 0 | I62: 8.697043086e-12 | J62: 0 | K62: 8.697043086e-12 | L62: 2.261231202e-13 | M62: 4.131095466e-13 | N62: 0 | O62: -7.912603905e-13 | P62: 0 | Q62: 8.729243845e-15 | R62: 1.099274065e-13 | S62: -3.337107342e-14 | T62: -5.590272331e-73 | V62: 0 | W62: 35 | X62: 0 | Y62: 0 | Z62: 0 | AA62: 0 | AB62: 0 | AC62: 0 | AD62: 0 | AE62: -3.337107342e-14 | AF62: 0 | AG62: 3.337107342e-14 | AH62: 3.337107342e-14 | AI62: 0 | AL62: -3.294418608e-14 | AN62: -5.27506927e-11
A63: 2058 | B63: 0 | C63: 0 | D63: 8.697043086e-12 | E63: 618138.3763 | F63: 0 | G63: 0 | H63: 0 | I63: 8.697043086e-12 | J63: 0 | K63: 8.697043086e-12 | L63: 2.261231202e-13 | M63: 4.131095466e-13 | N63: 0 | O63: -7.912603905e-13 | P63: 0 | Q63: 8.729243845e-15 | R63: 1.099274065e-13 | S63: -3.337107342e-14 | T63: -5.234141353e-73 | V63: 0 | W63: 36 | X63: 0 | Y63: 0 | Z63: 0 | AA63: 0 | AB63: 0 | AC63: 0 | AD63: 0 | AE63: -3.337107342e-14 | AF63: 0 | AG63: 3.337107342e-14 | AH63: 3.337107342e-14 | AI63: 0 | AL63: -3.294418608e-14 | AN63: -5.27506927e-11
A64: 2059 | B64: 0 | C64: 0 | D64: 8.697043086e-12 | E64: 618138.3763 | F64: 0 | G64: 0 | H64: 0 | I64: 8.697043086e-12 | J64: 0 | K64: 8.697043086e-12 | L64: 2.261231202e-13 | M64: 4.131095466e-13 | N64: 0 | O64: -7.912603905e-13 | P64: 0 | Q64: 8.729243845e-15 | R64: 1.099274065e-13 | S64: -3.337107342e-14 | T64: -4.90069787e-73 | V64: 0 | W64: 37 | X64: 0 | Y64: 0 | Z64: 0 | AA64: 0 | AB64: 0 | AC64: 0 | AD64: 0 | AE64: -3.337107342e-14 | AF64: 0 | AG64: 3.337107342e-14 | AH64: 3.337107342e-14 | AI64: 0 | AL64: -3.294418608e-14 | AN64: -5.27506927e-11
A65: 2060 | B65: 0 | C65: 0 | D65: 8.697043086e-12 | E65: 618138.3763 | F65: 0 | G65: 0 | H65: 0 | I65: 8.697043086e-12 | J65: 0 | K65: 8.697043086e-12 | L65: 2.261231202e-13 | M65: 4.131095466e-13 | N65: 0 | O65: -7.912603905e-13 | P65: 0 | Q65: 8.729243845e-15 | R65: 1.099274065e-13 | S65: -3.337107342e-14 | T65: -4.588496564e-73 | V65: 0 | W65: 38 | X65: 0 | Y65: 0 | Z65: 0 | AA65: 0 | AB65: 0 | AC65: 0 | AD65: 0 | AE65: -3.337107342e-14 | AF65: 0 | AG65: 3.337107342e-14 | AH65: 3.337107342e-14 | AI65: 0 | AL65: -3.294418608e-14 | AN65: -5.27506927e-11
A66: 2061 | B66: 0 | C66: 0 | D66: 8.697043086e-12 | E66: 618138.3763 | F66: 0 | G66: 0 | H66: 0 | I66: 8.697043086e-12 | J66: 0 | K66: 8.697043086e-12 | L66: 2.261231202e-13 | M66: 4.131095466e-13 | N66: 0 | O66: -7.912603905e-13 | P66: 0 | Q66: 8.729243845e-15 | R66: 1.099274065e-13 | S66: -3.337107342e-14 | T66: -4.296184192e-73 | V66: 0 | W66: 39 | X66: 0 | Y66: 0 | Z66: 0 | AA66: 0 | AB66: 0 | AC66: 0 | AD66: 0 | AE66: -3.337107342e-14 | AF66: 0 | AG66: 3.337107342e-14 | AH66: 3.337107342e-14 | AI66: 0 | AL66: -3.294418608e-14 | AN66: -5.27506927e-11
A67: 2062 | B67: 0 | C67: 0 | D67: 8.697043086e-12 | E67: 618138.3763 | F67: 0 | G67: 0 | H67: 0 | I67: 8.697043086e-12 | J67: 0 | K67: 8.697043086e-12 | L67: 2.261231202e-13 | M67: 4.131095466e-13 | N67: 0 | O67: -7.912603905e-13 | P67: 0 | Q67: 8.729243845e-15 | R67: 1.099274065e-13 | S67: -3.337107342e-14 | T67: -4.022493719e-73 | V67: 0 | W67: 40 | X67: 0 | Y67: 0 | Z67: 0 | AA67: 0 | AB67: 0 | AC67: 0 | AD67: 0 | AE67: -3.337107342e-14 | AF67: 0 | AG67: 3.337107342e-14 | AH67: 3.337107342e-14 | AI67: 0 | AL67: -3.294418608e-14 | AN67: -5.27506927e-11
A68: 2063 | B68: 0 | C68: 0 | D68: 8.697043086e-12 | E68: 618138.3763 | F68: 0 | G68: 0 | H68: 0 | I68: 8.697043086e-12 | J68: 0 | K68: 8.697043086e-12 | L68: 2.261231202e-13 | M68: 4.131095466e-13 | N68: 0 | O68: -7.912603905e-13 | P68: 0 | Q68: 8.729243845e-15 | R68: 1.099274065e-13 | S68: -3.337107342e-14 | T68: -3.766238829e-73 | V68: 0 | W68: 41 | X68: 0 | Y68: 0 | Z68: 0 | AA68: 0 | AB68: 0 | AC68: 0 | AD68: 0 | AE68: -3.337107342e-14 | AF68: 0 | AG68: 3.337107342e-14 | AH68: 3.337107342e-14 | AI68: 0 | AL68: -3.294418608e-14 | AN68: -5.27506927e-11
A69: 2064 | B69: 0 | C69: 0 | D69: 8.697043086e-12 | E69: 618138.3763 | F69: 0 | G69: 0 | H69: 0 | I69: 8.697043086e-12 | J69: 0 | K69: 8.697043086e-12 | L69: 2.261231202e-13 | M69: 4.131095466e-13 | N69: 0 | O69: -7.912603905e-13 | P69: 0 | Q69: 8.729243845e-15 | R69: 1.099274065e-13 | S69: -3.337107342e-14 | T69: -3.52630878e-73 | V69: 0 | W69: 42 | X69: 0 | Y69: 0 | Z69: 0 | AA69: 0 | AB69: 0 | AC69: 0 | AD69: 0 | AE69: -3.337107342e-14 | AF69: 0 | AG69: 3.337107342e-14 | AH69: 3.337107342e-14 | AI69: 0 | AL69: -3.294418608e-14 | AN69: -5.27506927e-11
A70: 2065 | B70: 0 | C70: 0 | D70: 8.697043086e-12 | E70: 618138.3763 | F70: 0 | G70: 0 | H70: 0 | I70: 8.697043086e-12 | J70: 0 | K70: 8.697043086e-12 | L70: 2.261231202e-13 | M70: 4.131095466e-13 | N70: 0 | O70: -7.912603905e-13 | P70: 0 | Q70: 8.729243845e-15 | R70: 1.099274065e-13 | S70: -3.337107342e-14 | T70: -3.301663589e-73 | V70: 0 | W70: 43 | X70: 0 | Y70: 0 | Z70: 0 | AA70: 0 | AB70: 0 | AC70: 0 | AD70: 0 | AE70: -3.337107342e-14 | AF70: 0 | AG70: 3.337107342e-14 | AH70: 3.337107342e-14 | AI70: 0 | AL70: -3.294418608e-14 | AN70: -5.27506927e-11
A71: 2066 | B71: 0 | C71: 0 | D71: 8.697043086e-12 | E71: 618138.3763 | F71: 0 | G71: 0 | H71: 0 | I71: 8.697043086e-12 | J71: 0 | K71: 8.697043086e-12 | L71: 2.261231202e-13 | M71: 4.131095466e-13 | N71: 0 | O71: -7.912603905e-13 | P71: 0 | Q71: 8.729243845e-15 | R71: 1.099274065e-13 | S71: -3.337107342e-14 | T71: -3.091329528e-73 | V71: 0 | W71: 44 | X71: 0 | Y71: 0 | Z71: 0 | AA71: 0 | AB71: 0 | AC71: 0 | AD71: 0 | AE71: -3.337107342e-14 | AF71: 0 | AG71: 3.337107342e-14 | AH71: 3.337107342e-14 | AI71: 0 | AL71: -3.294418608e-14 | AN71: -5.27506927e-11
A72: 2067 | B72: 0 | C72: 0 | D72: 8.697043086e-12 | E72: 618138.3763 | F72: 0 | G72: 0 | H72: 0 | I72: 8.697043086e-12 | J72: 0 | K72: 8.697043086e-12 | L72: 2.261231202e-13 | M72: 4.131095466e-13 | N72: 0 | O72: -7.912603905e-13 | P72: 0 | Q72: 8.729243845e-15 | R72: 1.099274065e-13 | S72: -3.337107342e-14 | T72: -2.894394899e-73 | V72: 0 | W72: 45 | X72: 0 | Y72: 0 | Z72: 0 | AA72: 0 | AB72: 0 | AC72: 0 | AD72: 0 | AE72: -3.337107342e-14 | AF72: 0 | AG72: 3.337107342e-14 | AH72: 3.337107342e-14 | AI72: 0 | AL72: -3.294418608e-14 | AN72: -5.27506927e-11
A73: 2068 | B73: 0 | C73: 0 | D73: 8.697043086e-12 | E73: 618138.3763 | F73: 0 | G73: 0 | H73: 0 | I73: 8.697043086e-12 | J73: 0 | K73: 8.697043086e-12 | L73: 2.261231202e-13 | M73: 4.131095466e-13 | N73: 0 | O73: -7.912603905e-13 | P73: 0 | Q73: 8.729243845e-15 | R73: 1.099274065e-13 | S73: -3.337107342e-14 | T73: -2.710006085e-73 | V73: 0 | W73: 46 | X73: 0 | Y73: 0 | Z73: 0 | AA73: 0 | AB73: 0 | AC73: 0 | AD73: 0 | AE73: -3.337107342e-14 | AF73: 0 | AG73: 3.337107342e-14 | AH73: 3.337107342e-14 | AI73: 0 | AL73: -3.294418608e-14 | AN73: -5.27506927e-11
A74: 2069 | B74: 0 | C74: 0 | D74: 8.697043086e-12 | E74: 618138.3763 | F74: 0 | G74: 0 | H74: 0 | I74: 8.697043086e-12 | J74: 0 | K74: 8.697043086e-12 | L74: 2.261231202e-13 | M74: 4.131095466e-13 | N74: 0 | O74: -7.912603905e-13 | P74: 0 | Q74: 8.729243845e-15 | R74: 1.099274065e-13 | S74: -3.337107342e-14 | T74: -2.537363849e-73 | V74: 0 | W74: 47 | X74: 0 | Y74: 0 | Z74: 0 | AA74: 0 | AB74: 0 | AC74: 0 | AD74: 0 | AE74: -3.337107342e-14 | AF74: 0 | AG74: 3.337107342e-14 | AH74: 3.337107342e-14 | AI74: 0 | AL74: -3.294418608e-14 | AN74: -5.27506927e-11
A75: 2070 | B75: 0 | C75: 0 | D75: 8.697043086e-12 | E75: 618138.3763 | F75: 0 | G75: 0 | H75: 0 | I75: 8.697043086e-12 | J75: 0 | K75: 8.697043086e-12 | L75: 2.261231202e-13 | M75: 4.131095466e-13 | N75: 0 | O75: -7.912603905e-13 | P75: 0 | Q75: 8.729243845e-15 | R75: 1.099274065e-13 | S75: -3.337107342e-14 | T75: -2.375719869e-73 | V75: 0 | W75: 48 | X75: 0 | Y75: 0 | Z75: 0 | AA75: 0 | AB75: 0 | AC75: 0 | AD75: 0 | AE75: -3.337107342e-14 | AF75: 0 | AG75: 3.337107342e-14 | AH75: 3.337107342e-14 | AI75: 0 | AL75: -3.294418608e-14 | AN75: -5.27506927e-11
A76: 2071 | B76: 0 | C76: 0 | D76: 8.697043086e-12 | E76: 618138.3763 | F76: 0 | G76: 0 | H76: 0 | I76: 8.697043086e-12 | J76: 0 | K76: 8.697043086e-12 | L76: 2.261231202e-13 | M76: 4.131095466e-13 | N76: 0 | O76: -7.912603905e-13 | P76: 0 | Q76: 8.729243845e-15 | R76: 1.099274065e-13 | S76: -3.337107342e-14 | T76: -2.224373496e-73 | V76: 0 | W76: 49 | X76: 0 | Y76: 0 | Z76: 0 | AA76: 0 | AB76: 0 | AC76: 0 | AD76: 0 | AE76: -3.337107342e-14 | AF76: 0 | AG76: 3.337107342e-14 | AH76: 3.337107342e-14 | AI76: 0 | AL76: -3.294418608e-14 | AN76: -5.27506927e-11
A77: 2072 | B77: 0 | C77: 0 | D77: 8.697043086e-12 | E77: 618138.3763 | F77: 0 | G77: 0 | H77: 0 | I77: 8.697043086e-12 | J77: 0 | K77: 8.697043086e-12 | L77: 2.261231202e-13 | M77: 4.131095466e-13 | N77: 0 | O77: -7.912603905e-13 | P77: 0 | Q77: 8.729243845e-15 | R77: 1.099274065e-13 | S77: -3.337107342e-14 | T77: -2.082668717e-73 | V77: 0 | W77: 50 | X77: 0 | Y77: 0 | Z77: 0 | AA77: 0 | AB77: 0 | AC77: 0 | AD77: 0 | AE77: -3.337107342e-14 | AF77: 0 | AG77: 3.337107342e-14 | AH77: 3.337107342e-14 | AI77: 0 | AL77: -3.294418608e-14 | AN77: -5.27506927e-11
A78: 2073 | B78: 0 | C78: 0 | D78: 8.697043086e-12 | E78: 618138.3763 | F78: 0 | G78: 0 | H78: 0 | I78: 8.697043086e-12 | J78: 0 | K78: 8.697043086e-12 | L78: 2.261231202e-13 | M78: 4.131095466e-13 | N78: 0 | O78: -7.912603905e-13 | P78: 0 | Q78: 8.729243845e-15 | R78: 1.099274065e-13 | S78: -3.337107342e-14 | T78: -1.949991308e-73 | V78: 0 | W78: 51 | X78: 0 | Y78: 0 | Z78: 0 | AA78: 0 | AB78: 0 | AC78: 0 | AD78: 0 | AE78: -3.337107342e-14 | AF78: 0 | AG78: 3.337107342e-14 | AH78: 3.337107342e-14 | AI78: 0 | AL78: -3.294418608e-14 | AN78: -5.27506927e-11
A79: 2074 | B79: 0 | C79: 0 | D79: 8.697043086e-12 | E79: 618138.3763 | F79: 0 | G79: 0 | H79: 0 | I79: 8.697043086e-12 | J79: 0 | K79: 8.697043086e-12 | L79: 2.261231202e-13 | M79: 4.131095466e-13 | N79: 0 | O79: -7.912603905e-13 | P79: 0 | Q79: 8.729243845e-15 | R79: 1.099274065e-13 | S79: -3.337107342e-14 | T79: -1.825766177e-73 | V79: 0 | W79: 52 | X79: 0 | Y79: 0 | Z79: 0 | AA79: 0 | AB79: 0 | AC79: 0 | AD79: 0 | AE79: -3.337107342e-14 | AF79: 0 | AG79: 3.337107342e-14 | AH79: 3.337107342e-14 | AI79: 0 | AL79: -3.294418608e-14 | AN79: -5.27506927e-11
A80: 2075 | B80: 0 | C80: 0 | D80: 8.697043086e-12 | E80: 618138.3763 | F80: 0 | G80: 0 | H80: 0 | I80: 8.697043086e-12 | J80: 0 | K80: 8.697043086e-12 | L80: 2.261231202e-13 | M80: 4.131095466e-13 | N80: 0 | O80: -7.912603905e-13 | P80: 0 | Q80: 8.729243845e-15 | R80: 1.099274065e-13 | S80: -3.337107342e-14 | T80: -1.709454868e-73 | V80: 0 | W80: 53 | X80: 0 | Y80: 0 | Z80: 0 | AA80: 0 | AB80: 0 | AC80: 0 | AD80: 0 | AE80: -3.337107342e-14 | AF80: 0 | AG80: 3.337107342e-14 | AH80: 3.337107342e-14 | AI80: 0 | AL80: -3.294418608e-14 | AN80: -5.27506927e-11
A81: 2076 | B81: 0 | C81: 0 | D81: 8.697043086e-12 | E81: 618138.3763 | F81: 0 | G81: 0 | H81: 0 | I81: 8.697043086e-12 | J81: 0 | K81: 8.697043086e-12 | L81: 2.261231202e-13 | M81: 4.131095466e-13 | N81: 0 | O81: -7.912603905e-13 | P81: 0 | Q81: 8.729243845e-15 | R81: 1.099274065e-13 | S81: -3.337107342e-14 | T81: -1.600553227e-73 | V81: 0 | W81: 54 | X81: 0 | Y81: 0 | Z81: 0 | AA81: 0 | AB81: 0 | AC81: 0 | AD81: 0 | AE81: -3.337107342e-14 | AF81: 0 | AG81: 3.337107342e-14 | AH81: 3.337107342e-14 | AI81: 0 | AL81: -3.294418608e-14 | AN81: -5.27506927e-11
A82: 2077 | B82: 0 | C82: 0 | D82: 8.697043086e-12 | E82: 618138.3763 | F82: 0 | G82: 0 | H82: 0 | I82: 8.697043086e-12 | J82: 0 | K82: 8.697043086e-12 | L82: 2.261231202e-13 | M82: 4.131095466e-13 | N82: 0 | O82: -7.912603905e-13 | P82: 0 | Q82: 8.729243845e-15 | R82: 1.099274065e-13 | S82: -3.337107342e-14 | T82: -1.498589216e-73 | V82: 0 | W82: 55 | X82: 0 | Y82: 0 | Z82: 0 | AA82: 0 | AB82: 0 | AC82: 0 | AD82: 0 | AE82: -3.337107342e-14 | AF82: 0 | AG82: 3.337107342e-14 | AH82: 3.337107342e-14 | AI82: 0 | AL82: -3.294418608e-14 | AN82: -5.27506927e-11
A83: 2078 | B83: 0 | C83: 0 | D83: 8.697043086e-12 | E83: 618138.3763 | F83: 0 | G83: 0 | H83: 0 | I83: 8.697043086e-12 | J83: 0 | K83: 8.697043086e-12 | L83: 2.261231202e-13 | M83: 4.131095466e-13 | N83: 0 | O83: -7.912603905e-13 | P83: 0 | Q83: 8.729243845e-15 | R83: 1.099274065e-13 | S83: -3.337107342e-14 | T83: -1.403120872e-73 | V83: 0 | W83: 56 | X83: 0 | Y83: 0 | Z83: 0 | AA83: 0 | AB83: 0 | AC83: 0 | AD83: 0 | AE83: -3.337107342e-14 | AF83: 0 | AG83: 3.337107342e-14 | AH83: 3.337107342e-14 | AI83: 0 | AL83: -3.294418608e-14 | AN83: -5.27506927e-11
A84: 2079 | B84: 0 | C84: 0 | D84: 8.697043086e-12 | E84: 618138.3763 | F84: 0 | G84: 0 | H84: 0 | I84: 8.697043086e-12 | J84: 0 | K84: 8.697043086e-12 | L84: 2.261231202e-13 | M84: 4.131095466e-13 | N84: 0 | O84: -7.912603905e-13 | P84: 0 | Q84: 8.729243845e-15 | R84: 1.099274065e-13 | S84: -3.337107342e-14 | T84: -1.313734385e-73 | V84: 0 | W84: 57 | X84: 0 | Y84: 0 | Z84: 0 | AA84: 0 | AB84: 0 | AC84: 0 | AD84: 0 | AE84: -3.337107342e-14 | AF84: 0 | AG84: 3.337107342e-14 | AH84: 3.337107342e-14 | AI84: 0 | AL84: -3.294418608e-14 | AN84: -5.27506927e-11
A85: 2080 | B85: 0 | C85: 0 | D85: 8.697043086e-12 | E85: 618138.3763 | F85: 0 | G85: 0 | H85: 0 | I85: 8.697043086e-12 | J85: 0 | K85: 8.697043086e-12 | L85: 2.261231202e-13 | M85: 4.131095466e-13 | N85: 0 | O85: -7.912603905e-13 | P85: 0 | Q85: 8.729243845e-15 | R85: 1.099274065e-13 | S85: -3.337107342e-14 | T85: -1.230042306e-73 | V85: 0 | W85: 58 | X85: 0 | Y85: 0 | Z85: 0 | AA85: 0 | AB85: 0 | AC85: 0 | AD85: 0 | AE85: -3.337107342e-14 | AF85: 0 | AG85: 3.337107342e-14 | AH85: 3.337107342e-14 | AI85: 0 | AL85: -3.294418608e-14 | AN85: -5.27506927e-11
A86: 2081 | B86: 0 | C86: 0 | D86: 8.697043086e-12 | E86: 618138.3763 | F86: 0 | G86: 0 | H86: 0 | I86: 8.697043086e-12 | J86: 0 | K86: 8.697043086e-12 | L86: 2.261231202e-13 | M86: 4.131095466e-13 | N86: 0 | O86: -7.912603905e-13 | P86: 0 | Q86: 8.729243845e-15 | R86: 1.099274065e-13 | S86: -3.337107342e-14 | T86: -1.151681872e-73 | V86: 0 | W86: 59 | X86: 0 | Y86: 0 | Z86: 0 | AA86: 0 | AB86: 0 | AC86: 0 | AD86: 0 | AE86: -3.337107342e-14 | AF86: 0 | AG86: 3.337107342e-14 | AH86: 3.337107342e-14 | AI86: 0 | AL86: -3.294418608e-14 | AN86: -5.27506927e-11
A87: 2082 | B87: 0 | C87: 0 | D87: 8.697043086e-12 | E87: 618138.3763 | F87: 0 | G87: 0 | H87: 0 | I87: 8.697043086e-12 | J87: 0 | K87: 8.697043086e-12 | L87: 2.261231202e-13 | M87: 4.131095466e-13 | N87: 0 | O87: -7.912603905e-13 | P87: 0 | Q87: 8.729243845e-15 | R87: 1.099274065e-13 | S87: -3.337107342e-14 | T87: -1.078313426e-73 | V87: 0 | W87: 60 | X87: 0 | Y87: 0 | Z87: 0 | AA87: 0 | AB87: 0 | AC87: 0 | AD87: 0 | AE87: -3.337107342e-14 | AF87: 0 | AG87: 3.337107342e-14 | AH87: 3.337107342e-14 | AI87: 0 | AL87: -3.294418608e-14 | AN87: -5.27506927e-11
A88: 2083 | B88: 0 | C88: 0 | D88: 8.697043086e-12 | E88: 618138.3763 | F88: 0 | G88: 0 | H88: 0 | I88: 8.697043086e-12 | J88: 0 | K88: 8.697043086e-12 | L88: 2.261231202e-13 | M88: =IF(A88=1,($N$3+$N$2)*K88,($N$3+$N$2)*K88) -> 4.131095466e-13 | N88: 0 | O88: -7.912603905e-13 | P88: 0 | Q88: 8.729243845e-15 | R88: 1.099274065e-13 | S88: -3.337107342e-14 | T88: -1.009618953e-73 | V88: 0 | W88: 61 | X88: 0 | Y88: 0 | Z88: 0 | AA88: 0 | AB88: 0 | AC88: 0 | AD88: 0 | AE88: -3.337107342e-14 | AF88: 0 | AG88: 3.337107342e-14 | AH88: 3.337107342e-14 | AI88: 0 | AL88: -3.294418608e-14 | AN88: -5.27506927e-11
A89: 2084 | B89: 0 | C89: 0 | D89: 8.697043086e-12 | E89: 618138.3763 | F89: 0 | G89: 0 | H89: 0 | I89: 8.697043086e-12 | J89: 0 | K89: 8.697043086e-12 | L89: 2.261231202e-13 | M89: =IF(A89=1,($N$3+$N$2)*K89,($N$3+$N$2)*K89) -> 4.131095466e-13 | N89: 0 | O89: -7.912603905e-13 | P89: 0 | Q89: 8.729243845e-15 | R89: 1.099274065e-13 | S89: -3.337107342e-14 | T89: -9.453006934e-74 | V89: 0 | W89: 62 | X89: 0 | Y89: 0 | Z89: 0 | AA89: 0 | AB89: 0 | AC89: 0 | AD89: 0 | AE89: -3.337107342e-14 | AF89: 0 | AG89: 3.337107342e-14 | AH89: 3.337107342e-14 | AI89: 0 | AL89: -3.294418608e-14 | AN89: -5.27506927e-11
A90: 2085 | B90: 0 | C90: 0 | D90: 8.697043086e-12 | E90: 618138.3763 | F90: 0 | G90: 0 | H90: 0 | I90: 8.697043086e-12 | J90: 0 | K90: 8.697043086e-12 | L90: 2.261231202e-13 | M90: 4.131095466e-13 | N90: 0 | O90: -7.912603905e-13 | P90: 0 | Q90: 8.729243845e-15 | R90: 1.099274065e-13 | S90: -3.337107342e-14 | T90: -8.850798598e-74 | V90: 0 | W90: 63 | X90: 0 | Y90: 0 | Z90: 0 | AA90: 0 | AB90: 0 | AC90: 0 | AD90: 0 | AE90: -3.337107342e-14 | AF90: 0 | AG90: 3.337107342e-14 | AH90: 3.337107342e-14 | AI90: 0 | AL90: -3.294418608e-14 | AN90: -5.27506927e-11
A91: 2086 | B91: 0 | C91: 0 | D91: 8.697043086e-12 | E91: 618138.3763 | F91: 0 | G91: 0 | H91: 0 | I91: 8.697043086e-12 | J91: 0 | K91: 8.697043086e-12 | L91: 2.261231202e-13 | M91: 4.131095466e-13 | N91: 0 | O91: -7.912603905e-13 | P91: 0 | Q91: 8.729243845e-15 | R91: 1.099274065e-13 | S91: -3.337107342e-14 | T91: -8.286954232e-74 | V91: 0 | W91: 64 | X91: 0 | Y91: 0 | Z91: 0 | AA91: 0 | AB91: 0 | AC91: 0 | AD91: 0 | AE91: -3.337107342e-14 | AF91: 0 | AG91: 3.337107342e-14 | AH91: 3.337107342e-14 | AI91: 0 | AL91: -3.294418608e-14 | AN91: -5.27506927e-11
A92: =1+A91 -> 2087 | B92: 0 | C92: 0 | D92: =I91+C92 -> 8.697043086e-12 | E92: =E91+J92 -> 618138.3763 | F92: =CA201 -> 0 | G92: 0 | H92: =(F92-G92)*$D$2 -> 0 | I92: =D92-J92-H92 -> 8.697043086e-12 | J92: =CA387 -> 0 | K92: =(+I92+D92)/2 -> 8.697043086e-12 | L92: 2.261231202e-13 | M92: 4.131095466e-13 | N92: 0 | O92: =AN92*$D$10 -> -7.912603905e-13 | P92: 0 | Q92: =(+AL92-(G92+L92+N92+O92+P92))*$D$1 -> 8.729243845e-15 | R92: =(+AL92-(G92+L92+N92+O92+P92+Q92))*$D$2 -> 1.099274065e-13 | S92: =J92+M92+L92+N92+O92+P92+Q92+R92 -> -3.337107342e-14 | T92: -7.759029841e-74 | V92: 0 | W92: 65 | X92: 0 | Y92: 0 | Z92: 0 | AA92: 0 | AB92: 0 | AC92: 0 | AD92: 0 | AE92: =S92 -> -3.337107342e-14 | AF92: =V92 -> 0 | AG92: =AF92-AE92 -> 3.337107342e-14 | AH92: 3.337107342e-14 | AI92: 0 | AL92: -3.294418608e-14 | AN92: -5.27506927e-11
A93: 2088 | B93: 0 | C93: =B93 -> 0 | D93: 8.697043086e-12 | E93: 618138.3763 | F93: 0 | G93: =CA294 -> 0 | H93: 0 | I93: 8.697043086e-12 | J93: 0 | K93: 8.697043086e-12 | L93: =IF(A93=1,$N$1*K93,$N$1*K93) -> 2.261231202e-13 | M93: 4.131095466e-13 | N93: 0 | O93: -7.912603905e-13 | P93: =AL93*$T$8 -> 0 | Q93: 8.729243845e-15 | R93: 1.099274065e-13 | S93: -3.337107342e-14 | T93: =S93/(1+$D$3)^(A93-1) -> -7.264737127e-74 | V93: 0 | W93: =1+W92 -> 66 | X93: 0 | Y93: =+X93 -> 0 | Z93: =X93*$Z$24 -> 0 | AA93: 0 | AB93: 0 | AC93: 0 | AD93: 0 | AE93: -3.337107342e-14 | AF93: 0 | AG93: 3.337107342e-14 | AH93: =AF93-AE93 -> 3.337107342e-14 | AI93: =IF(A93=1,AF93-T89,AF93) -> 0 | AL93: =(+J93+L93+M93+N93+O93-(($D$1+(1-$D$1)*$D$2)*(G93+L93+N93+O93)))/$T$16 -> -3.294418608e-14 | AN93: =C93-J92+AN92 -> -5.27506927e-11
A94: 2089 | B94: 0 | C94: 0 | D94: 8.697043086e-12 | E94: 618138.3763 | F94: 0 | G94: 0 | H94: 0 | I94: 8.697043086e-12 | J94: 0 | K94: 8.697043086e-12 | L94: 2.261231202e-13 | M94: 4.131095466e-13 | N94: 0 | O94: -7.912603905e-13 | P94: 0 | Q94: 8.729243845e-15 | R94: 1.099274065e-13 | S94: -3.337107342e-14 | T94: -6.801933567e-74 | V94: 0 | W94: 67 | X94: 0 | Y94: 0 | Z94: 0 | AA94: 0 | AB94: 0 | AC94: 0 | AD94: 0 | AE94: -3.337107342e-14 | AF94: 0 | AG94: 3.337107342e-14 | AH94: 3.337107342e-14 | AI94: 0 | AL94: -3.294418608e-14 | AN94: -5.27506927e-11
A95: 2090 | B95: 0 | C95: 0 | D95: 8.697043086e-12 | E95: 618138.3763 | F95: 0 | G95: 0 | H95: 0 | I95: 8.697043086e-12 | J95: 0 | K95: 8.697043086e-12 | L95: 2.261231202e-13 | M95: 4.131095466e-13 | N95: 0 | O95: -7.912603905e-13 | P95: 0 | Q95: 8.729243845e-15 | R95: 1.099274065e-13 | S95: -3.337107342e-14 | T95: -6.36861313e-74 | V95: 0 | W95: 68 | X95: 0 | Y95: 0 | Z95: 0 | AA95: 0 | AB95: 0 | AC95: 0 | AD95: 0 | AE95: -3.337107342e-14 | AF95: 0 | AG95: 3.337107342e-14 | AH95: 3.337107342e-14 | AI95: 0 | AL95: -3.294418608e-14 | AN95: -5.27506927e-11
A96: 2091 | B96: 0 | C96: 0 | D96: 8.697043086e-12 | E96: 618138.3763 | F96: 0 | G96: 0 | H96: 0 | I96: 8.697043086e-12 | J96: 0 | K96: 8.697043086e-12 | L96: 2.261231202e-13 | M96: 4.131095466e-13 | N96: 0 | O96: -7.912603905e-13 | P96: 0 | Q96: 8.729243845e-15 | R96: 1.099274065e-13 | S96: -3.337107342e-14 | T96: -5.962897579e-74 | V96: 0 | W96: 69 | X96: 0 | Y96: 0 | Z96: 0 | AA96: 0 | AB96: 0 | AC96: 0 | AD96: 0 | AE96: -3.337107342e-14 | AF96: 0 | AG96: 3.337107342e-14 | AH96: 3.337107342e-14 | AI96: 0 | AL96: -3.294418608e-14 | AN96: -5.27506927e-11
A97: 2092 | B97: 0 | C97: 0 | D97: 8.697043086e-12 | E97: 618138.3763 | F97: 0 | G97: 0 | H97: 0 | I97: 8.697043086e-12 | J97: 0 | K97: 8.697043086e-12 | L97: 2.261231202e-13 | M97: 4.131095466e-13 | N97: 0 | O97: -7.912603905e-13 | P97: 0 | Q97: 8.729243845e-15 | R97: 1.099274065e-13 | S97: -3.337107342e-14 | T97: -5.583028331e-74 | V97: 0 | W97: 70 | X97: 0 | Y97: 0 | Z97: 0 | AA97: 0 | AB97: 0 | AC97: 0 | AD97: 0 | AE97: -3.337107342e-14 | AF97: 0 | AG97: 3.337107342e-14 | AH97: 3.337107342e-14 | AI97: 0 | AL97: -3.294418608e-14 | AN97: -5.27506927e-11
A98: 2093 | B98: 0 | C98: 0 | D98: 8.697043086e-12 | E98: 618138.3763 | F98: 0 | G98: 0 | H98: 0 | I98: 8.697043086e-12 | J98: 0 | K98: 8.697043086e-12 | L98: 2.261231202e-13 | M98: 4.131095466e-13 | N98: 0 | O98: -7.912603905e-13 | P98: 0 | Q98: 8.729243845e-15 | R98: 1.099274065e-13 | S98: -3.337107342e-14 | T98: -5.227358836e-74 | V98: 0 | W98: 71 | X98: 0 | Y98: 0 | Z98: 0 | AA98: 0 | AB98: 0 | AC98: 0 | AD98: 0 | AE98: -3.337107342e-14 | AF98: 0 | AG98: 3.337107342e-14 | AH98: 3.337107342e-14 | AI98: 0 | AL98: -3.294418608e-14 | AN98: -5.27506927e-11
A99: 2094 | B99: 0 | C99: 0 | D99: 8.697043086e-12 | E99: 618138.3763 | F99: 0 | G99: 0 | H99: 0 | I99: 8.697043086e-12 | J99: 0 | K99: 8.697043086e-12 | L99: 2.261231202e-13 | M99: 4.131095466e-13 | N99: 0 | O99: -7.912603905e-13 | P99: 0 | Q99: 8.729243845e-15 | R99: 1.099274065e-13 | S99: -3.337107342e-14 | T99: -4.894347436e-74 | V99: 0 | W99: 72 | X99: 0 | Y99: 0 | Z99: 0 | AA99: 0 | AB99: 0 | AC99: 0 | AD99: 0 | AE99: -3.337107342e-14 | AF99: 0 | AG99: 3.337107342e-14 | AH99: 3.337107342e-14 | AI99: 0 | AL99: -3.294418608e-14 | AN99: -5.27506927e-11
A100: 2095 | B100: 0 | C100: 0 | D100: 8.697043086e-12 | E100: 618138.3763 | F100: 0 | G100: 0 | H100: 0 | I100: 8.697043086e-12 | J100: 0 | K100: 8.697043086e-12 | L100: 2.261231202e-13 | M100: 4.131095466e-13 | N100: 0 | O100: -7.912603905e-13 | P100: 0 | Q100: 8.729243845e-15 | R100: 1.099274065e-13 | S100: -3.337107342e-14 | T100: -4.582550687e-74 | V100: 0 | W100: 73 | X100: 0 | Y100: 0 | Z100: 0 | AA100: 0 | AB100: 0 | AC100: 0 | AD100: 0 | AE100: -3.337107342e-14 | AF100: 0 | AG100: 3.337107342e-14 | AH100: 3.337107342e-14 | AI100: 0 | AL100: -3.294418608e-14 | AN100: -5.27506927e-11
A101: 2096 | B101: 0 | C101: 0 | D101: 8.697043086e-12 | E101: 618138.3763 | F101: 0 | G101: 0 | H101: 0 | I101: 8.697043086e-12 | J101: 0 | K101: 8.697043086e-12 | L101: 2.261231202e-13 | M101: 4.131095466e-13 | N101: 0 | O101: -7.912603905e-13 | P101: 0 | Q101: 8.729243845e-15 | R101: 1.099274065e-13 | S101: -3.337107342e-14 | T101: -4.2906171e-74 | V101: 0 | W101: 74 | X101: 0 | Y101: 0 | Z101: 0 | AA101: 0 | AB101: 0 | AC101: 0 | AD101: 0 | AE101: -3.337107342e-14 | AF101: 0 | AG101: 3.337107342e-14 | AH101: 3.337107342e-14 | AI101: 0 | AL101: -3.294418608e-14 | AN101: -5.27506927e-11
A102: 2097 | B102: 0 | C102: 0 | D102: 8.697043086e-12 | E102: 618138.3763 | F102: 0 | G102: 0 | H102: 0 | I102: 8.697043086e-12 | J102: 0 | K102: 8.697043086e-12 | L102: 2.261231202e-13 | M102: 4.131095466e-13 | N102: 0 | O102: -7.912603905e-13 | P102: 0 | Q102: 8.729243845e-15 | R102: 1.099274065e-13 | S102: -3.337107342e-14 | T102: -4.017281282e-74 | V102: 0 | W102: 75 | X102: 0 | Y102: 0 | Z102: 0 | AA102: 0 | AB102: 0 | AC102: 0 | AD102: 0 | AE102: -3.337107342e-14 | AF102: 0 | AG102: 3.337107342e-14 | AH102: 3.337107342e-14 | AI102: 0 | AL102: -3.294418608e-14 | AN102: -5.27506927e-11
A103: 2098 | B103: 0 | C103: 0 | D103: 8.697043086e-12 | E103: 618138.3763 | F103: 0 | G103: 0 | H103: 0 | I103: 8.697043086e-12 | J103: 0 | K103: 8.697043086e-12 | L103: 2.261231202e-13 | M103: 4.131095466e-13 | N103: 0 | O103: -7.912603905e-13 | P103: 0 | Q103: 8.729243845e-15 | R103: 1.099274065e-13 | S103: -3.337107342e-14 | T103: -3.761358452e-74 | V103: 0 | W103: 76 | X103: 0 | Y103: 0 | Z103: 0 | AA103: 0 | AB103: 0 | AC103: 0 | AD103: 0 | AE103: -3.337107342e-14 | AF103: 0 | AG103: 3.337107342e-14 | AH103: 3.337107342e-14 | AI103: 0 | AL103: -3.294418608e-14 | AN103: -5.27506927e-11
A104: = | B104: = | C104: = | D104: = | E104: = | F104: = | G104: = | H104: = | I104: = | J104: = | K104: = | L104: = | M104: = | N104: = | O104: = | P104: = | Q104: = | R104: = | S104: = | T104: =
A106: (a) Time Period in Years
A107: (b) Capital Additions Tax Basis
A108: (c) Capital Additions Book Basis
A109: (d) Rate Base Beginning of Period = Previous(i) + Previous(c)
A110: (e) Accumulated Depreciation = Previous(e) + (j)
A111: (f) Tax Depreciation = Modified ACRS Schedules Times The Tax Basis
A112: (g) Book Depreciation on Tax Basis = Straight Line Depreciation of Tax Basis
A113: (h) Deferred Taxes = [(f)-(g)] * Federal Income Tax Rate
A114: (i) Rate Base End of Period = (d) - (j) - (h)
A115: (j) Book Depreciation = Straight Line Per Book Life
A116: (k) Average Rate Base = [(d) + (i)] / 2
A117: (l) Interest Expense = Weighted Cost of Debt * (k)
A118: (m) Equity Return = [Weighted Cost of Preferred + Weighted Cost of Common] * (k)
A119: (n) Operating and Maintenance Expense = Previous(n) * [1 + O&M Escalation Factor]
A120: (o) Property Taxes = Property Tax Rate * (d)
A121: (p) Miscellaneous Revenue Items = Revenue Requirements * Miscellaneous Revenue Items Percentage
A122: (q) State Income Tax = [Revenue Requirement - [(g) + (l) + (m) + (n) + (o) + (p)] * State Income Tax Rate
A123: (r) Federal Income Taxes = [Revenue Requirements - [(g) + (l) + (n) + (o) + Miscellaneous Revenue Items + State Tax] * Federal Income Tax Rate
A124: (s) Total Revenue Requirements = (j) + (l) + (m) + (n) + (o) + (p) + (q) + (r)
A125: (t) Present Value Revenue Requirements = Total Revenue Requirements / [1 + Discount Factor] ^ [(a) - .5]
A127: Revenue Requirements = [(j) + (l) + (m) + (n) + (o) - Federal Income Tax Rate * [(g) + (l) + (n) + (o)]] / Conversion Factor
A130: TAX DEPRECIATION
A132: Class => | B132: =$D$4 -> 4
C133: 1 | D133: 2 | E133: 3 | F133: 4 | G133: 5 | H133: 6 | I133: 7 | J133: 8 | K133: 9 | L133: 10 | M133: 11 | N133: 12 | O133: 13 | P133: 14 | Q133: 15 | R133: 16 | S133: 17 | T133: 18 | U133: 19 | V133: 20 | W133: 21 | X133: 22 | Y133: 23 | Z133: 24 | AA133: 25 | AB133: 26 | AC133: 27 | AD133: 28 | AE133: 29 | AF133: 30 | AG133: 31 | AH133: 32 | AI133: 33 | AJ133: 34 | AK133: 35 | AL133: 36 | AM133: 37 | AN133: 38 | AO133: 39 | AP133: 40 | AQ133: 41 | AR133: 42 | AS133: 43 | AT133: 44 | AU133: 45 | AV133: 46 | AW133: 47 | AX133: 48 | AY133: 49 | AZ133: 50 | BA133: 51 | BB133: 52 | BC133: 53 | BD133: 54 | BE133: 55 | BF133: 56 | BG133: 57 | BH133: 58 | BI133: 59 | BJ133: 60 | BK133: 61 | BL133: 62 | BM133: 63 | BN133: 64 | BO133: 65 | BP133: 66 | BQ133: 67 | BR133: 68 | BS133: 69 | BT133: 70 | BU133: 71 | BV133: 72 | BW133: 73 | BX133: 74 | BY133: 75 | BZ133: 76 | CA133: Total
C134: - | D134: - | E134: - | F134: - | G134: - | H134: - | I134: - | J134: - | K134: - | L134: - | M134: - | N134: - | O134: - | P134: - | Q134: - | R134: - | S134: - | T134: - | U134: - | V134: - | W134: - | X134: - | Y134: - | Z134: - | AA134: - | AB134: - | AC134: - | AD134: - | AE134: - | AF134: - | AG134: - | AH134: - | AI134: - | AJ134: - | AK134: - | AL134: - | AM134: - | AN134: - | AO134: - | AP134: - | AQ134: - | AR134: - | AS134: - | AT134: - | AU134: - | AV134: - | AW134: - | AX134: - | AY134: - | AZ134: - | BA134: - | BB134: - | BC134: - | BD134: - | BE134: - | BF134: - | BG134: - | BH134: - | BI134: - | BJ134: - | BK134: - | BL134: - | BM134: - | BN134: - | BO134: - | BP134: - | BQ134: - | BR134: - | BS134: - | BT134: - | BU134: - | BV134: - | BW134: - | BX134: - | BY134: - | BZ134: - | CA134: -
A135: Rate | B135: Capital | C135: =$B28 -> 0 | D135: =$B29 -> 40530.30923 | E135: =$B30 -> 82062.11448 | F135: =$B31 -> 167570.3639 | G135: =$B32 -> 91641.62357 | H135: =$B33 -> 52249.41401 | I135: =$B34 -> 9515.398491 | J135: =$B35 -> 9805.378051 | K135: =$B36 -> 8889.352536 | L135: =$B37 -> 9150.374688 | M135: =$B38 -> 9419.402985 | N135: =$B39 -> 9696.694215 | O135: =$B40 -> 9982.513172 | P135: =$B41 -> 10277.12483 | Q135: =$B42 -> 10580.80752 | R135: =$B43 -> 10893.85919 | S135: =$B44 -> 11216.55901 | T135: =$B45 -> 11549.23144 | U135: =$B46 -> 11892.19109 | V135: =$B47 -> 12245.75608 | W135: =$B48 -> 12610.26915 | X135: =$B49 -> 12986.08687 | Y135: =$B50 -> 13373.55179 | Z135: =$B51 -> 0 | AA135: =$B52 -> 0 | AB135: =$B53 -> 0 | AC135: =$B54 -> 0 | AD135: =$B55 -> 0 | AE135: =$B56 -> 0 | AF135: =$B57 -> 0 | AG135: =$B58 -> 0 | AH135: =$B59 -> 0 | AI135: =$B60 -> 0 | AJ135: =$B61 -> 0 | AK135: =$B62 -> 0 | AL135: =$B63 -> 0 | AM135: =$B64 -> 0 | AN135: =$B65 -> 0 | AO135: =$B66 -> 0 | AP135: =$B67 -> 0 | AQ135: =$B68 -> 0 | AR135: =$B69 -> 0 | AS135: =$B70 -> 0 | AT135: =$B71 -> 0 | AU135: =$B72 -> 0 | AV135: =$B73 -> 0 | AW135: =$B74 -> 0 | AX135: =$B75 -> 0 | AY135: =$B76 -> 0 | AZ135: =$B77 -> 0 | BA135: =$B78 -> 0 | BB135: =$B79 -> 0 | BC135: =$B80 -> 0 | BD135: =$B81 -> 0 | BE135: =$B82 -> 0 | BF135: =$B83 -> 0 | BG135: =$B84 -> 0 | BH135: =$B85 -> 0 | BI135: =$B86 -> 0 | BJ135: =$B87 -> 0 | BK135: =$B88 -> 0 | BL135: =$B89 -> 0 | BM135: =$B90 -> 0 | BN135: =$B91 -> 0 | BO135: =$B92 -> 0 | BP135: =$B93 -> 0 | BQ135: =$B94 -> 0 | BR135: =$B95 -> 0 | BS135: =$B96 -> 0 | BT135: =$B97 -> 0 | BU135: =$B98 -> 0 | BV135: =$B99 -> 0 | BW135: =$B100 -> 0 | BX135: =$B101 -> 0 | BY135: =$B102 -> 0 | BZ135: =$B103 -> 0 | CA135: =SUM($C135:$BZ135) -> 618138.3763 | CC135: 31.5 Year | CD135: 20 Years | CE135: 7 Years | CF135: 5 Years
C136: - | D136: - | E136: - | F136: - | G136: - | H136: - | I136: - | J136: - | K136: - | L136: - | M136: - | N136: - | O136: - | P136: - | Q136: - | R136: - | S136: - | T136: - | U136: - | V136: - | W136: - | X136: - | Y136: - | Z136: - | AA136: - | AB136: - | AC136: - | AD136: - | AE136: - | AF136: - | AG136: - | AH136: - | AI136: - | AJ136: - | AK136: - | AL136: - | AM136: - | AN136: - | AO136: - | AP136: - | AQ136: - | AR136: - | AS136: - | AT136: - | AU136: - | AV136: - | AW136: - | AX136: - | AY136: - | AZ136: - | BA136: - | BB136: - | BC136: - | BD136: - | BE136: - | BF136: - | BG136: - | BH136: - | BI136: - | BJ136: - | BK136: - | BL136: - | BM136: - | BN136: - | BO136: - | BP136: - | BQ136: - | BR136: - | BS136: - | BT136: - | BU136: - | BV136: - | BW136: - | BX136: - | BY136: - | BZ136: - | CA136: -
A137: =IF($B$132=1,CC137,IF($B$132=2,CD137,IF($B$132=3,CE137,IF($B$132=4,CF137,#VALUE!)))) -> 0.2 | B137: =+B136+1 -> 1 | C137: =C$135*$A137 -> 0 | CA137: =SUM($C137:$BZ137) -> 0 | CC137: 0.01587 | CD137: 0.0375 | CE137: 0.14286 | CF137: 0.2
A138: =IF($B$132=1,CC138,IF($B$132=2,CD138,IF($B$132=3,CE138,IF($B$132=4,CF138,#VALUE!)))) -> 0.32 | B138: =+B137+1 -> 2 | C138: =C$135*$A138 -> 0 | D138: =D$135*$A137 -> 8106.061847 | CA138: 8106.061847 | CC138: 0.03175 | CD138: 0.07219 | CE138: 0.2449 | CF138: 0.32
A139: 0.192 | B139: 3 | C139: 0 | D139: =D$135*$A138 -> 12969.69896 | E139: =E$135*$A137 -> 16412.4229 | CA139: 29382.12185 | CC139: 0.03175 | CD139: 0.06678 | CE139: 0.17493 | CF139: 0.192
A140: 0.1152 | B140: 4 | C140: 0 | D140: 7781.819373 | E140: =E$135*$A138 -> 26259.87663 | F140: =F$135*$A137 -> 33514.07279 | CA140: 67555.76879 | CC140: 0.03175 | CD140: 0.06178 | CE140: 0.12495 | CF140: 0.1152
A141: 0.1152 | B141: 5 | C141: 0 | D141: 4669.091624 | E141: 15755.92598 | F141: =F$135*$A138 -> 53622.51646 | G141: =G$135*$A137 -> 18328.32471 | CA141: 92375.85878 | CC141: 0.03175 | CD141: 0.05715 | CE141: 0.08925 | CF141: 0.1152
A142: 0.0576 | B142: 6 | C142: 0 | D142: 4669.091624 | E142: 9453.555588 | F142: 32173.50987 | G142: =G$135*$A138 -> 29325.31954 | H142: =H$135*$A137 -> 10449.8828 | CA142: 86071.35943 | CC142: 0.03175 | CD142: 0.05286 | CE142: 0.08925 | CF142: 0.0576
A143: 0 | B143: 7 | C143: 0 | D143: 2334.545812 | E143: 9453.555588 | F143: 19304.10592 | G143: 17595.19173 | H143: =H$135*$A138 -> 16719.81248 | I143: =I$135*$A137 -> 1903.079698 | CA143: 67310.29123 | CC143: 0.03175 | CD143: 0.0489 | CE143: 0.08925 | CF143: 0
A144: 0 | B144: 8 | C144: 0 | D144: 0 | E144: 4726.777794 | F144: 19304.10592 | G144: 10557.11504 | H144: 10031.88749 | I144: =I$135*$A138 -> 3044.927517 | J144: =J$135*$A137 -> 1961.07561 | CA144: 49625.88937 | CC144: 0.03175 | CD144: 0.04523 | CE144: 0.04461 | CF144: 0
A145: 0 | B145: 9 | C145: 0 | D145: 0 | E145: 0 | F145: 9652.052962 | G145: 10557.11504 | H145: 6019.132494 | I145: 1826.95651 | J145: =J$135*$A138 -> 3137.720976 | K145: =K$135*$A137 -> 1777.870507 | CA145: 32970.84849 | CC145: 0.03175 | CD145: 0.04461 | CE145: 0 | CF145: 0
A146: 0 | B146: 10 | C146: 0 | D146: 0 | E146: 0 | F146: 0 | G146: 5278.557518 | H146: 6019.132494 | I146: 1096.173906 | J146: 1882.632586 | K146: =K$135*$A138 -> 2844.592812 | L146: =L$135*$A137 -> 1830.074938 | CA146: 18951.16425 | CC146: 0.03175 | CD146: 0.04461 | CE146: 0 | CF146: 0
A147: 0 | B147: 11 | C147: 0 | D147: 0 | E147: 0 | F147: 0 | G147: 0 | H147: 3009.566247 | I147: 1096.173906 | J147: 1129.579552 | K147: 1706.755687 | L147: =L$135*$A138 -> 2928.1199 | M147: =M$135*$A137 -> 1883.880597 | CA147: 11754.07589 | CC147: 0.03175 | CD147: 0.04461 | CE147: 0 | CF147: 0
A148: 0 | B148: 12 | C148: 0 | D148: 0 | E148: 0 | F148: 0 | G148: 0 | H148: 0 | I148: 548.0869531 | J148: 1129.579552 | K148: 1024.053412 | L148: 1756.87194 | M148: =M$135*$A138 -> 3014.208955 | N148: =N$135*$A137 -> 1939.338843 | CA148: 9412.139655 | CC148: 0.03175 | CD148: 0.04461 | CE148: 0 | CF148: 0
A149: 0 | B149: 13 | C149: 0 | D149: 0 | E149: 0 | F149: 0 | G149: 0 | H149: 0 | I149: 0 | J149: 564.7897758 | K149: 1024.053412 | L149: 1054.123164 | M149: 1808.525373 | N149: =N$135*$A138 -> 3102.942149 | O149: =O$135*$A137 -> 1996.502634 | CA149: 9550.936508 | CC149: 0.03175 | CD149: 0.04461 | CE149: 0 | CF149: 0
A150: 0 | B150: 14 | C150: 0 | D150: 0 | E150: 0 | F150: 0 | G150: 0 | H150: 0 | I150: 0 | J150: 0 | K150: 512.0267061 | L150: 1054.123164 | M150: 1085.115224 | N150: 1861.765289 | O150: =O$135*$A138 -> 3194.404215 | P150: =P$135*$A137 -> 2055.424966 | CA150: 9762.859565 | CC150: 0.03175 | CD150: 0.04461 | CE150: 0 | CF150: 0
A151: 0 | B151: 15 | C151: 0 | D151: 0 | E151: 0 | F151: 0 | G151: 0 | H151: 0 | I151: 0 | J151: 0 | K151: 0 | L151: 527.061582 | M151: 1085.115224 | N151: 1117.059174 | O151: 1916.642529 | P151: =P$135*$A138 -> 3288.679946 | Q151: =Q$135*$A137 -> 2116.161503 | CA151: 10050.71996 | CC151: 0.03175 | CD151: 0.04461 | CE151: 0 | CF151: 0
A152: 0 | B152: 16 | C152: 0 | D152: 0 | E152: 0 | F152: 0 | G152: 0 | H152: 0 | I152: 0 | J152: 0 | K152: 0 | L152: 0 | M152: 542.5576119 | N152: 1117.059174 | O152: 1149.985517 | P152: 1973.207968 | Q152: =Q$135*$A138 -> 3385.858405 | R152: =R$135*$A137 -> 2178.771837 | CA152: 10347.44051 | CC152: 0.03175 | CD152: 0.04461 | CE152: 0 | CF152: 0
A153: 0 | B153: 17 | C153: 0 | D153: 0 | E153: 0 | F153: 0 | G153: 0 | H153: 0 | I153: 0 | J153: 0 | K153: 0 | L153: 0 | M153: 0 | N153: 558.5295868 | O153: 1149.985517 | P153: 1183.924781 | Q153: 2031.515043 | R153: =R$135*$A138 -> 3486.034939 | S153: =S$135*$A137 -> 2243.311802 | CA153: 10653.30167 | CC153: 0.03175 | CD153: 0.04461 | CE153: 0 | CF153: 0
A154: 0 | B154: 18 | C154: 0 | D154: 0 | E154: 0 | F154: 0 | G154: 0 | H154: 0 | I154: 0 | J154: 0 | K154: 0 | L154: 0 | M154: 0 | N154: 0 | O154: 574.9927587 | P154: 1183.924781 | Q154: 1218.909026 | R154: 2091.620964 | S154: =S$135*$A138 -> 3589.298883 | T154: =T$135*$A137 -> 2309.846289 | CA154: 10968.5927 | CC154: 0.03175 | CD154: 0.04461 | CE154: 0 | CF154: 0
A155: 0 | B155: 19 | C155: 0 | D155: 0 | E155: 0 | F155: 0 | G155: 0 | H155: 0 | I155: 0 | J155: 0 | K155: 0 | L155: 0 | M155: 0 | N155: 0 | O155: 0 | P155: 591.9623903 | Q155: 1218.909026 | R155: 1254.972578 | S155: 2153.57933 | T155: =T$135*$A138 -> 3695.754062 | U155: =U$135*$A137 -> 2378.438218 | CA155: 11293.6156 | CC155: 0.03175 | CD155: 0.04461 | CE155: 0 | CF155: 0
A156: 0 | B156: 20 | C156: 0 | D156: 0 | E156: 0 | F156: 0 | G156: 0 | H156: 0 | I156: 0 | J156: 0 | K156: 0 | L156: 0 | M156: 0 | N156: 0 | O156: 0 | P156: 0 | Q156: 609.4545129 | R156: 1254.972578 | S156: 1292.147598 | T156: 2217.452437 | U156: =U$135*$A138 -> 3805.501149 | V156: =V$135*$A137 -> 2449.151216 | CA156: 11628.67949 | CC156: 0.03175 | CD156: 0.04461 | CE156: 0 | CF156: 0
A157: 0 | B157: 21 | C157: 0 | D157: 0 | E157: 0 | F157: 0 | G157: 0 | H157: 0 | I157: 0 | J157: 0 | K157: 0 | L157: 0 | M157: 0 | N157: 0 | O157: 0 | P157: 0 | Q157: 0 | R157: 627.4862891 | S157: 1292.147598 | T157: 1330.471462 | U157: 2283.300689 | V157: =V$135*$A138 -> 3918.641945 | W157: =W$135*$A137 -> 2522.053829 | CA157: 11974.10181 | CC157: 0.03175 | CD157: 0.02229 | CE157: 0 | CF157: 0
A158: 0 | B158: 22 | C158: 0 | D158: 0 | E158: 0 | F158: 0 | G158: 0 | H158: 0 | I158: 0 | J158: 0 | K158: 0 | L158: 0 | M158: 0 | N158: 0 | O158: 0 | P158: 0 | Q158: 0 | R158: 0 | S158: 646.0737989 | T158: 1330.471462 | U158: 1369.980414 | V158: 2351.185167 | W158: =W$135*$A138 -> 4035.286127 | X158: =X$135*$A137 -> 2597.217373 | CA158: 12330.21434 | CC158: 0.03175 | CD158: 0 | CE158: 0 | CF158: 0
A159: 0 | B159: 23 | C159: 0 | D159: 0 | E159: 0 | F159: 0 | G159: 0 | H159: 0 | I159: 0 | J159: 0 | K159: 0 | L159: 0 | M159: 0 | N159: 0 | O159: 0 | P159: 0 | Q159: 0 | R159: 0 | S159: 0 | T159: 665.2357312 | U159: 1369.980414 | V159: 1410.7111 | W159: 2421.171676 | X159: =X$135*$A138 -> 4155.547798 | Y159: =Y$135*$A137 -> 2674.710357 | CA159: 12697.35708 | CC159: 0.03175 | CD159: 0 | CE159: 0 | CF159: 0
A160: 0 | B160: 24 | C160: 0 | D160: 0 | E160: 0 | F160: 0 | G160: 0 | H160: 0 | I160: 0 | J160: 0 | K160: 0 | L160: 0 | M160: 0 | N160: 0 | O160: 0 | P160: 0 | Q160: 0 | R160: 0 | S160: 0 | T160: 0 | U160: 684.9902068 | V160: 1410.7111 | W160: 1452.703006 | X160: 2493.328679 | Y160: =Y$135*$A138 -> 4279.536571 | Z160: =Z$135*$A137 -> 0 | CA160: 10321.26956 | CC160: 0.03175 | CD160: 0 | CE160: 0 | CF160: 0
A161: 0 | B161: 25 | C161: 0 | D161: 0 | E161: 0 | F161: 0 | G161: 0 | H161: 0 | I161: 0 | J161: 0 | K161: 0 | L161: 0 | M161: 0 | N161: 0 | O161: 0 | P161: 0 | Q161: 0 | R161: 0 | S161: 0 | T161: 0 | U161: 0 | V161: 705.3555501 | W161: 1452.703006 | X161: 1495.997207 | Y161: 2567.721943 | Z161: =Z$135*$A138 -> 0 | AA161: =AA$135*$A137 -> 0 | CA161: 6221.777706 | CC161: 0.03175 | CD161: 0 | CE161: 0 | CF161: 0
A162: 0 | B162: 26 | C162: 0 | D162: 0 | E162: 0 | F162: 0 | G162: 0 | H162: 0 | I162: 0 | J162: 0 | K162: 0 | L162: 0 | M162: 0 | N162: 0 | O162: 0 | P162: 0 | Q162: 0 | R162: 0 | S162: 0 | T162: 0 | U162: 0 | V162: 0 | W162: 726.3515028 | X162: 1495.997207 | Y162: 1540.633166 | Z162: 0 | AA162: =AA$135*$A138 -> 0 | AB162: =AB$135*$A137 -> 0 | CA162: 3762.981876 | CC162: 0.03175 | CD162: 0 | CE162: 0 | CF162: 0
A163: 0 | B163: 27 | C163: 0 | D163: 0 | E163: 0 | F163: 0 | G163: 0 | H163: 0 | I163: 0 | J163: 0 | K163: 0 | L163: 0 | M163: 0 | N163: 0 | O163: 0 | P163: 0 | Q163: 0 | R163: 0 | S163: 0 | T163: 0 | U163: 0 | V163: 0 | W163: 0 | X163: 747.9986036 | Y163: 1540.633166 | Z163: 0 | AA163: 0 | AB163: =AB$135*$A138 -> 0 | AC163: =AC$135*$A137 -> 0 | CA163: 2288.631769 | CC163: 0.03175 | CD163: 0 | CE163: 0 | CF163: 0
A164: 0 | B164: 28 | C164: 0 | D164: 0 | E164: 0 | F164: 0 | G164: 0 | H164: 0 | I164: 0 | J164: 0 | K164: 0 | L164: 0 | M164: 0 | N164: 0 | O164: 0 | P164: 0 | Q164: 0 | R164: 0 | S164: 0 | T164: 0 | U164: 0 | V164: 0 | W164: 0 | X164: 0 | Y164: 770.3165829 | Z164: 0 | AA164: 0 | AB164: 0 | AC164: =AC$135*$A138 -> 0 | AD164: =AD$135*$A137 -> 0 | CA164: 770.3165829 | CC164: 0.03175 | CD164: 0 | CE164: 0 | CF164: 0
A165: 0 | B165: 29 | C165: 0 | D165: 0 | E165: 0 | F165: 0 | G165: 0 | H165: 0 | I165: 0 | J165: 0 | K165: 0 | L165: 0 | M165: 0 | N165: 0 | O165: 0 | P165: 0 | Q165: 0 | R165: 0 | S165: 0 | T165: 0 | U165: 0 | V165: 0 | W165: 0 | X165: 0 | Y165: 0 | Z165: 0 | AA165: 0 | AB165: 0 | AC165: 0 | AD165: =AD$135*$A138 -> 0 | AE165: =AE$135*$A137 -> 0 | CA165: 0 | CC165: 0.03175 | CD165: 0 | CE165: 0 | CF165: 0
A166: 0 | B166: 30 | C166: 0 | D166: 0 | E166: 0 | F166: 0 | G166: 0 | H166: 0 | I166: 0 | J166: 0 | K166: 0 | L166: 0 | M166: 0 | N166: 0 | O166: 0 | P166: 0 | Q166: 0 | R166: 0 | S166: 0 | T166: 0 | U166: 0 | V166: 0 | W166: 0 | X166: 0 | Y166: 0 | Z166: 0 | AA166: 0 | AB166: 0 | AC166: 0 | AD166: 0 | AE166: =AE$135*$A138 -> 0 | AF166: =AF$135*$A137 -> 0 | CA166: 0 | CC166: 0.03175 | CD166: 0 | CE166: 0 | CF166: 0
A167: 0 | B167: 31 | C167: 0 | D167: 0 | E167: 0 | F167: 0 | G167: 0 | H167: 0 | I167: 0 | J167: 0 | K167: 0 | L167: 0 | M167: 0 | N167: 0 | O167: 0 | P167: 0 | Q167: 0 | R167: 0 | S167: 0 | T167: 0 | U167: 0 | V167: 0 | W167: 0 | X167: 0 | Y167: 0 | Z167: 0 | AA167: 0 | AB167: 0 | AC167: 0 | AD167: 0 | AE167: 0 | AF167: =AF$135*$A138 -> 0 | AG167: =AG$135*$A137 -> 0 | CA167: 0 | CC167: 0.03175 | CD167: 0 | CE167: 0 | CF167: 0
A168: 0 | B168: 32 | C168: 0 | D168: 0 | E168: 0 | F168: 0 | G168: 0 | H168: 0 | I168: 0 | J168: 0 | K168: 0 | L168: 0 | M168: 0 | N168: 0 | O168: 0 | P168: 0 | Q168: 0 | R168: 0 | S168: 0 | T168: 0 | U168: 0 | V168: 0 | W168: 0 | X168: 0 | Y168: 0 | Z168: 0 | AA168: 0 | AB168: 0 | AC168: 0 | AD168: 0 | AE168: 0 | AF168: 0 | AG168: =AG$135*$A138 -> 0 | AH168: =AH$135*$A137 -> 0 | CA168: 0 | CC168: 0.03163 | CD168: 0 | CE168: 0 | CF168: 0
A169: 0 | B169: 33 | C169: 0 | D169: 0 | E169: 0 | F169: 0 | G169: 0 | H169: 0 | I169: 0 | J169: 0 | K169: 0 | L169: 0 | M169: 0 | N169: 0 | O169: 0 | P169: 0 | Q169: 0 | R169: 0 | S169: 0 | T169: 0 | U169: 0 | V169: 0 | W169: 0 | X169: 0 | Y169: 0 | Z169: 0 | AA169: 0 | AB169: 0 | AC169: 0 | AD169: 0 | AE169: 0 | AF169: 0 | AG169: 0 | AH169: =AH$135*$A138 -> 0 | AI169: =AI$135*$A137 -> 0 | CA169: 0
A170: 0 | B170: 34 | C170: 0 | D170: 0 | E170: 0 | F170: 0 | G170: 0 | H170: 0 | I170: 0 | J170: 0 | K170: 0 | L170: 0 | M170: 0 | N170: 0 | O170: 0 | P170: 0 | Q170: 0 | R170: 0 | S170: 0 | T170: 0 | U170: 0 | V170: 0 | W170: 0 | X170: 0 | Y170: 0 | Z170: 0 | AA170: 0 | AB170: 0 | AC170: 0 | AD170: 0 | AE170: 0 | AF170: 0 | AG170: 0 | AH170: 0 | AI170: =AI$135*$A138 -> 0 | AJ170: =AJ$135*$A137 -> 0 | CA170: 0
A171: 0 | B171: 35 | C171: 0 | D171: 0 | E171: 0 | F171: 0 | G171: 0 | H171: 0 | I171: 0 | J171: 0 | K171: 0 | L171: 0 | M171: 0 | N171: 0 | O171: 0 | P171: 0 | Q171: 0 | R171: 0 | S171: 0 | T171: 0 | U171: 0 | V171: 0 | W171: 0 | X171: 0 | Y171: 0 | Z171: 0 | AA171: 0 | AB171: 0 | AC171: 0 | AD171: 0 | AE171: 0 | AF171: 0 | AG171: 0 | AH171: 0 | AI171: 0 | AJ171: =AJ$135*$A138 -> 0 | AK171: =AK$135*$A137 -> 0 | CA171: 0
A172: 0 | B172: 36 | C172: 0 | D172: 0 | E172: 0 | F172: 0 | G172: 0 | H172: 0 | I172: 0 | J172: 0 | K172: 0 | L172: 0 | M172: 0 | N172: 0 | O172: 0 | P172: 0 | Q172: 0 | R172: 0 | S172: 0 | T172: 0 | U172: 0 | V172: 0 | W172: 0 | X172: 0 | Y172: 0 | Z172: 0 | AA172: 0 | AB172: 0 | AC172: 0 | AD172: 0 | AE172: 0 | AF172: 0 | AG172: 0 | AH172: 0 | AI172: 0 | AJ172: 0 | AK172: =AK$135*$A138 -> 0 | AL172: =AL$135*$A137 -> 0 | CA172: 0
A173: 0 | B173: 37 | C173: 0 | D173: 0 | E173: 0 | F173: 0 | G173: 0 | H173: 0 | I173: 0 | J173: 0 | K173: 0 | L173: 0 | M173: 0 | N173: 0 | O173: 0 | P173: 0 | Q173: 0 | R173: 0 | S173: 0 | T173: 0 | U173: 0 | V173: 0 | W173: 0 | X173: 0 | Y173: 0 | Z173: 0 | AA173: 0 | AB173: 0 | AC173: 0 | AD173: 0 | AE173: 0 | AF173: 0 | AG173: 0 | AH173: 0 | AI173: 0 | AJ173: 0 | AK173: 0 | AL173: =AL$135*$A138 -> 0 | AM173: =AM$135*$A137 -> 0 | CA173: 0
A174: 0 | B174: 38 | C174: 0 | D174: 0 | E174: 0 | F174: 0 | G174: 0 | H174: 0 | I174: 0 | J174: 0 | K174: 0 | L174: 0 | M174: 0 | N174: 0 | O174: 0 | P174: 0 | Q174: 0 | R174: 0 | S174: 0 | T174: 0 | U174: 0 | V174: 0 | W174: 0 | X174: 0 | Y174: 0 | Z174: 0 | AA174: 0 | AB174: 0 | AC174: 0 | AD174: 0 | AE174: 0 | AF174: 0 | AG174: 0 | AH174: 0 | AI174: 0 | AJ174: 0 | AK174: 0 | AL174: 0 | AM174: =AM$135*$A138 -> 0 | AN174: =AN$135*$A137 -> 0 | CA174: 0
A175: 0 | B175: 39 | C175: 0 | D175: 0 | E175: 0 | F175: 0 | G175: 0 | H175: 0 | I175: 0 | J175: 0 | K175: 0 | L175: 0 | M175: 0 | N175: 0 | O175: 0 | P175: 0 | Q175: 0 | R175: 0 | S175: 0 | T175: 0 | U175: 0 | V175: 0 | W175: 0 | X175: 0 | Y175: 0 | Z175: 0 | AA175: 0 | AB175: 0 | AC175: 0 | AD175: 0 | AE175: 0 | AF175: 0 | AG175: 0 | AH175: 0 | AI175: 0 | AJ175: 0 | AK175: 0 | AL175: 0 | AM175: 0 | AN175: =AN$135*$A138 -> 0 | AO175: =AO$135*$A137 -> 0 | CA175: 0
A176: 0 | B176: 40 | C176: 0 | D176: 0 | E176: 0 | F176: 0 | G176: 0 | H176: 0 | I176: 0 | J176: 0 | K176: 0 | L176: 0 | M176: 0 | N176: 0 | O176: 0 | P176: 0 | Q176: 0 | R176: 0 | S176: 0 | T176: 0 | U176: 0 | V176: 0 | W176: 0 | X176: 0 | Y176: 0 | Z176: 0 | AA176: 0 | AB176: 0 | AC176: 0 | AD176: 0 | AE176: 0 | AF176: 0 | AG176: 0 | AH176: 0 | AI176: 0 | AJ176: 0 | AK176: 0 | AL176: 0 | AM176: 0 | AN176: 0 | AO176: =AO$135*$A138 -> 0 | AP176: =AP$135*$A137 -> 0 | CA176: 0
A177: 0 | B177: 41 | C177: 0 | D177: 0 | E177: 0 | F177: 0 | G177: 0 | H177: 0 | I177: 0 | J177: 0 | K177: 0 | L177: 0 | M177: 0 | N177: 0 | O177: 0 | P177: 0 | Q177: 0 | R177: 0 | S177: 0 | T177: 0 | U177: 0 | V177: 0 | W177: 0 | X177: 0 | Y177: 0 | Z177: 0 | AA177: 0 | AB177: 0 | AC177: 0 | AD177: 0 | AE177: 0 | AF177: 0 | AG177: 0 | AH177: 0 | AI177: 0 | AJ177: 0 | AK177: 0 | AL177: 0 | AM177: 0 | AN177: 0 | AO177: 0 | AP177: =AP$135*$A138 -> 0 | AQ177: =AQ$135*$A137 -> 0 | CA177: 0
A178: 0 | B178: 42 | C178: 0 | D178: 0 | E178: 0 | F178: 0 | G178: 0 | H178: 0 | I178: 0 | J178: 0 | K178: 0 | L178: 0 | M178: 0 | N178: 0 | O178: 0 | P178: 0 | Q178: 0 | R178: 0 | S178: 0 | T178: 0 | U178: 0 | V178: 0 | W178: 0 | X178: 0 | Y178: 0 | Z178: 0 | AA178: 0 | AB178: 0 | AC178: 0 | AD178: 0 | AE178: 0 | AF178: 0 | AG178: 0 | AH178: 0 | AI178: 0 | AJ178: 0 | AK178: 0 | AL178: 0 | AM178: 0 | AN178: 0 | AO178: 0 | AP178: 0 | AQ178: =AQ$135*$A138 -> 0 | AR178: =AR$135*$A137 -> 0 | CA178: 0
A179: 0 | B179: 43 | C179: 0 | D179: 0 | E179: 0 | F179: 0 | G179: 0 | H179: 0 | I179: 0 | J179: 0 | K179: 0 | L179: 0 | M179: 0 | N179: 0 | O179: 0 | P179: 0 | Q179: 0 | R179: 0 | S179: 0 | T179: 0 | U179: 0 | V179: 0 | W179: 0 | X179: 0 | Y179: 0 | Z179: 0 | AA179: 0 | AB179: 0 | AC179: 0 | AD179: 0 | AE179: 0 | AF179: 0 | AG179: 0 | AH179: 0 | AI179: 0 | AJ179: 0 | AK179: 0 | AL179: 0 | AM179: 0 | AN179: 0 | AO179: 0 | AP179: 0 | AQ179: 0 | AR179: =AR$135*$A138 -> 0 | AS179: =AS$135*$A137 -> 0 | CA179: 0
A180: 0 | B180: 44 | C180: 0 | D180: 0 | E180: 0 | F180: 0 | G180: 0 | H180: 0 | I180: 0 | J180: 0 | K180: 0 | L180: 0 | M180: 0 | N180: 0 | O180: 0 | P180: 0 | Q180: 0 | R180: 0 | S180: 0 | T180: 0 | U180: 0 | V180: 0 | W180: 0 | X180: 0 | Y180: 0 | Z180: 0 | AA180: 0 | AB180: 0 | AC180: 0 | AD180: 0 | AE180: 0 | AF180: 0 | AG180: 0 | AH180: 0 | AI180: 0 | AJ180: 0 | AK180: 0 | AL180: 0 | AM180: 0 | AN180: 0 | AO180: 0 | AP180: 0 | AQ180: 0 | AR180: 0 | AS180: =AS$135*$A138 -> 0 | AT180: =AT$135*$A137 -> 0 | CA180: 0
A181: 0 | B181: 45 | C181: 0 | D181: 0 | E181: 0 | F181: 0 | G181: 0 | H181: 0 | I181: 0 | J181: 0 | K181: 0 | L181: 0 | M181: 0 | N181: 0 | O181: 0 | P181: 0 | Q181: 0 | R181: 0 | S181: 0 | T181: 0 | U181: 0 | V181: 0 | W181: 0 | X181: 0 | Y181: 0 | Z181: 0 | AA181: 0 | AB181: 0 | AC181: 0 | AD181: 0 | AE181: 0 | AF181: 0 | AG181: 0 | AH181: 0 | AI181: 0 | AJ181: 0 | AK181: 0 | AL181: 0 | AM181: 0 | AN181: 0 | AO181: 0 | AP181: 0 | AQ181: 0 | AR181: 0 | AS181: 0 | AT181: =AT$135*$A138 -> 0 | AU181: =AU$135*$A137 -> 0 | CA181: 0
A182: 0 | B182: 46 | C182: 0 | D182: 0 | E182: 0 | F182: 0 | G182: 0 | H182: 0 | I182: 0 | J182: 0 | K182: 0 | L182: 0 | M182: 0 | N182: 0 | O182: 0 | P182: 0 | Q182: 0 | R182: 0 | S182: 0 | T182: 0 | U182: 0 | V182: 0 | W182: 0 | X182: 0 | Y182: 0 | Z182: 0 | AA182: 0 | AB182: 0 | AC182: 0 | AD182: 0 | AE182: 0 | AF182: 0 | AG182: 0 | AH182: 0 | AI182: 0 | AJ182: 0 | AK182: 0 | AL182: 0 | AM182: 0 | AN182: 0 | AO182: 0 | AP182: 0 | AQ182: 0 | AR182: 0 | AS182: 0 | AT182: 0 | AU182: =AU$135*$A138 -> 0 | AV182: =AV$135*$A137 -> 0 | CA182: 0
A183: 0 | B183: 47 | C183: 0 | D183: 0 | E183: 0 | F183: 0 | G183: 0 | H183: 0 | I183: 0 | J183: 0 | K183: 0 | L183: 0 | M183: 0 | N183: 0 | O183: 0 | P183: 0 | Q183: 0 | R183: 0 | S183: 0 | T183: 0 | U183: 0 | V183: 0 | W183: 0 | X183: 0 | Y183: 0 | Z183: 0 | AA183: 0 | AB183: 0 | AC183: 0 | AD183: 0 | AE183: 0 | AF183: 0 | AG183: 0 | AH183: 0 | AI183: 0 | AJ183: 0 | AK183: 0 | AL183: 0 | AM183: 0 | AN183: 0 | AO183: 0 | AP183: 0 | AQ183: 0 | AR183: 0 | AS183: 0 | AT183: 0 | AU183: 0 | AV183: =AV$135*$A138 -> 0 | AW183: =AW$135*$A137 -> 0 | CA183: 0
A184: 0 | B184: 48 | C184: 0 | D184: 0 | E184: 0 | F184: 0 | G184: 0 | H184: 0 | I184: 0 | J184: 0 | K184: 0 | L184: 0 | M184: 0 | N184: 0 | O184: 0 | P184: 0 | Q184: 0 | R184: 0 | S184: 0 | T184: 0 | U184: 0 | V184: 0 | W184: 0 | X184: 0 | Y184: 0 | Z184: 0 | AA184: 0 | AB184: 0 | AC184: 0 | AD184: 0 | AE184: 0 | AF184: 0 | AG184: 0 | AH184: 0 | AI184: 0 | AJ184: 0 | AK184: 0 | AL184: 0 | AM184: 0 | AN184: 0 | AO184: 0 | AP184: 0 | AQ184: 0 | AR184: 0 | AS184: 0 | AT184: 0 | AU184: 0 | AV184: 0 | AW184: =AW$135*$A138 -> 0 | AX184: =AX$135*$A137 -> 0 | CA184: 0
A185: 0 | B185: 49 | C185: 0 | D185: 0 | E185: 0 | F185: 0 | G185: 0 | H185: 0 | I185: 0 | J185: 0 | K185: 0 | L185: 0 | M185: 0 | N185: 0 | O185: 0 | P185: 0 | Q185: 0 | R185: 0 | S185: 0 | T185: 0 | U185: 0 | V185: 0 | W185: 0 | X185: 0 | Y185: 0 | Z185: 0 | AA185: 0 | AB185: 0 | AC185: 0 | AD185: 0 | AE185: 0 | AF185: 0 | AG185: 0 | AH185: 0 | AI185: 0 | AJ185: 0 | AK185: 0 | AL185: 0 | AM185: 0 | AN185: 0 | AO185: 0 | AP185: 0 | AQ185: 0 | AR185: 0 | AS185: 0 | AT185: 0 | AU185: 0 | AV185: 0 | AW185: 0 | AX185: =AX$135*$A138 -> 0 | AY185: =AY$135*$A137 -> 0 | CA185: 0
A186: 0 | B186: 50 | C186: 0 | D186: 0 | E186: 0 | F186: 0 | G186: 0 | H186: 0 | I186: 0 | J186: 0 | K186: 0 | L186: 0 | M186: 0 | N186: 0 | O186: 0 | P186: 0 | Q186: 0 | R186: 0 | S186: 0 | T186: 0 | U186: 0 | V186: 0 | W186: 0 | X186: 0 | Y186: 0 | Z186: 0 | AA186: 0 | AB186: 0 | AC186: 0 | AD186: 0 | AE186: 0 | AF186: 0 | AG186: 0 | AH186: 0 | AI186: 0 | AJ186: 0 | AK186: 0 | AL186: 0 | AM186: 0 | AN186: 0 | AO186: 0 | AP186: 0 | AQ186: 0 | AR186: 0 | AS186: 0 | AT186: 0 | AU186: 0 | AV186: 0 | AW186: 0 | AX186: 0 | AY186: =AY$135*$A138 -> 0 | AZ186: =AZ$135*$A137 -> 0 | CA186: 0
A187: 0 | B187: 51 | C187: 0 | D187: 0 | E187: 0 | F187: 0 | G187: 0 | H187: 0 | I187: 0 | J187: 0 | K187: 0 | L187: 0 | M187: 0 | N187: 0 | O187: 0 | P187: 0 | Q187: 0 | R187: 0 | S187: 0 | T187: 0 | U187: 0 | V187: 0 | W187: 0 | X187: 0 | Y187: 0 | Z187: 0 | AA187: 0 | AB187: 0 | AC187: 0 | AD187: 0 | AE187: 0 | AF187: 0 | AG187: 0 | AH187: 0 | AI187: 0 | AJ187: 0 | AK187: 0 | AL187: 0 | AM187: 0 | AN187: 0 | AO187: 0 | AP187: 0 | AQ187: 0 | AR187: 0 | AS187: 0 | AT187: 0 | AU187: 0 | AV187: 0 | AW187: 0 | AX187: 0 | AY187: 0 | AZ187: =AZ$135*$A138 -> 0 | BA187: =BA$135*$A137 -> 0 | CA187: 0
A188: 0 | B188: 52 | C188: 0 | D188: 0 | E188: 0 | F188: 0 | G188: 0 | H188: 0 | I188: 0 | J188: 0 | K188: 0 | L188: 0 | M188: 0 | N188: 0 | O188: 0 | P188: 0 | Q188: 0 | R188: 0 | S188: 0 | T188: 0 | U188: 0 | V188: 0 | W188: 0 | X188: 0 | Y188: 0 | Z188: 0 | AA188: 0 | AB188: 0 | AC188: 0 | AD188: 0 | AE188: 0 | AF188: 0 | AG188: 0 | AH188: 0 | AI188: 0 | AJ188: 0 | AK188: 0 | AL188: 0 | AM188: 0 | AN188: 0 | AO188: 0 | AP188: 0 | AQ188: 0 | AR188: 0 | AS188: 0 | AT188: 0 | AU188: 0 | AV188: 0 | AW188: 0 | AX188: 0 | AY188: 0 | AZ188: 0 | BA188: =BA$135*$A138 -> 0 | BB188: =BB$135*$A137 -> 0 | CA188: 0
A189: 0 | B189: 53 | C189: 0 | D189: 0 | E189: 0 | F189: 0 | G189: 0 | H189: 0 | I189: 0 | J189: 0 | K189: 0 | L189: 0 | M189: 0 | N189: 0 | O189: 0 | P189: 0 | Q189: 0 | R189: 0 | S189: 0 | T189: 0 | U189: 0 | V189: 0 | W189: 0 | X189: 0 | Y189: 0 | Z189: 0 | AA189: 0 | AB189: 0 | AC189: 0 | AD189: 0 | AE189: 0 | AF189: 0 | AG189: 0 | AH189: 0 | AI189: 0 | AJ189: 0 | AK189: 0 | AL189: 0 | AM189: 0 | AN189: 0 | AO189: 0 | AP189: 0 | AQ189: 0 | AR189: 0 | AS189: 0 | AT189: 0 | AU189: 0 | AV189: 0 | AW189: 0 | AX189: 0 | AY189: 0 | AZ189: 0 | BA189: 0 | BB189: =BB$135*$A138 -> 0 | BC189: =BC$135*$A137 -> 0 | CA189: 0
A190: 0 | B190: 54 | C190: 0 | D190: 0 | E190: 0 | F190: 0 | G190: 0 | H190: 0 | I190: 0 | J190: 0 | K190: 0 | L190: 0 | M190: 0 | N190: 0 | O190: 0 | P190: 0 | Q190: 0 | R190: 0 | S190: 0 | T190: 0 | U190: 0 | V190: 0 | W190: 0 | X190: 0 | Y190: 0 | Z190: 0 | AA190: 0 | AB190: 0 | AC190: 0 | AD190: 0 | AE190: 0 | AF190: 0 | AG190: 0 | AH190: 0 | AI190: 0 | AJ190: 0 | AK190: 0 | AL190: 0 | AM190: 0 | AN190: 0 | AO190: 0 | AP190: 0 | AQ190: 0 | AR190: 0 | AS190: 0 | AT190: 0 | AU190: 0 | AV190: 0 | AW190: 0 | AX190: 0 | AY190: 0 | AZ190: 0 | BA190: 0 | BB190: 0 | BC190: =BC$135*$A138 -> 0 | BD190: =BD$135*$A137 -> 0 | CA190: 0
A191: 0 | B191: 55 | C191: 0 | D191: 0 | E191: 0 | F191: 0 | G191: 0 | H191: 0 | I191: 0 | J191: 0 | K191: 0 | L191: 0 | M191: 0 | N191: 0 | O191: 0 | P191: 0 | Q191: 0 | R191: 0 | S191: 0 | T191: 0 | U191: 0 | V191: 0 | W191: 0 | X191: 0 | Y191: 0 | Z191: 0 | AA191: 0 | AB191: 0 | AC191: 0 | AD191: 0 | AE191: 0 | AF191: 0 | AG191: 0 | AH191: 0 | AI191: 0 | AJ191: 0 | AK191: 0 | AL191: 0 | AM191: 0 | AN191: 0 | AO191: 0 | AP191: 0 | AQ191: 0 | AR191: 0 | AS191: 0 | AT191: 0 | AU191: 0 | AV191: 0 | AW191: 0 | AX191: 0 | AY191: 0 | AZ191: 0 | BA191: 0 | BB191: 0 | BC191: 0 | BD191: =BD$135*$A138 -> 0 | BE191: =BE$135*$A137 -> 0 | CA191: 0
A192: 0 | B192: 56 | C192: 0 | D192: 0 | E192: 0 | F192: 0 | G192: 0 | H192: 0 | I192: 0 | J192: 0 | K192: 0 | L192: 0 | M192: 0 | N192: 0 | O192: 0 | P192: 0 | Q192: 0 | R192: 0 | S192: 0 | T192: 0 | U192: 0 | V192: 0 | W192: 0 | X192: 0 | Y192: 0 | Z192: 0 | AA192: 0 | AB192: 0 | AC192: 0 | AD192: 0 | AE192: 0 | AF192: 0 | AG192: 0 | AH192: 0 | AI192: 0 | AJ192: 0 | AK192: 0 | AL192: 0 | AM192: 0 | AN192: 0 | AO192: 0 | AP192: 0 | AQ192: 0 | AR192: 0 | AS192: 0 | AT192: 0 | AU192: 0 | AV192: 0 | AW192: 0 | AX192: 0 | AY192: 0 | AZ192: 0 | BA192: 0 | BB192: 0 | BC192: 0 | BD192: 0 | BE192: =BE$135*$A138 -> 0 | BF192: =BF$135*$A137 -> 0 | CA192: 0
A193: 0 | B193: 57 | C193: 0 | D193: 0 | E193: 0 | F193: 0 | G193: 0 | H193: 0 | I193: 0 | J193: 0 | K193: 0 | L193: 0 | M193: 0 | N193: 0 | O193: 0 | P193: 0 | Q193: 0 | R193: 0 | S193: 0 | T193: 0 | U193: 0 | V193: 0 | W193: 0 | X193: 0 | Y193: 0 | Z193: 0 | AA193: 0 | AB193: 0 | AC193: 0 | AD193: 0 | AE193: 0 | AF193: 0 | AG193: 0 | AH193: 0 | AI193: 0 | AJ193: 0 | AK193: 0 | AL193: 0 | AM193: 0 | AN193: 0 | AO193: 0 | AP193: 0 | AQ193: 0 | AR193: 0 | AS193: 0 | AT193: 0 | AU193: 0 | AV193: 0 | AW193: 0 | AX193: 0 | AY193: 0 | AZ193: 0 | BA193: 0 | BB193: 0 | BC193: 0 | BD193: 0 | BE193: 0 | BF193: =BF$135*$A138 -> 0 | BG193: =BG$135*$A137 -> 0 | CA193: 0
A194: 0 | B194: 58 | C194: 0 | D194: 0 | E194: 0 | F194: 0 | G194: 0 | H194: 0 | I194: 0 | J194: 0 | K194: 0 | L194: 0 | M194: 0 | N194: 0 | O194: 0 | P194: 0 | Q194: 0 | R194: 0 | S194: 0 | T194: 0 | U194: 0 | V194: 0 | W194: 0 | X194: 0 | Y194: 0 | Z194: 0 | AA194: 0 | AB194: 0 | AC194: 0 | AD194: 0 | AE194: 0 | AF194: 0 | AG194: 0 | AH194: 0 | AI194: 0 | AJ194: 0 | AK194: 0 | AL194: 0 | AM194: 0 | AN194: 0 | AO194: 0 | AP194: 0 | AQ194: 0 | AR194: 0 | AS194: 0 | AT194: 0 | AU194: 0 | AV194: 0 | AW194: 0 | AX194: 0 | AY194: 0 | AZ194: 0 | BA194: 0 | BB194: 0 | BC194: 0 | BD194: 0 | BE194: 0 | BF194: 0 | BG194: =BG$135*$A138 -> 0 | BH194: =BH$135*$A137 -> 0 | CA194: 0
A195: 0 | B195: 59 | C195: 0 | D195: 0 | E195: 0 | F195: 0 | G195: 0 | H195: 0 | I195: 0 | J195: 0 | K195: 0 | L195: 0 | M195: 0 | N195: 0 | O195: 0 | P195: 0 | Q195: 0 | R195: 0 | S195: 0 | T195: 0 | U195: 0 | V195: 0 | W195: 0 | X195: 0 | Y195: 0 | Z195: 0 | AA195: 0 | AB195: 0 | AC195: 0 | AD195: 0 | AE195: 0 | AF195: 0 | AG195: 0 | AH195: 0 | AI195: 0 | AJ195: 0 | AK195: 0 | AL195: 0 | AM195: 0 | AN195: 0 | AO195: 0 | AP195: 0 | AQ195: 0 | AR195: 0 | AS195: 0 | AT195: 0 | AU195: 0 | AV195: 0 | AW195: 0 | AX195: 0 | AY195: 0 | AZ195: 0 | BA195: 0 | BB195: 0 | BC195: 0 | BD195: 0 | BE195: 0 | BF195: 0 | BG195: 0 | BH195: =BH$135*$A138 -> 0 | BI195: =BI$135*$A137 -> 0 | CA195: 0
A196: 0 | B196: 60 | C196: 0 | D196: 0 | E196: 0 | F196: 0 | G196: 0 | H196: 0 | I196: 0 | J196: 0 | K196: 0 | L196: 0 | M196: 0 | N196: 0 | O196: 0 | P196: 0 | Q196: 0 | R196: 0 | S196: 0 | T196: 0 | U196: 0 | V196: 0 | W196: 0 | X196: 0 | Y196: 0 | Z196: 0 | AA196: 0 | AB196: 0 | AC196: 0 | AD196: 0 | AE196: 0 | AF196: 0 | AG196: 0 | AH196: 0 | AI196: 0 | AJ196: 0 | AK196: 0 | AL196: 0 | AM196: 0 | AN196: 0 | AO196: 0 | AP196: 0 | AQ196: 0 | AR196: 0 | AS196: 0 | AT196: 0 | AU196: 0 | AV196: 0 | AW196: 0 | AX196: 0 | AY196: 0 | AZ196: 0 | BA196: 0 | BB196: 0 | BC196: 0 | BD196: 0 | BE196: 0 | BF196: 0 | BG196: 0 | BH196: 0 | BI196: =BI$135*$A138 -> 0 | BJ196: =BJ$135*$A137 -> 0 | CA196: 0
A197: 0 | B197: 61 | C197: 0 | D197: 0 | E197: 0 | F197: 0 | G197: 0 | H197: 0 | I197: 0 | J197: 0 | K197: 0 | L197: 0 | M197: 0 | N197: 0 | O197: 0 | P197: 0 | Q197: 0 | R197: 0 | S197: 0 | T197: 0 | U197: 0 | V197: 0 | W197: 0 | X197: 0 | Y197: 0 | Z197: 0 | AA197: 0 | AB197: 0 | AC197: 0 | AD197: 0 | AE197: 0 | AF197: 0 | AG197: 0 | AH197: 0 | AI197: 0 | AJ197: 0 | AK197: 0 | AL197: 0 | AM197: 0 | AN197: 0 | AO197: 0 | AP197: 0 | AQ197: 0 | AR197: 0 | AS197: 0 | AT197: 0 | AU197: 0 | AV197: 0 | AW197: 0 | AX197: 0 | AY197: 0 | AZ197: 0 | BA197: 0 | BB197: 0 | BC197: 0 | BD197: 0 | BE197: 0 | BF197: 0 | BG197: 0 | BH197: 0 | BI197: 0 | BJ197: =BJ$135*$A138 -> 0 | BK197: =BK$135*$A137 -> 0 | CA197: 0
A198: 0 | B198: 62 | C198: 0 | D198: 0 | E198: 0 | F198: 0 | G198: 0 | H198: 0 | I198: 0 | J198: 0 | K198: 0 | L198: 0 | M198: 0 | N198: 0 | O198: 0 | P198: 0 | Q198: 0 | R198: 0 | S198: 0 | T198: 0 | U198: 0 | V198: 0 | W198: 0 | X198: 0 | Y198: 0 | Z198: 0 | AA198: 0 | AB198: 0 | AC198: 0 | AD198: 0 | AE198: 0 | AF198: 0 | AG198: 0 | AH198: 0 | AI198: 0 | AJ198: 0 | AK198: 0 | AL198: 0 | AM198: 0 | AN198: 0 | AO198: 0 | AP198: 0 | AQ198: 0 | AR198: 0 | AS198: 0 | AT198: 0 | AU198: 0 | AV198: 0 | AW198: 0 | AX198: 0 | AY198: 0 | AZ198: 0 | BA198: 0 | BB198: 0 | BC198: 0 | BD198: 0 | BE198: 0 | BF198: 0 | BG198: 0 | BH198: 0 | BI198: 0 | BJ198: 0 | BK198: =BK$135*$A138 -> 0 | BL198: =BL$135*$A137 -> 0 | CA198: 0
A199: 0 | B199: 63 | C199: 0 | D199: 0 | E199: 0 | F199: 0 | G199: 0 | H199: 0 | I199: 0 | J199: 0 | K199: 0 | L199: 0 | M199: 0 | N199: 0 | O199: 0 | P199: 0 | Q199: 0 | R199: 0 | S199: 0 | T199: 0 | U199: 0 | V199: 0 | W199: 0 | X199: 0 | Y199: 0 | Z199: 0 | AA199: 0 | AB199: 0 | AC199: 0 | AD199: 0 | AE199: 0 | AF199: 0 | AG199: 0 | AH199: 0 | AI199: 0 | AJ199: 0 | AK199: 0 | AL199: 0 | AM199: 0 | AN199: 0 | AO199: 0 | AP199: 0 | AQ199: 0 | AR199: 0 | AS199: 0 | AT199: 0 | AU199: 0 | AV199: 0 | AW199: 0 | AX199: 0 | AY199: 0 | AZ199: 0 | BA199: 0 | BB199: 0 | BC199: 0 | BD199: 0 | BE199: 0 | BF199: 0 | BG199: 0 | BH199: 0 | BI199: 0 | BJ199: 0 | BK199: 0 | BL199: =BL$135*$A138 -> 0 | BM199: =BM$135*$A137 -> 0 | CA199: 0
A200: 0 | B200: 64 | C200: 0 | D200: 0 | E200: 0 | F200: 0 | G200: 0 | H200: 0 | I200: 0 | J200: 0 | K200: 0 | L200: 0 | M200: 0 | N200: 0 | O200: 0 | P200: 0 | Q200: 0 | R200: 0 | S200: 0 | T200: 0 | U200: 0 | V200: 0 | W200: 0 | X200: 0 | Y200: 0 | Z200: 0 | AA200: 0 | AB200: 0 | AC200: 0 | AD200: 0 | AE200: 0 | AF200: 0 | AG200: 0 | AH200: 0 | AI200: 0 | AJ200: 0 | AK200: 0 | AL200: 0 | AM200: 0 | AN200: 0 | AO200: 0 | AP200: 0 | AQ200: 0 | AR200: 0 | AS200: 0 | AT200: 0 | AU200: 0 | AV200: 0 | AW200: 0 | AX200: 0 | AY200: 0 | AZ200: 0 | BA200: 0 | BB200: 0 | BC200: 0 | BD200: 0 | BE200: 0 | BF200: 0 | BG200: 0 | BH200: 0 | BI200: 0 | BJ200: 0 | BK200: 0 | BL200: 0 | BM200: =BM$135*$A138 -> 0 | BN200: =BN$135*$A137 -> 0 | CA200: 0
A201: 0 | B201: 65 | C201: 0 | D201: 0 | E201: 0 | F201: 0 | G201: 0 | H201: 0 | I201: 0 | J201: 0 | K201: 0 | L201: 0 | M201: 0 | N201: 0 | O201: 0 | P201: 0 | Q201: 0 | R201: 0 | S201: 0 | T201: 0 | U201: 0 | V201: 0 | W201: 0 | X201: 0 | Y201: 0 | Z201: 0 | AA201: 0 | AB201: 0 | AC201: 0 | AD201: 0 | AE201: 0 | AF201: 0 | AG201: 0 | AH201: 0 | AI201: 0 | AJ201: 0 | AK201: 0 | AL201: 0 | AM201: 0 | AN201: 0 | AO201: 0 | AP201: 0 | AQ201: 0 | AR201: 0 | AS201: 0 | AT201: 0 | AU201: 0 | AV201: 0 | AW201: 0 | AX201: 0 | AY201: 0 | AZ201: 0 | BA201: 0 | BB201: 0 | BC201: 0 | BD201: 0 | BE201: 0 | BF201: 0 | BG201: 0 | BH201: 0 | BI201: 0 | BJ201: 0 | BK201: 0 | BL201: 0 | BM201: 0 | BN201: =BN$135*$A138 -> 0 | BO201: =BO$135*$A137 -> 0 | CA201: =SUM($C201:$BZ201) -> 0
A202: =IF($B$132=1,CC202,IF($B$132=2,CD202,IF($B$132=3,CE202,IF($B$132=4,CF202,#VALUE!)))) -> 0 | B202: =+B201+1 -> 66 | C202: =C$135*$A202 -> 0 | D202: 0 | E202: 0 | F202: 0 | G202: 0 | H202: 0 | I202: 0 | J202: 0 | K202: 0 | L202: 0 | M202: 0 | N202: 0 | O202: 0 | P202: 0 | Q202: 0 | R202: 0 | S202: 0 | T202: 0 | U202: 0 | V202: 0 | W202: 0 | X202: 0 | Y202: 0 | Z202: 0 | AA202: 0 | AB202: 0 | AC202: 0 | AD202: 0 | AE202: 0 | AF202: 0 | AG202: 0 | AH202: 0 | AI202: 0 | AJ202: 0 | AK202: 0 | AL202: 0 | AM202: 0 | AN202: 0 | AO202: 0 | AP202: 0 | AQ202: 0 | AR202: 0 | AS202: 0 | AT202: 0 | AU202: 0 | AV202: 0 | AW202: 0 | AX202: 0 | AY202: 0 | AZ202: 0 | BA202: 0 | BB202: 0 | BC202: 0 | BD202: 0 | BE202: 0 | BF202: 0 | BG202: 0 | BH202: 0 | BI202: 0 | BJ202: 0 | BK202: 0 | BL202: 0 | BM202: 0 | BN202: 0 | BO202: =BO$135*$A138 -> 0 | BP202: =BP$135*$A137 -> 0 | CA202: 0
A203: 0 | B203: 67 | C203: 0 | D203: =D$135*$A202 -> 0 | E203: 0 | F203: 0 | G203: 0 | H203: 0 | I203: 0 | J203: 0 | K203: 0 | L203: 0 | M203: 0 | N203: 0 | O203: 0 | P203: 0 | Q203: 0 | R203: 0 | S203: 0 | T203: 0 | U203: 0 | V203: 0 | W203: 0 | X203: 0 | Y203: 0 | Z203: 0 | AA203: 0 | AB203: 0 | AC203: 0 | AD203: 0 | AE203: 0 | AF203: 0 | AG203: 0 | AH203: 0 | AI203: 0 | AJ203: 0 | AK203: 0 | AL203: 0 | AM203: 0 | AN203: 0 | AO203: 0 | AP203: 0 | AQ203: 0 | AR203: 0 | AS203: 0 | AT203: 0 | AU203: 0 | AV203: 0 | AW203: 0 | AX203: 0 | AY203: 0 | AZ203: 0 | BA203: 0 | BB203: 0 | BC203: 0 | BD203: 0 | BE203: 0 | BF203: 0 | BG203: 0 | BH203: 0 | BI203: 0 | BJ203: 0 | BK203: 0 | BL203: 0 | BM203: 0 | BN203: 0 | BO203: 0 | BP203: =BP$135*$A138 -> 0 | BQ203: =BQ$135*$A137 -> 0 | CA203: 0
A204: 0 | B204: 68 | C204: 0 | D204: 0 | E204: =E$135*$A202 -> 0 | F204: 0 | G204: 0 | H204: 0 | I204: 0 | J204: 0 | K204: 0 | L204: 0 | M204: 0 | N204: 0 | O204: 0 | P204: 0 | Q204: 0 | R204: 0 | S204: 0 | T204: 0 | U204: 0 | V204: 0 | W204: 0 | X204: 0 | Y204: 0 | Z204: 0 | AA204: 0 | AB204: 0 | AC204: 0 | AD204: 0 | AE204: 0 | AF204: 0 | AG204: 0 | AH204: 0 | AI204: 0 | AJ204: 0 | AK204: 0 | AL204: 0 | AM204: 0 | AN204: 0 | AO204: 0 | AP204: 0 | AQ204: 0 | AR204: 0 | AS204: 0 | AT204: 0 | AU204: 0 | AV204: 0 | AW204: 0 | AX204: 0 | AY204: 0 | AZ204: 0 | BA204: 0 | BB204: 0 | BC204: 0 | BD204: 0 | BE204: 0 | BF204: 0 | BG204: 0 | BH204: 0 | BI204: 0 | BJ204: 0 | BK204: 0 | BL204: 0 | BM204: 0 | BN204: 0 | BO204: 0 | BP204: 0 | BQ204: =BQ$135*$A138 -> 0 | BR204: =BR$135*$A137 -> 0 | CA204: 0
A205: 0 | B205: 69 | C205: 0 | D205: 0 | E205: 0 | F205: =F$135*$A202 -> 0 | G205: 0 | H205: 0 | I205: 0 | J205: 0 | K205: 0 | L205: 0 | M205: 0 | N205: 0 | O205: 0 | P205: 0 | Q205: 0 | R205: 0 | S205: 0 | T205: 0 | U205: 0 | V205: 0 | W205: 0 | X205: 0 | Y205: 0 | Z205: 0 | AA205: 0 | AB205: 0 | AC205: 0 | AD205: 0 | AE205: 0 | AF205: 0 | AG205: 0 | AH205: 0 | AI205: 0 | AJ205: 0 | AK205: 0 | AL205: 0 | AM205: 0 | AN205: 0 | AO205: 0 | AP205: 0 | AQ205: 0 | AR205: 0 | AS205: 0 | AT205: 0 | AU205: 0 | AV205: 0 | AW205: 0 | AX205: 0 | AY205: 0 | AZ205: 0 | BA205: 0 | BB205: 0 | BC205: 0 | BD205: 0 | BE205: 0 | BF205: 0 | BG205: 0 | BH205: 0 | BI205: 0 | BJ205: 0 | BK205: 0 | BL205: 0 | BM205: 0 | BN205: 0 | BO205: 0 | BP205: 0 | BQ205: 0 | BR205: =BR$135*$A138 -> 0 | BS205: =BS$135*$A137 -> 0 | CA205: 0
... 177 more rows

Sheet 3rd party cont.
A1: State Income Tax Rate ............ | D1: 0.0164024 | I1: Debt ........................... | L1: 0.5 | M1: 0.052 | N1: =ROUND(L1*M1,4) -> 0.026 | O1: =N1*(1-D2) -> 0.02054 | Q1: Gross Revenue | T1: 1
A2: Federal Income Tax Rate ........ | D2: 0.21 | I2: Preferred Stock ................. | L2: 0 | M2: 0 | N2: =ROUND(L2*M2,4) -> 0 | O2: =N2 -> 0 | Q2: Uncollectables | T2: 0
A3: Discount Factor ...................... | D3: =+O4 -> 0.06804 | I3: Common Equity ...................... | L3: 0.5 | M3: 0.095 | N3: =ROUND(L3*M3,4) -> 0.0475 | O3: =N3 -> 0.0475 | Q3: Commission Fees | T3: 0
A4: Capital Class ........................... | D4: 4 | E4: (1) General Structures. | N4: =SUM(N1:N3) -> 0.0735 | O4: =SUM(O1:O3) -> 0.06804 | Q4: Excise Tax | T4: 0
E5: (2) Generation, Transmission, | Q5: Franchise Fees | T5: 0
E6: and Distribution. | Q6: ERSA | T6: 0
E7: (3) Other Equipment. | N7: IRR CALC | T7: -
E8: (4) Transportation Equipment. | I8: Principal ...................... | L8: =T24 -> 1.109975574e-52 | N8: =L8 -> 1.109975574e-52 | O8: pv princ | Q8: Misc. Revenue Items | T8: =SUM(T2:T6) -> 0
A9: Book Life (Years) .............. | D9: 10 | I9: Interest ....................... | L9: =D3 -> 0.06804 | N9: =V20 -> 0 | O9: pv lvlized margin | T9: -
A10: Property Tax Rate ............... | D10: 0.015 | I10: Term ............................. | L10: 10 | N10: =IRR($AI$28:$AI$102,0.059065190478108) ->  | O10: IRR | Q10: Before State Income Tax | T10: =T1-T8 -> 1
A11: O&M Escalation Factor .......... | D11: 0.03 | I11: Levelized Gr. Mar. Requirement ....... | L11: =PMT($L$9,$L$10,-$L$8) -> 1.566067759e-53 | Q11: State Income Tax | T11: 0
T12: -
B13: Idaho | C13: Oregon | D13: Washington | Q13: Before Federal Income Tax | T13: =T10-T11 -> 1
A14: Electric | B14: 0.35 | C14: 0 | D14: 0.65 | E14: =SUM(B14:D14) -> 1 | K14: Lev ROE | L14: =PMT(L9,L10,-L15) -> 2525.712358 | Q14: Federal Income Tax | T14: =T13*D2 -> 0.21 | V14: (v) | W14: (w) | X14: (x) | Y14: (y) | Z14: (z) | AA14: (aa) | AB14: (ab) | AC14: (ac) | AD14: (ad) | AE14: (ae) | AF14: (af) | AG14: (ag) | AH14: (ah)
A15: Gas | B15: 0 | C15: 0 | D15: 0 | E15: =SUM(B15:D15) -> 0 | K15: NPV equity | L15: =NPV(L9,$M$28:$M$103) -> 17901.39033 | T15: - | V15: PV GM
B16: =SUM(B14:B15) -> 0.35 | C16: =SUM(C14:C15) -> 0 | D16: 0.65 | E16: 1 | Q16: Conversion Factor | T16: =T13-T14 -> 0.79 | V16: =NPV(O4,$V$29:$V$103)+V28 -> 0
A17: ...................................................................................................................................................................................................................... | V17: TERM
B18: Capital Additions | V18: =L10 -> 10 | AD18: pv of contribution to fixed costs | AG18: =NPV(O4,20,AG28:AG28) -> 18.72589042
B19: ----------------- | D19: Rate | E19: Accum. | G19: Book Dep. | I19: Rate | K19: Average | P19: Misc. | Q19: State | R19: Federal | S19: Total | T19: Present Val | V19: LEVELIZED | AE19: Interest ....................... | AG19: =O4 -> 0.06804 | AL19: Inter.
B20: Tax | C20: Book | D20: Base | E20: Book | F20: Tax | G20: on Tax | H20: Deferred | I20: Base | J20: Book | K20: Rate | L20: Interest | M20: Equity | N20: O&M & A&G | O20: Property | P20: Revenue | Q20: Income | R20: Income | S20: Gross Marg | T20: Gross Marg | V20: =PMT(L9,V18,-V16) -> 0 | AE20: Term ............................. | AG20: 50 | AH20: per kwh | AL20: Revenue | AN20: Net Book
B21: Basis | C21: Basis | D21: BOP | E21: Deprec. | F21: Deprec. | G21: Basis | H21: Taxes | I21: EOP | J21: Deprec. | K21: Base | L21: Expense | M21: Return | N21: Expense | O21: Taxes | P21: Items | Q21: Tax | R21: Taxes | S21: Reqmnt | T21: Reqmnt | AD21: levelized cont. to fixed costs | AG21: =PMT(AG19,AG20,-AG18) -> 1.323347304 | AH21: =AG21/(400*1000) -> 3.308368259e-06 | AL21: Requirement | AN21: BOP
A22: (a) | B22: (b) | C22: (c) | D22: (d) | E22: (e) | F22: (f) | G22: (g) | H22: (h) | I22: (i) | J22: (j) | K22: (k) | L22: (l) | M22: (m) | N22: (n) | O22: (o) | P22: (p) | Q22: (q) | R22: (r) | S22: (s) | T22: (t) | W22: - | X22: - | Y22: - | Z22: - | AA22: - | AB22: - | AC22: - | AD22: - | AE22: - | AF22: - | AG22: - | AH22: -
B23: - | C23: - | D23: - | E23: - | F23: - | G23: - | H23: - | I23: - | J23: - | K23: - | L23: - | M23: - | N23: - | O23: - | P23: - | Q23: - | R23: - | S23: - | T23: - | Z23: RES LOAD @ | AG23: ANNUAL | AH23: CUMULATIVE | AL23: - | AN23: -
A24: Total => | B24: =SUM(B25:B104) -> 218323.8893 | C24: =SUM(C25:C104) -> 218323.8893 | F24: =SUM(F25:F104) -> 218323.8893 | G24: =SUM(G25:G104) -> 218323.8893 | H24: =SUM(H25:H104) -> -2.387423592e-12 | J24: =SUM(J25:J104) -> 218323.8893 | L24: =SUM(L25:L104) -> 25161.66755 | M24: 45968.43111 | N24: 1195601.922 | O24: 18011.72087 | P24: 0 | Q24: 562.4048936 | R24: 7082.367321 | S24: 1571437.335 | T24: 1.109975574e-52 | V24: Offsets | X24: NEW | Y24: CUML | Z24: 12000 | AA24: COMM | AB24: COMM | AC24: TOTAL | AD24: TOTAL | AE24: REVENUE | AF24: ESTIMATED | AG24: (SHORTFALL) | AH24: (SHORTFALL)
A25: Period | B25: - | C25: - | D25: - | E25: - | F25: - | G25: - | H25: - | I25: - | J25: - | K25: - | L25: - | M25: - | N25: - | O25: - | P25: - | Q25: - | R25: - | S25: - | T25: - | W25: YR | X25: CUST | Y25: CUST | Z25: KWH EA | AA25: CUST | AB25: LOAD | AC25: CUST | AD25: LOAD | AE25: REQ | AF25: MARGIN | AG25: EXCESS | AH25: EXCESS | AI25: 0.05906519048 | AL25: - | AN25: -
W26: - | X26: - | Y26: - | Z26: - | AA26: - | AB26: - | AC26: - | AD26: - | AE26: - | AF26: - | AG26: - | AH26: - | AJ26: =NPV(AI25,$AI$28:$AI$103) -> 0
S27: =-PMT(O4,20,NPV(O4,S28:S51)) -> 60724.9324
A28: 2023 | B28: =HLOOKUP($A28,'AEG Input File'!$AC$2:$AZ$8,7,FALSE)*Inflation!$B4/100 -> 0 | C28: =B28 -> 0 | D28: =I27+C28 -> 0 | E28: =E27+J28 -> 0 | F28: =CA137 -> 0 | G28: =CA229 -> 0 | H28: =(F28-G28)*$D$2 -> 0 | I28: =D28-J28-H28 -> 0 | J28: =CA323 -> 0 | K28: =(+I28+D28)/2 -> 0 | L28: =IF(A28=1,$N$1*K28,$N$1*K28) -> 0 | M28: =IF(A28=1,($N$3+$N$2)*K28,($N$3+$N$2)*K28) -> 0 | N28: =HLOOKUP($A28,'AEG Input File'!$BA$2:$BX$8,7,FALSE)*Inflation!$B4/100 -> 0 | O28: =AN28*$D$10 -> 0 | P28: =AL28*$T$8 -> 0 | Q28: =(+AL28-(G28+L28+N28+O28+P28))*$D$1 -> 0 | R28: =(+AL28-(G28+L28+N28+O28+P28+Q28))*$D$2 -> 0 | S28: =J28+M28+L28+N28+O28+P28+Q28+R28 -> 0 | T28: =S28/(1+$D$3)^(A28-1) -> 0 | V28: 0 | W28: =1+W27 -> 1 | X28: 0 | Y28: =+X28 -> 0 | Z28: =X28*$Z$24 -> 0 | AA28: 0 | AB28: 0 | AC28: =Y28+AA28 -> 0 | AD28: 0 | AE28: =S28 -> 0 | AF28: =V28 -> 0 | AG28: =AF28-AE28 -> 0 | AH28: =AF28-AE28 -> 0 | AI28: =IF(A28=1,AF28-T24,AF28) -> 0 | AL28: =(+J28+L28+M28+N28+O28-(($D$1+(1-$D$1)*$D$2)*(G28+L28+N28+O28)))/$T$16 -> 0 | AN28: =C28-J27+AN27 -> 0
A29: =1+A28 -> 2024 | B29: =HLOOKUP($A29,'AEG Input File'!$AC$2:$AZ$8,7,FALSE)*Inflation!$B5/100 -> 8308.603895 | C29: =B29 -> 8308.603895 | D29: =I28+C29 -> 8308.603895 | E29: 830.8603895 | F29: 1661.720779 | G29: =CA230 -> 830.8603895 | H29: 174.4806818 | I29: 7303.262824 | J29: 830.8603895 | K29: 7805.933359 | L29: =IF(A29=1,$N$1*K29,$N$1*K29) -> 202.9542673 | M29: 370.7818346 | N29: =HLOOKUP($A29,'AEG Input File'!$BA$2:$BX$8,7,FALSE)*Inflation!$B5/100 -> 45280.76227 | O29: 124.6290584 | P29: =AL29*$T$8 -> 0 | Q29: -4.795575229 | R29: -60.39070015 | S29: 46744.80154 | T29: =S29/(1+$D$3)^(A29-1) -> 6.873599223e-54 | V29: 0 | W29: =1+W28 -> 2 | X29: 0 | Y29: =+X29 -> 0 | Z29: =X29*$Z$24 -> 0 | AA29: 0 | AB29: 0 | AC29: 0 | AD29: 0 | AE29: 46744.80154 | AF29: 0 | AG29: -46744.80154 | AH29: =AF29-AE29 -> -46744.80154 | AI29: =IF(A29=1,AF29-T25,AF29) -> 0 | AL29: =(+J29+L29+M29+N29+O29-(($D$1+(1-$D$1)*$D$2)*(G29+L29+N29+O29)))/$T$16 -> 46146.83565 | AN29: =C29-J28+AN28 -> 8308.603895
A30: 2025 | B30: =HLOOKUP($A30,'AEG Input File'!$AC$2:$AZ$8,7,FALSE)*Inflation!$B6/100 -> 8469.709863 | C30: 8469.709863 | D30: 15772.97269 | E30: 2508.691765 | F30: 4352.695219 | G30: 1677.831376 | H30: 561.7214071 | I30: 13533.4199 | J30: 1677.831376 | K30: 14653.19629 | L30: 380.9831037 | M30: 696.026824 | N30: =HLOOKUP($A30,'AEG Input File'!$BA$2:$BX$8,7,FALSE)*Inflation!$B6/100 -> 46285.65697 | O30: 239.2118005 | P30: 0 | Q30: 1.380386726 | R30: 17.38321617 | S30: 49298.47367 | T30: 6.787296807e-54 | V30: 0 | W30: 3 | X30: 0 | Y30: 0 | Z30: 0 | AA30: 0 | AB30: 0 | AC30: 0 | AD30: 0 | AE30: 49298.47367 | AF30: 0 | AG30: -49298.47367 | AH30: -49298.47367 | AI30: 0 | AL30: 48667.84085 | AN30: 15947.45337
A31: 2026 | B31: =HLOOKUP($A31,'AEG Input File'!$AC$2:$AZ$8,7,FALSE)*Inflation!$B7/100 -> 8600.562119 | C31: 8600.562119 | D31: 22133.98202 | E31: 5046.579353 | F31: 6025.671528 | G31: 2537.887588 | H31: 732.4346274 | I31: 18863.65981 | J31: 2537.887588 | K31: 20498.82092 | L31: 532.9693438 | M31: 973.6939935 | N31: =HLOOKUP($A31,'AEG Input File'!$BA$2:$BX$8,7,FALSE)*Inflation!$B7/100 -> 47088.26082 | O31: 343.0527617 | P31: 0 | Q31: 6.629312751 | R31: 83.48296489 | S31: 51565.97678 | T31: 6.647205396e-54 | V31: 0 | W31: 4 | X31: 0 | Y31: 0 | Z31: 0 | AA31: 0 | AB31: 0 | AC31: 0 | AD31: 0 | AE31: 51565.97678 | AF31: 0 | AG31: -51565.97678 | AH31: -51565.97678 | AI31: 0 | AL31: 50906.33775 | AN31: 22870.18411
A32: 2027 | B32: =HLOOKUP($A32,'AEG Input File'!$AC$2:$AZ$8,7,FALSE)*Inflation!$B8/100 -> 8747.306506 | C32: 8747.306506 | D32: 27610.96631 | E32: 8459.197591 | F32: 7084.976642 | G32: 3412.618238 | H32: 771.1952647 | I32: 23427.15281 | J32: 3412.618238 | K32: 25519.05956 | L32: 663.4955486 | M32: 1212.155329 | N32: =HLOOKUP($A32,'AEG Input File'!$BA$2:$BX$8,7,FALSE)*Inflation!$B8/100 -> 47893.89831 | O32: 436.1940454 | P32: 0 | Q32: 11.06811446 | R32: 139.3808145 | S32: 53768.8104 | T32: 6.489612414e-54 | V32: 0 | W32: 5 | X32: 0 | Y32: 0 | Z32: 0 | AA32: 0 | AB32: 0 | AC32: 0 | AD32: 0 | AE32: 53768.8104 | AF32: 0 | AG32: -53768.8104 | AH32: -53768.8104 | AI32: 0 | AL32: 53080.99242 | AN32: 29079.60303
A33: 2028 | B33: =HLOOKUP($A33,'AEG Input File'!$AC$2:$AZ$8,7,FALSE)*Inflation!$B9/100 -> 8895.92779 | C33: 8895.92779 | D33: 32323.0806 | E33: 12761.40861 | F33: 8162.493312 | G33: 4302.211017 | H33: 810.6592818 | I33: 27210.2103 | J33: 4302.211017 | K33: 29766.64545 | L33: 773.9327817 | M33: 1413.915659 | N33: =HLOOKUP($A33,'AEG Input File'!$BA$2:$BX$8,7,FALSE)*Inflation!$B9/100 -> 48709.92886 | O33: 518.4436887 | P33: 0 | Q33: 14.74645073 | R33: 185.7021195 | S33: 55918.88057 | T33: 6.31915899e-54 | V33: 0 | W33: 6 | X33: 0 | Y33: 0 | Z33: 0 | AA33: 0 | AB33: 0 | AC33: 0 | AD33: 0 | AE33: 55918.88057 | AF33: 0 | AG33: -55918.88057 | AH33: -55918.88057 | AI33: 0 | AL33: 55203.5586 | AN33: 34562.91258
A34: 2029 | B34: =HLOOKUP($A34,'AEG Input File'!$AC$2:$AZ$8,7,FALSE)*Inflation!$B10/100 -> 9043.487191 | C34: 9043.487191 | D34: 36253.69749 | E34: 17967.96834 | F34: 8779.948097 | G34: 5206.559736 | H34: 750.4115557 | I34: 30296.7262 | J34: 5206.559736 | K34: 33275.21185 | L34: 865.155508 | M34: 1580.572563 | N34: =HLOOKUP($A34,'AEG Input File'!$BA$2:$BX$8,7,FALSE)*Inflation!$B10/100 -> 49520.25747 | O34: 589.5628313 | P34: 0 | Q34: 17.70167912 | R34: 222.9173237 | S34: 58002.72711 | T34: 6.137078928e-54 | V34: 0 | W34: 7 | X34: 0 | Y34: 0 | Z34: 0 | AA34: 0 | AB34: 0 | AC34: 0 | AD34: 0 | AE34: 58002.72711 | AF34: 0 | AG34: -58002.72711 | AH34: -58002.72711 | AI34: 0 | AL34: 57260.74829 | AN34: 39304.18876
A35: 2030 | B35: =HLOOKUP($A35,'AEG Input File'!$AC$2:$AZ$8,7,FALSE)*Inflation!$B11/100 -> 9192.846603 | C35: 9192.846603 | D35: 39489.5728 | E35: 24093.81274 | F35: 8926.833111 | G35: 6125.844397 | H35: 588.20763 | I35: 32775.52078 | J35: 6125.844397 | K35: 36132.54679 | L35: 939.4462165 | M35: 1716.295973 | N35: =HLOOKUP($A35,'AEG Input File'!$BA$2:$BX$8,7,FALSE)*Inflation!$B11/100 -> 50340.56348 | O35: 649.3571343 | P35: 0 | Q35: 20.01554939 | R35: 252.0559023 | S35: 60043.57865 | T35: 5.948292908e-54 | V35: 0 | W35: 8 | X35: 0 | Y35: 0 | Z35: 0 | AA35: 0 | AB35: 0 | AC35: 0 | AD35: 0 | AE35: 60043.57865 | AF35: 0 | AG35: -60043.57865 | AH35: -60043.57865 | AI35: 0 | AL35: 59275.49298 | AN35: 43290.47562
A36: 2031 | B36: =HLOOKUP($A36,'AEG Input File'!$AC$2:$AZ$8,7,FALSE)*Inflation!$B12/100 -> 9344.014776 | C36: 9344.014776 | D36: 42119.53555 | E36: 31154.05862 | F36: 9074.756378 | G36: 7060.245874 | H36: 423.0472057 | I36: 34636.24247 | J36: 7060.245874 | K36: 38377.88901 | L36: 997.8251143 | M36: 1822.949728 | N36: =HLOOKUP($A36,'AEG Input File'!$BA$2:$BX$8,7,FALSE)*Inflation!$B12/100 -> 51170.89616 | O36: 697.62969 | P36: 0 | Q36: 21.72647616 | R36: 273.6016108 | S36: 62044.87466 | T36: 5.754984666e-54 | V36: 0 | W36: 9 | X36: 0 | Y36: 0 | Z36: 0 | AA36: 0 | AB36: 0 | AC36: 0 | AD36: 0 | AE36: 62044.87466 | AF36: 0 | AG36: -62044.87466 | AH36: -62044.87466 | AI36: 0 | AL36: 61251.18813 | AN36: 46508.646
A37: 2032 | B37: =HLOOKUP($A37,'AEG Input File'!$AC$2:$AZ$8,7,FALSE)*Inflation!$B13/100 -> 9497.00032 | C37: 9497.00032 | D37: 44133.24279 | E37: 39164.00452 | F37: 9224.976801 | G37: 8009.945906 | H37: 255.1564878 | I37: 35868.1404 | J37: 8009.945906 | K37: 40000.6916 | L37: 1040.017981 | M37: 1900.032851 | N37: =HLOOKUP($A37,'AEG Input File'!$BA$2:$BX$8,7,FALSE)*Inflation!$B13/100 -> 52011.30617 | O37: 734.1810067 | P37: 0 | Q37: 22.82412278 | R37: 287.4242795 | S37: 64005.73231 | T37: 5.558653615e-54 | V37: 0 | W37: 10 | X37: 0 | Y37: 0 | Z37: 0 | AA37: 0 | AB37: 0 | AC37: 0 | AD37: 0 | AE37: 64005.73231 | AF37: 0 | AG37: -64005.73231 | AH37: -64005.73231 | AI37: 0 | AL37: 63186.96223 | AN37: 48945.40045
A38: 2033 | B38: =HLOOKUP($A38,'AEG Input File'!$AC$2:$AZ$8,7,FALSE)*Inflation!$B14/100 -> 9651.811708 | C38: 9651.811708 | D38: 45519.95211 | E38: 48139.1316 | F38: 9376.684375 | G38: 8975.127077 | H38: 84.32703252 | I38: 36460.498 | J38: 8975.127077 | K38: 40990.22505 | L38: 1065.745851 | M38: 1947.03569 | N38: =HLOOKUP($A38,'AEG Input File'!$BA$2:$BX$8,7,FALSE)*Inflation!$B14/100 -> 52861.85255 | O38: 758.8089937 | P38: 0 | Q38: 23.29797201 | R38: 293.391465 | S38: 65925.2596 | T38: 5.36062061e-54 | V38: 0 | W38: 11 | X38: 0 | Y38: 0 | Z38: 0 | AA38: 0 | AB38: 0 | AC38: 0 | AD38: 0 | AE38: 65925.2596 | AF38: 0 | AG38: -65925.2596 | AH38: -65925.2596 | AI38: 0 | AL38: 65081.93466 | AN38: 50587.26625
A39: 2034 | B39: =HLOOKUP($A39,'AEG Input File'!$AC$2:$AZ$8,7,FALSE)*Inflation!$B15/100 -> 9808.457276 | C39: 9808.457276 | D39: 46268.95527 | E39: 57264.24401 | F39: 9530.046556 | G39: 9125.112415 | H39: 85.03616964 | I39: 37058.80669 | J39: 9125.112415 | K39: 41663.88098 | L39: 1083.260906 | M39: 1979.034347 | N39: =HLOOKUP($A39,'AEG Input File'!$BA$2:$BX$8,7,FALSE)*Inflation!$B15/100 -> 53722.57115 | O39: 771.3089467 | P39: 0 | Q39: 23.68235143 | R39: 298.2319567 | S39: 67003.20208 | T39: 5.101187221e-54 | V39: 0 | W39: 12 | X39: 0 | Y39: 0 | Z39: 0 | AA39: 0 | AB39: 0 | AC39: 0 | AD39: 0 | AE39: 67003.20208 | AF39: 0 | AG39: -67003.20208 | AH39: -67003.20208 | AI39: 0 | AL39: 66146.08795 | AN39: 51420.59645
A40: 2035 | B40: =HLOOKUP($A40,'AEG Input File'!$AC$2:$AZ$8,7,FALSE)*Inflation!$B16/100 -> 9966.945224 | C40: 9966.945224 | D40: 47025.75191 | E40: 66539.07997 | F40: 9685.236125 | G40: 9274.835951 | H40: 86.18403637 | I40: 37664.73193 | J40: 9274.835951 | K40: 42345.24192 | L40: 1100.97629 | M40: 2011.398991 | N40: =HLOOKUP($A40,'AEG Input File'!$BA$2:$BX$8,7,FALSE)*Inflation!$B16/100 -> 54593.52209 | O40: 783.9364389 | P40: 0 | Q40: 24.07155902 | R40: 303.1332496 | S40: 68091.87457 | T40: 4.853817882e-54 | V40: 0 | W40: 13 | X40: 0 | Y40: 0 | Z40: 0 | AA40: 0 | AB40: 0 | AC40: 0 | AD40: 0 | AE40: 68091.87457 | AF40: 0 | AG40: -68091.87457 | AH40: -68091.87457 | AI40: 0 | AL40: 67220.83399 | AN40: 52262.42926
A41: 2036 | B41: =HLOOKUP($A41,'AEG Input File'!$AC$2:$AZ$8,7,FALSE)*Inflation!$B17/100 -> 10127.28362 | C41: 10127.28362 | D41: 47792.01554 | E41: 75966.58807 | F41: 9842.26139 | G41: 9427.508101 | H41: 87.09819049 | I41: 38277.40925 | J41: 9427.508101 | K41: 43034.7124 | L41: 1118.902522 | M41: 2044.148839 | N41: =HLOOKUP($A41,'AEG Input File'!$BA$2:$BX$8,7,FALSE)*Inflation!$B17/100 -> 55474.75362 | O41: 796.7231539 | P41: 0 | Q41: 24.46510567 | R41: 308.0891843 | S41: 69194.59052 | T41: 4.618200802e-54 | V41: 0 | W41: 14 | X41: 0 | Y41: 0 | Z41: 0 | AA41: 0 | AB41: 0 | AC41: 0 | AD41: 0 | AE41: 69194.59052 | AF41: 0 | AG41: -69194.59052 | AH41: -69194.59052 | AI41: 0 | AL41: 68309.44385 | AN41: 53114.87693
A42: 2037 | B42: =HLOOKUP($A42,'AEG Input File'!$AC$2:$AZ$8,7,FALSE)*Inflation!$B18/100 -> 10289.4804 | C42: 10289.4804 | D42: 48566.88965 | E42: 85548.31356 | F42: 10001.13053 | G42: 9581.725491 | H42: 88.07505752 | I42: 38897.0891 | J42: 9581.725491 | K42: 43731.98938 | L42: 1137.031724 | M42: 2077.269495 | N42: =HLOOKUP($A42,'AEG Input File'!$BA$2:$BX$8,7,FALSE)*Inflation!$B18/100 -> 56366.31091 | O42: 809.6527383 | P42: 0 | Q42: 24.86306445 | R42: 313.100681 | S42: 70309.9541 | T42: 4.393695599e-54 | V42: 0 | W42: 15 | X42: 0 | Y42: 0 | Z42: 0 | AA42: 0 | AB42: 0 | AC42: 0 | AD42: 0 | AE42: 70309.9541 | AF42: 0 | AG42: -70309.9541 | AH42: -70309.9541 | AI42: 0 | AL42: 69410.53955 | AN42: 53976.84922
A43: 2038 | B43: =HLOOKUP($A43,'AEG Input File'!$AC$2:$AZ$8,7,FALSE)*Inflation!$B19/100 -> 10453.54337 | C43: 10453.54337 | D43: 49350.63247 | E43: 95285.80061 | F43: 10161.85158 | G43: 9737.487048 | H43: 89.11655127 | I43: 39524.02887 | J43: 9737.487048 | K43: 44437.33067 | L43: 1155.370597 | M43: 2110.773207 | N43: =HLOOKUP($A43,'AEG Input File'!$BA$2:$BX$8,7,FALSE)*Inflation!$B19/100 -> 57268.24575 | O43: 822.7300065 | P43: 0 | Q43: 25.26567287 | R43: 318.1707306 | S43: 71438.04301 | T43: 4.179796918e-54 | V43: 0 | W43: 16 | X43: 0 | Y43: 0 | Z43: 0 | AA43: 0 | AB43: 0 | AC43: 0 | AD43: 0 | AE43: 71438.04301 | AF43: 0 | AG43: -71438.04301 | AH43: -71438.04301 | AI43: 0 | AL43: 70524.19779 | AN43: 54848.6671
A44: 2039 | B44: =HLOOKUP($A44,'AEG Input File'!$AC$2:$AZ$8,7,FALSE)*Inflation!$B20/100 -> 10619.4802 | C44: 10619.4802 | D44: 50143.50907 | E44: 105180.887 | F44: 10324.43246 | G44: 9895.08635 | H44: 90.16268245 | I44: 40158.26004 | J44: 9895.08635 | K44: =(+I44+D44)/2 -> 45150.88456 | L44: 1173.922999 | M44: 2144.667017 | N44: =HLOOKUP($A44,'AEG Input File'!$BA$2:$BX$8,7,FALSE)*Inflation!$B20/100 -> 58180.59707 | O44: 835.9599038 | P44: 0 | Q44: 25.67298534 | R44: =(+AL44-(G44+L44+N44+O44+P44+Q44))*$D$2 -> 323.3000184 | S44: 72579.20634 | T44: 3.976036196e-54 | V44: 0 | W44: 17 | X44: 0 | Y44: 0 | Z44: 0 | AA44: 0 | AB44: 0 | AC44: =Y44+AA44 -> 0 | AD44: 0 | AE44: 72579.20634 | AF44: 0 | AG44: -72579.20634 | AH44: -72579.20634 | AI44: 0 | AL44: 71650.7632 | AN44: 55730.66025
A45: 2040 | B45: =HLOOKUP($A45,'AEG Input File'!$AC$2:$AZ$8,7,FALSE)*Inflation!$B21/100 -> 10787.29847 | C45: 10787.29847 | D45: 50945.55851 | E45: 115235.4185 | F45: 10488.88095 | G45: 10054.53154 | H45: 91.21337588 | I45: 40799.8136 | J45: 10054.53154 | K45: 45872.68605 | L45: 1192.689837 | M45: 2178.952588 | N45: =HLOOKUP($A45,'AEG Input File'!$BA$2:$BX$8,7,FALSE)*Inflation!$B21/100 -> 59103.42053 | O45: 849.3430856 | P45: 0 | Q45: 26.08501882 | R45: 328.4887577 | S45: 73733.51136 | T45: 3.781947649e-54 | V45: 0 | W45: 18 | X45: 0 | Y45: 0 | Z45: 0 | AA45: 0 | AB45: 0 | AC45: 0 | AD45: 0 | AE45: 73733.51136 | AF45: 0 | AG45: -73733.51136 | AH45: -73733.51136 | AI45: 0 | AL45: 72790.30219 | AN45: 56622.87237
A46: 2041 | B46: =HLOOKUP($A46,'AEG Input File'!$AC$2:$AZ$8,7,FALSE)*Inflation!$B22/100 -> 10957.00559 | C46: 10957.00559 | D46: 51756.81919 | E46: 125451.2491 | F46: 10655.2047 | G46: 10215.83062 | H46: 92.26855751 | I46: 41448.72001 | J46: 10215.83062 | K46: 46602.7696 | L46: 1211.67201 | M46: 2213.631556 | N46: =HLOOKUP($A46,'AEG Input File'!$BA$2:$BX$8,7,FALSE)*Inflation!$B22/100 -> 60036.76409 | O46: 862.8801964 | P46: 0 | Q46: 26.50179179 | R46: 333.7371816 | S46: 74901.01744 | T46: 3.597085787e-54 | V46: 0 | W46: 19 | X46: 0 | Y46: 0 | Z46: 0 | AA46: 0 | AB46: 0 | AC46: 0 | AD46: 0 | AE46: 74901.01744 | AF46: 0 | AG46: -74901.01744 | AH46: -74901.01744 | AI46: 0 | AL46: 73942.87338 | AN46: 57525.34642
A47: 2042 | B47: =HLOOKUP($A47,'AEG Input File'!$AC$2:$AZ$8,7,FALSE)*Inflation!$B23/100 -> 11128.60888 | C47: 11128.60888 | D47: 52577.3289 | E47: 135830.2406 | F47: 10823.41126 | G47: 10378.99147 | H47: 93.32815455 | I47: =D47-J47-H47 -> 42105.00927 | J47: 10378.99147 | K47: 47341.16908 | L47: 1230.870396 | M47: 2248.705531 | N47: =HLOOKUP($A47,'AEG Input File'!$BA$2:$BX$8,7,FALSE)*Inflation!$B23/100 -> 60980.66477 | O47: 876.5718704 | P47: 0 | Q47: 26.92332519 | R47: 339.0455536 | S47: 76081.77292 | T47: 3.421024501e-54 | V47: 0 | W47: 20 | X47: 0 | Y47: 0 | Z47: 0 | AA47: 0 | AB47: 0 | AC47: 0 | AD47: 0 | AE47: 76081.77292 | AF47: 0 | AG47: -76081.77292 | AH47: -76081.77292 | AI47: 0 | AL47: 75108.52447 | AN47: 58438.12469
A48: 2043 | B48: =HLOOKUP($A48,'AEG Input File'!$AC$2:$AZ$8,7,FALSE)*Inflation!$B24/100 -> 11302.11555 | C48: 11302.11555 | D48: =I47+C48 -> 53407.12482 | E48: 146374.2624 | F48: 10993.50803 | G48: 10544.02186 | H48: 94.39209553 | I48: 42768.71087 | J48: 10544.02186 | K48: 48087.91784 | L48: 1250.285864 | M48: 2284.176098 | N48: =HLOOKUP($A48,'AEG Input File'!$BA$2:$BX$8,7,FALSE)*Inflation!$B24/100 -> 61935.17187 | O48: 890.4187316 | P48: 0 | Q48: 27.34963615 | R48: 344.4140894 | S48: 77275.83815 | T48: 3.25335733e-54 | V48: 0 | W48: 21 | X48: 0 | Y48: 0 | Z48: 0 | AA48: 0 | AB48: 0 | AC48: 0 | AD48: 0 | AE48: 77275.83815 | AF48: 0 | AG48: -77275.83815 | AH48: -77275.83815 | AI48: 0 | AL48: 76287.31505 | AN48: 59361.24877
A49: 2044 | B49: =HLOOKUP($A49,'AEG Input File'!$AC$2:$AZ$8,7,FALSE)*Inflation!$B25/100 -> 11477.53268 | C49: 11477.53268 | D49: 54246.24355 | E49: 157085.1918 | F49: 11165.50231 | G49: 10710.9294 | H49: 95.46031047 | I49: 43439.85384 | J49: 10710.9294 | K49: 48843.04869 | L49: 1269.919266 | M49: 2320.044813 | N49: =HLOOKUP($A49,'AEG Input File'!$BA$2:$BX$8,7,FALSE)*Inflation!$B25/100 -> 62900.32909 | O49: 904.4213939 | P49: 0 | Q49: 27.78074282 | R49: 349.8430176 | S49: 78483.26772 | T49: 3.093695752e-54 | V49: 0 | W49: 22 | X49: 0 | Y49: 0 | Z49: 0 | AA49: 0 | AB49: 0 | AC49: 0 | AD49: 0 | AE49: 78483.26772 | AF49: 0 | AG49: -78483.26772 | AH49: -78483.26772 | AI49: 0 | AL49: 77479.29902 | AN49: 60294.75959
A50: 2045 | B50: =HLOOKUP($A50,'AEG Input File'!$AC$2:$AZ$8,7,FALSE)*Inflation!$B26/100 -> 11654.86724 | C50: 11654.86724 | D50: 55094.72108 | E50: 167964.9134 | F50: 11339.40127 | G50: 10879.7216 | H50: 96.53273087 | I50: 44118.46675 | J50: 10879.7216 | K50: 49606.59391 | L50: 1289.771442 | M50: 2356.313211 | N50: =HLOOKUP($A50,'AEG Input File'!$BA$2:$BX$8,7,FALSE)*Inflation!$B26/100 -> 63876.18781 | O50: 918.5804616 | P50: 0 | Q50: 28.21666082 | R50: 355.3325349 | S50: 79704.12372 | T50: 2.941668956e-54 | V50: 0 | W50: 23 | X50: 0 | Y50: 0 | Z50: 0 | AA50: 0 | AB50: 0 | AC50: 0 | AD50: 0 | AE50: 79704.12372 | AF50: 0 | AG50: -79704.12372 | AH50: -79704.12372 | AI50: 0 | AL50: 78684.53766 | AN50: 61238.69744
A51: 2046 | B51: ='AEG Input File'!$AZ$676*Inflation!B26/100 -> 0 | C51: 0 | D51: 44118.46675 | E51: 177831.9067 | F51: 9148.386769 | G51: 9866.993239 | H51: -150.9073585 | I51: 34402.38087 | J51: 9866.993239 | K51: 39260.42381 | L51: 1020.771019 | M51: 1864.870131 | N51: ='AEG Input File'!$BX$676*Inflation!$B$26/100 -> 0 | O51: 755.3846375 | P51: 0 | Q51: 35.58696717 | R51: 448.1468355 | S51: 13991.75283 | T51: 4.835012624e-55 | V51: 0 | W51: 24 | X51: 0 | Y51: 0 | Z51: 0 | AA51: 0 | AB51: 0 | AC51: 0 | AD51: 0 | AE51: 13991.75283 | AF51: 0 | AG51: -13991.75283 | AH51: -13991.75283 | AI51: 0 | AL51: 13812.76841 | AN51: 50358.97584
A52: 2047 | B52: 0 | C52: 0 | D52: 34402.38087 | E52: 186669.9519 | F52: 5502.957859 | G52: 8838.045199 | H52: -700.3683414 | I52: 26264.70401 | J52: 8838.045199 | K52: 30333.54244 | L52: 788.6721034 | M52: 1440.843266 | N52: 0 | O52: 607.379739 | P52: 0 | Q52: 27.16218548 | R52: 342.0535223 | S52: 12044.15601 | T52: 3.896855862e-55 | V52: 0 | W52: 25 | X52: 0 | Y52: 0 | Z52: 0 | AA52: 0 | AB52: 0 | AC52: 0 | AD52: 0 | AE52: 12044.15601 | AF52: 0 | AG52: -12044.15601 | AH52: -12044.15601 | AI52: 0 | AL52: 11890.08552 | AN52: 40491.9826
A53: 2048 | B53: 0 | C53: 0 | D53: 26264.70401 | E53: 194462.6427 | F53: 3315.854327 | G53: 7792.690862 | H53: -940.1356724 | I53: 19412.14882 | J53: 7792.690862 | K53: 22838.42642 | L53: 593.7990868 | M53: 1084.825255 | N53: 0 | O53: 474.809061 | P53: 0 | Q53: 20.13968609 | R53: 253.6191563 | S53: 10219.88311 | T53: 3.095967408e-55 | V53: 0 | W53: 26 | X53: 0 | Y53: 0 | Z53: 0 | AA53: 0 | AB53: 0 | AC53: 0 | AD53: 0 | AE53: 10219.88311 | AF53: 0 | AG53: -10219.88311 | AH53: -10219.88311 | AI53: 0 | AL53: 10089.14896 | AN53: 31653.9374
A54: 2049 | B54: 0 | C54: 0 | D54: 19412.14882 | E54: 201193.3856 | F54: 2003.746589 | G54: 6730.742842 | H54: -992.6692131 | I54: 13674.07519 | J54: 6730.742842 | K54: 16543.11201 | L54: 430.1209122 | M54: 785.7978204 | N54: 0 | O54: 357.9186981 | P54: 0 | Q54: 14.29230846 | R54: 179.9831039 | S54: 8498.855685 | T54: 2.410590209e-55 | V54: 0 | W54: 27 | X54: 0 | Y54: 0 | Z54: 0 | AA54: 0 | AB54: 0 | AC54: 0 | AD54: 0 | AE54: 8498.855685 | AF54: 0 | AG54: -8498.855685 | AH54: -8498.855685 | AI54: 0 | AL54: 8390.13716 | AN54: 23861.24654
A55: 2050 | B55: 0 | C55: 0 | D55: 13674.07519 | E55: 206845.3986 | F55: 671.3203532 | G55: 5652.012995 | H55: -1045.945455 | I55: 9068.007653 | J55: 5652.012995 | K55: 11371.04142 | L55: 295.647077 | M55: 540.1244676 | N55: 0 | O55: 256.9575554 | P55: 0 | Q55: 9.545068931 | R55: 120.2010954 | S55: 6874.488259 | T55: 1.825642721e-55 | V55: 0 | W55: 28 | X55: 0 | Y55: 0 | Z55: 0 | AA55: 0 | AB55: 0 | AC55: 0 | AD55: 0 | AE55: 6874.488259 | AF55: 0 | AG55: -6874.488259 | AH55: -6874.488259 | AI55: 0 | AL55: 6786.548865 | AN55: 17130.5037
A56: 2051 | B56: 0 | C56: 0 | D56: 9068.007653 | E56: 211401.711 | F56: 0 | G56: 4556.312436 | H56: -956.8256116 | I56: 5468.520829 | J56: 4556.312436 | K56: 7268.264241 | L56: 188.9748703 | M56: 345.2425514 | N56: 0 | O56: 172.1773605 | P56: 0 | Q56: 5.845120972 | R56: 73.60763434 | S56: 5342.159974 | T56: 1.328326345e-55 | V56: 0 | W56: 29 | X56: 0 | Y56: 0 | Z56: 0 | AA56: 0 | AB56: 0 | AC56: 0 | AD56: 0 | AE56: 5342.159974 | AF56: 0 | AG56: -5342.159974 | AH56: -5342.159974 | AI56: 0 | AL56: 5273.822332 | AN56: 11478.4907
A57: 2052 | B57: 0 | C57: 0 | D57: 5468.520829 | E57: 214845.1626 | F57: 0 | G57: 3443.451548 | H57: -723.124825 | I57: 2748.194106 | J57: 3443.451548 | K57: 4108.357467 | L57: 106.8172942 | M57: 195.1469797 | N57: 0 | O57: 103.832674 | P57: 0 | Q57: 3.068650526 | R57: 38.64352969 | S57: 3890.960676 | T57: 9.058519442e-56 | V57: 0 | W57: 30 | X57: 0 | Y57: 0 | Z57: 0 | AA57: 0 | AB57: 0 | AC57: 0 | AD57: 0 | AE57: 3890.960676 | AF57: 0 | AG57: -3890.960676 | AH57: -3890.960676 | AI57: 0 | AL57: 3841.186974 | AN57: 6922.178264
A58: 2053 | B58: 0 | C58: 0 | D58: 2748.194106 | E58: 217158.4026 | F58: 0 | G58: 2313.239992 | H58: -485.7803984 | I58: 920.7345122 | J58: 2313.239992 | K58: 1834.464309 | L58: 47.69607204 | M58: 87.13705469 | N58: 0 | O58: 52.18090075 | P58: 0 | Q58: 1.159963942 | R58: 14.60743107 | S58: 2516.021415 | T58: 5.484375655e-56 | V58: 0 | W58: 31 | X58: 0 | Y58: 0 | Z58: 0 | AA58: 0 | AB58: 0 | AC58: 0 | AD58: 0 | AE58: 2516.021415 | AF58: 0 | AG58: -2516.021415 | AH58: -2516.021415 | AI58: 0 | AL58: 2483.836125 | AN58: 3478.726717
A59: 2054 | B59: 0 | C59: 0 | D59: 920.7345122 | E59: 218323.8893 | F59: 0 | G59: 1165.486724 | H59: -244.7522121 | I59: -3.990408004e-11 | J59: 1165.486724 | K59: 460.3672561 | L59: 11.96954866 | M59: 21.86744467 | N59: 0 | O59: 17.48230087 | P59: 0 | Q59: 0.1325387606 | R59: 1.6690612 | S59: 1218.607618 | T59: 2.487077004e-56 | V59: 0 | W59: 32 | X59: 0 | Y59: 0 | Z59: 0 | AA59: 0 | AB59: 0 | AC59: 0 | AD59: 0 | AE59: 1218.607618 | AF59: 0 | AG59: -1218.607618 | AH59: -1218.607618 | AI59: 0 | AL59: 1203.019023 | AN59: 1165.486724
A60: 2055 | B60: 0 | C60: 0 | D60: -3.990408004e-11 | E60: 218323.8893 | F60: 0 | G60: 0 | H60: 0 | I60: -3.990408004e-11 | J60: 0 | K60: -3.990408004e-11 | L60: -1.037506081e-12 | M60: -1.895443802e-12 | N60: 0 | O60: -2.660272003e-13 | P60: 0 | Q60: -3.900351099e-14 | R60: -4.91171387e-13 | S60: -3.729151981e-12 | T60: -7.126034297e-71 | V60: 0 | W60: 33 | X60: 0 | Y60: 0 | Z60: 0 | AA60: 0 | AB60: 0 | AC60: 0 | AD60: 0 | AE60: -3.729151981e-12 | AF60: 0 | AG60: 3.729151981e-12 | AH60: 3.729151981e-12 | AI60: 0 | AL60: -3.681448159e-12 | AN60: -1.773514668e-11
A61: 2056 | B61: 0 | C61: 0 | D61: -3.990408004e-11 | E61: 218323.8893 | F61: 0 | G61: 0 | H61: 0 | I61: -3.990408004e-11 | J61: 0 | K61: -3.990408004e-11 | L61: -1.037506081e-12 | M61: -1.895443802e-12 | N61: 0 | O61: -2.660272003e-13 | P61: 0 | Q61: -3.900351099e-14 | R61: -4.91171387e-13 | S61: -3.729151981e-12 | T61: -6.672066868e-71 | V61: 0 | W61: 34 | X61: 0 | Y61: 0 | Z61: 0 | AA61: 0 | AB61: 0 | AC61: 0 | AD61: 0 | AE61: -3.729151981e-12 | AF61: 0 | AG61: 3.729151981e-12 | AH61: 3.729151981e-12 | AI61: 0 | AL61: -3.681448159e-12 | AN61: -1.773514668e-11
A62: 2057 | B62: 0 | C62: 0 | D62: -3.990408004e-11 | E62: 218323.8893 | F62: 0 | G62: 0 | H62: 0 | I62: -3.990408004e-11 | J62: 0 | K62: -3.990408004e-11 | L62: -1.037506081e-12 | M62: -1.895443802e-12 | N62: 0 | O62: -2.660272003e-13 | P62: 0 | Q62: -3.900351099e-14 | R62: -4.91171387e-13 | S62: -3.729151981e-12 | T62: -6.24701965e-71 | V62: 0 | W62: 35 | X62: 0 | Y62: 0 | Z62: 0 | AA62: 0 | AB62: 0 | AC62: 0 | AD62: 0 | AE62: -3.729151981e-12 | AF62: 0 | AG62: 3.729151981e-12 | AH62: 3.729151981e-12 | AI62: 0 | AL62: -3.681448159e-12 | AN62: -1.773514668e-11
A63: 2058 | B63: 0 | C63: 0 | D63: -3.990408004e-11 | E63: 218323.8893 | F63: 0 | G63: 0 | H63: 0 | I63: -3.990408004e-11 | J63: 0 | K63: -3.990408004e-11 | L63: -1.037506081e-12 | M63: -1.895443802e-12 | N63: 0 | O63: -2.660272003e-13 | P63: 0 | Q63: -3.900351099e-14 | R63: -4.91171387e-13 | S63: -3.729151981e-12 | T63: -5.84905027e-71 | V63: 0 | W63: 36 | X63: 0 | Y63: 0 | Z63: 0 | AA63: 0 | AB63: 0 | AC63: 0 | AD63: 0 | AE63: -3.729151981e-12 | AF63: 0 | AG63: 3.729151981e-12 | AH63: 3.729151981e-12 | AI63: 0 | AL63: -3.681448159e-12 | AN63: -1.773514668e-11
A64: 2059 | B64: 0 | C64: 0 | D64: -3.990408004e-11 | E64: 218323.8893 | F64: 0 | G64: 0 | H64: 0 | I64: -3.990408004e-11 | J64: 0 | K64: -3.990408004e-11 | L64: -1.037506081e-12 | M64: -1.895443802e-12 | N64: 0 | O64: -2.660272003e-13 | P64: 0 | Q64: -3.900351099e-14 | R64: -4.91171387e-13 | S64: -3.729151981e-12 | T64: -5.47643372e-71 | V64: 0 | W64: 37 | X64: 0 | Y64: 0 | Z64: 0 | AA64: 0 | AB64: 0 | AC64: 0 | AD64: 0 | AE64: -3.729151981e-12 | AF64: 0 | AG64: 3.729151981e-12 | AH64: 3.729151981e-12 | AI64: 0 | AL64: -3.681448159e-12 | AN64: -1.773514668e-11
A65: 2060 | B65: 0 | C65: 0 | D65: -3.990408004e-11 | E65: 218323.8893 | F65: 0 | G65: 0 | H65: 0 | I65: -3.990408004e-11 | J65: 0 | K65: -3.990408004e-11 | L65: -1.037506081e-12 | M65: -1.895443802e-12 | N65: 0 | O65: -2.660272003e-13 | P65: 0 | Q65: -3.900351099e-14 | R65: -4.91171387e-13 | S65: -3.729151981e-12 | T65: -5.127554885e-71 | V65: 0 | W65: 38 | X65: 0 | Y65: 0 | Z65: 0 | AA65: 0 | AB65: 0 | AC65: 0 | AD65: 0 | AE65: -3.729151981e-12 | AF65: 0 | AG65: 3.729151981e-12 | AH65: 3.729151981e-12 | AI65: 0 | AL65: -3.681448159e-12 | AN65: -1.773514668e-11
A66: 2061 | B66: 0 | C66: 0 | D66: -3.990408004e-11 | E66: 218323.8893 | F66: 0 | G66: 0 | H66: 0 | I66: -3.990408004e-11 | J66: 0 | K66: -3.990408004e-11 | L66: -1.037506081e-12 | M66: -1.895443802e-12 | N66: 0 | O66: -2.660272003e-13 | P66: 0 | Q66: -3.900351099e-14 | R66: -4.91171387e-13 | S66: -3.729151981e-12 | T66: -4.800901544e-71 | V66: 0 | W66: 39 | X66: 0 | Y66: 0 | Z66: 0 | AA66: 0 | AB66: 0 | AC66: 0 | AD66: 0 | AE66: -3.729151981e-12 | AF66: 0 | AG66: 3.729151981e-12 | AH66: 3.729151981e-12 | AI66: 0 | AL66: -3.681448159e-12 | AN66: -1.773514668e-11
A67: 2062 | B67: 0 | C67: 0 | D67: -3.990408004e-11 | E67: 218323.8893 | F67: 0 | G67: 0 | H67: 0 | I67: -3.990408004e-11 | J67: 0 | K67: -3.990408004e-11 | L67: -1.037506081e-12 | M67: -1.895443802e-12 | N67: 0 | O67: -2.660272003e-13 | P67: 0 | Q67: -3.900351099e-14 | R67: -4.91171387e-13 | S67: -3.729151981e-12 | T67: -4.495057811e-71 | V67: 0 | W67: 40 | X67: 0 | Y67: 0 | Z67: 0 | AA67: 0 | AB67: 0 | AC67: 0 | AD67: 0 | AE67: -3.729151981e-12 | AF67: 0 | AG67: 3.729151981e-12 | AH67: 3.729151981e-12 | AI67: 0 | AL67: -3.681448159e-12 | AN67: -1.773514668e-11
A68: 2063 | B68: 0 | C68: 0 | D68: -3.990408004e-11 | E68: 218323.8893 | F68: 0 | G68: 0 | H68: 0 | I68: -3.990408004e-11 | J68: 0 | K68: -3.990408004e-11 | L68: -1.037506081e-12 | M68: -1.895443802e-12 | N68: 0 | O68: -2.660272003e-13 | P68: 0 | Q68: -3.900351099e-14 | R68: -4.91171387e-13 | S68: -3.729151981e-12 | T68: -4.208697999e-71 | V68: 0 | W68: 41 | X68: 0 | Y68: 0 | Z68: 0 | AA68: 0 | AB68: 0 | AC68: 0 | AD68: 0 | AE68: -3.729151981e-12 | AF68: 0 | AG68: 3.729151981e-12 | AH68: 3.729151981e-12 | AI68: 0 | AL68: -3.681448159e-12 | AN68: -1.773514668e-11
A69: 2064 | B69: 0 | C69: 0 | D69: -3.990408004e-11 | E69: 218323.8893 | F69: 0 | G69: 0 | H69: 0 | I69: -3.990408004e-11 | J69: 0 | K69: -3.990408004e-11 | L69: -1.037506081e-12 | M69: -1.895443802e-12 | N69: 0 | O69: -2.660272003e-13 | P69: 0 | Q69: -3.900351099e-14 | R69: -4.91171387e-13 | S69: -3.729151981e-12 | T69: -3.940580876e-71 | V69: 0 | W69: 42 | X69: 0 | Y69: 0 | Z69: 0 | AA69: 0 | AB69: 0 | AC69: 0 | AD69: 0 | AE69: -3.729151981e-12 | AF69: 0 | AG69: 3.729151981e-12 | AH69: 3.729151981e-12 | AI69: 0 | AL69: -3.681448159e-12 | AN69: -1.773514668e-11
A70: 2065 | B70: 0 | C70: 0 | D70: -3.990408004e-11 | E70: 218323.8893 | F70: 0 | G70: 0 | H70: 0 | I70: -3.990408004e-11 | J70: 0 | K70: -3.990408004e-11 | L70: -1.037506081e-12 | M70: -1.895443802e-12 | N70: 0 | O70: -2.660272003e-13 | P70: 0 | Q70: -3.900351099e-14 | R70: -4.91171387e-13 | S70: -3.729151981e-12 | T70: -3.689544283e-71 | V70: 0 | W70: 43 | X70: 0 | Y70: 0 | Z70: 0 | AA70: 0 | AB70: 0 | AC70: 0 | AD70: 0 | AE70: -3.729151981e-12 | AF70: 0 | AG70: 3.729151981e-12 | AH70: 3.729151981e-12 | AI70: 0 | AL70: -3.681448159e-12 | AN70: -1.773514668e-11
A71: 2066 | B71: 0 | C71: 0 | D71: -3.990408004e-11 | E71: 218323.8893 | F71: 0 | G71: 0 | H71: 0 | I71: -3.990408004e-11 | J71: 0 | K71: -3.990408004e-11 | L71: -1.037506081e-12 | M71: -1.895443802e-12 | N71: 0 | O71: -2.660272003e-13 | P71: 0 | Q71: -3.900351099e-14 | R71: -4.91171387e-13 | S71: -3.729151981e-12 | T71: -3.454500097e-71 | V71: 0 | W71: 44 | X71: 0 | Y71: 0 | Z71: 0 | AA71: 0 | AB71: 0 | AC71: 0 | AD71: 0 | AE71: -3.729151981e-12 | AF71: 0 | AG71: 3.729151981e-12 | AH71: 3.729151981e-12 | AI71: 0 | AL71: -3.681448159e-12 | AN71: -1.773514668e-11
A72: 2067 | B72: 0 | C72: 0 | D72: -3.990408004e-11 | E72: 218323.8893 | F72: 0 | G72: 0 | H72: 0 | I72: -3.990408004e-11 | J72: 0 | K72: -3.990408004e-11 | L72: -1.037506081e-12 | M72: -1.895443802e-12 | N72: 0 | O72: -2.660272003e-13 | P72: 0 | Q72: -3.900351099e-14 | R72: -4.91171387e-13 | S72: -3.729151981e-12 | T72: -3.234429513e-71 | V72: 0 | W72: 45 | X72: 0 | Y72: 0 | Z72: 0 | AA72: 0 | AB72: 0 | AC72: 0 | AD72: 0 | AE72: -3.729151981e-12 | AF72: 0 | AG72: 3.729151981e-12 | AH72: 3.729151981e-12 | AI72: 0 | AL72: -3.681448159e-12 | AN72: -1.773514668e-11
A73: 2068 | B73: 0 | C73: 0 | D73: -3.990408004e-11 | E73: 218323.8893 | F73: 0 | G73: 0 | H73: 0 | I73: -3.990408004e-11 | J73: 0 | K73: -3.990408004e-11 | L73: -1.037506081e-12 | M73: -1.895443802e-12 | N73: 0 | O73: -2.660272003e-13 | P73: 0 | Q73: -3.900351099e-14 | R73: -4.91171387e-13 | S73: -3.729151981e-12 | T73: -3.028378631e-71 | V73: 0 | W73: 46 | X73: 0 | Y73: 0 | Z73: 0 | AA73: 0 | AB73: 0 | AC73: 0 | AD73: 0 | AE73: -3.729151981e-12 | AF73: 0 | AG73: 3.729151981e-12 | AH73: 3.729151981e-12 | AI73: 0 | AL73: -3.681448159e-12 | AN73: -1.773514668e-11
A74: 2069 | B74: 0 | C74: 0 | D74: -3.990408004e-11 | E74: 218323.8893 | F74: 0 | G74: 0 | H74: 0 | I74: -3.990408004e-11 | J74: 0 | K74: -3.990408004e-11 | L74: -1.037506081e-12 | M74: -1.895443802e-12 | N74: 0 | O74: -2.660272003e-13 | P74: 0 | Q74: -3.900351099e-14 | R74: -4.91171387e-13 | S74: -3.729151981e-12 | T74: -2.835454319e-71 | V74: 0 | W74: 47 | X74: 0 | Y74: 0 | Z74: 0 | AA74: 0 | AB74: 0 | AC74: 0 | AD74: 0 | AE74: -3.729151981e-12 | AF74: 0 | AG74: 3.729151981e-12 | AH74: 3.729151981e-12 | AI74: 0 | AL74: -3.681448159e-12 | AN74: -1.773514668e-11
A75: 2070 | B75: 0 | C75: 0 | D75: -3.990408004e-11 | E75: 218323.8893 | F75: 0 | G75: 0 | H75: 0 | I75: -3.990408004e-11 | J75: 0 | K75: -3.990408004e-11 | L75: -1.037506081e-12 | M75: -1.895443802e-12 | N75: 0 | O75: -2.660272003e-13 | P75: 0 | Q75: -3.900351099e-14 | R75: -4.91171387e-13 | S75: -3.729151981e-12 | T75: -2.654820343e-71 | V75: 0 | W75: 48 | X75: 0 | Y75: 0 | Z75: 0 | AA75: 0 | AB75: 0 | AC75: 0 | AD75: 0 | AE75: -3.729151981e-12 | AF75: 0 | AG75: 3.729151981e-12 | AH75: 3.729151981e-12 | AI75: 0 | AL75: -3.681448159e-12 | AN75: -1.773514668e-11
A76: 2071 | B76: 0 | C76: 0 | D76: -3.990408004e-11 | E76: 218323.8893 | F76: 0 | G76: 0 | H76: 0 | I76: -3.990408004e-11 | J76: 0 | K76: -3.990408004e-11 | L76: -1.037506081e-12 | M76: -1.895443802e-12 | N76: 0 | O76: -2.660272003e-13 | P76: 0 | Q76: -3.900351099e-14 | R76: -4.91171387e-13 | S76: -3.729151981e-12 | T76: -2.48569374e-71 | V76: 0 | W76: 49 | X76: 0 | Y76: 0 | Z76: 0 | AA76: 0 | AB76: 0 | AC76: 0 | AD76: 0 | AE76: -3.729151981e-12 | AF76: 0 | AG76: 3.729151981e-12 | AH76: 3.729151981e-12 | AI76: 0 | AL76: -3.681448159e-12 | AN76: -1.773514668e-11
A77: 2072 | B77: 0 | C77: 0 | D77: -3.990408004e-11 | E77: 218323.8893 | F77: 0 | G77: 0 | H77: 0 | I77: -3.990408004e-11 | J77: 0 | K77: -3.990408004e-11 | L77: -1.037506081e-12 | M77: -1.895443802e-12 | N77: 0 | O77: -2.660272003e-13 | P77: 0 | Q77: -3.900351099e-14 | R77: -4.91171387e-13 | S77: -3.729151981e-12 | T77: -2.32734143e-71 | V77: 0 | W77: 50 | X77: 0 | Y77: 0 | Z77: 0 | AA77: 0 | AB77: 0 | AC77: 0 | AD77: 0 | AE77: -3.729151981e-12 | AF77: 0 | AG77: 3.729151981e-12 | AH77: 3.729151981e-12 | AI77: 0 | AL77: -3.681448159e-12 | AN77: -1.773514668e-11
A78: 2073 | B78: 0 | C78: 0 | D78: -3.990408004e-11 | E78: 218323.8893 | F78: 0 | G78: 0 | H78: 0 | I78: -3.990408004e-11 | J78: 0 | K78: -3.990408004e-11 | L78: -1.037506081e-12 | M78: -1.895443802e-12 | N78: 0 | O78: -2.660272003e-13 | P78: 0 | Q78: -3.900351099e-14 | R78: -4.91171387e-13 | S78: -3.729151981e-12 | T78: -2.179077029e-71 | V78: 0 | W78: 51 | X78: 0 | Y78: 0 | Z78: 0 | AA78: 0 | AB78: 0 | AC78: 0 | AD78: 0 | AE78: -3.729151981e-12 | AF78: 0 | AG78: 3.729151981e-12 | AH78: 3.729151981e-12 | AI78: 0 | AL78: -3.681448159e-12 | AN78: -1.773514668e-11
A79: 2074 | B79: 0 | C79: 0 | D79: -3.990408004e-11 | E79: 218323.8893 | F79: 0 | G79: 0 | H79: 0 | I79: -3.990408004e-11 | J79: 0 | K79: -3.990408004e-11 | L79: -1.037506081e-12 | M79: -1.895443802e-12 | N79: 0 | O79: -2.660272003e-13 | P79: 0 | Q79: -3.900351099e-14 | R79: -4.91171387e-13 | S79: -3.729151981e-12 | T79: -2.040257882e-71 | V79: 0 | W79: 52 | X79: 0 | Y79: 0 | Z79: 0 | AA79: 0 | AB79: 0 | AC79: 0 | AD79: 0 | AE79: -3.729151981e-12 | AF79: 0 | AG79: 3.729151981e-12 | AH79: 3.729151981e-12 | AI79: 0 | AL79: -3.681448159e-12 | AN79: -1.773514668e-11
A80: 2075 | B80: 0 | C80: 0 | D80: -3.990408004e-11 | E80: 218323.8893 | F80: 0 | G80: 0 | H80: 0 | I80: -3.990408004e-11 | J80: 0 | K80: -3.990408004e-11 | L80: -1.037506081e-12 | M80: -1.895443802e-12 | N80: 0 | O80: -2.660272003e-13 | P80: 0 | Q80: -3.900351099e-14 | R80: -4.91171387e-13 | S80: -3.729151981e-12 | T80: -1.910282276e-71 | V80: 0 | W80: 53 | X80: 0 | Y80: 0 | Z80: 0 | AA80: 0 | AB80: 0 | AC80: 0 | AD80: 0 | AE80: -3.729151981e-12 | AF80: 0 | AG80: 3.729151981e-12 | AH80: 3.729151981e-12 | AI80: 0 | AL80: -3.681448159e-12 | AN80: -1.773514668e-11
A81: 2076 | B81: 0 | C81: 0 | D81: -3.990408004e-11 | E81: 218323.8893 | F81: 0 | G81: 0 | H81: 0 | I81: -3.990408004e-11 | J81: 0 | K81: -3.990408004e-11 | L81: -1.037506081e-12 | M81: -1.895443802e-12 | N81: 0 | O81: -2.660272003e-13 | P81: 0 | Q81: -3.900351099e-14 | R81: -4.91171387e-13 | S81: -3.729151981e-12 | T81: -1.788586828e-71 | V81: 0 | W81: 54 | X81: 0 | Y81: 0 | Z81: 0 | AA81: 0 | AB81: 0 | AC81: 0 | AD81: 0 | AE81: -3.729151981e-12 | AF81: 0 | AG81: 3.729151981e-12 | AH81: 3.729151981e-12 | AI81: 0 | AL81: -3.681448159e-12 | AN81: -1.773514668e-11
A82: 2077 | B82: 0 | C82: 0 | D82: -3.990408004e-11 | E82: 218323.8893 | F82: 0 | G82: 0 | H82: 0 | I82: -3.990408004e-11 | J82: 0 | K82: -3.990408004e-11 | L82: -1.037506081e-12 | M82: -1.895443802e-12 | N82: 0 | O82: -2.660272003e-13 | P82: 0 | Q82: -3.900351099e-14 | R82: -4.91171387e-13 | S82: -3.729151981e-12 | T82: -1.674644047e-71 | V82: 0 | W82: 55 | X82: 0 | Y82: 0 | Z82: 0 | AA82: 0 | AB82: 0 | AC82: 0 | AD82: 0 | AE82: -3.729151981e-12 | AF82: 0 | AG82: 3.729151981e-12 | AH82: 3.729151981e-12 | AI82: 0 | AL82: -3.681448159e-12 | AN82: -1.773514668e-11
A83: 2078 | B83: 0 | C83: 0 | D83: -3.990408004e-11 | E83: 218323.8893 | F83: 0 | G83: 0 | H83: 0 | I83: -3.990408004e-11 | J83: 0 | K83: -3.990408004e-11 | L83: -1.037506081e-12 | M83: -1.895443802e-12 | N83: 0 | O83: -2.660272003e-13 | P83: 0 | Q83: -3.900351099e-14 | R83: -4.91171387e-13 | S83: -3.729151981e-12 | T83: -1.567960046e-71 | V83: 0 | W83: 56 | X83: 0 | Y83: 0 | Z83: 0 | AA83: 0 | AB83: 0 | AC83: 0 | AD83: 0 | AE83: -3.729151981e-12 | AF83: 0 | AG83: 3.729151981e-12 | AH83: 3.729151981e-12 | AI83: 0 | AL83: -3.681448159e-12 | AN83: -1.773514668e-11
A84: 2079 | B84: 0 | C84: 0 | D84: -3.990408004e-11 | E84: 218323.8893 | F84: 0 | G84: 0 | H84: 0 | I84: -3.990408004e-11 | J84: 0 | K84: -3.990408004e-11 | L84: -1.037506081e-12 | M84: -1.895443802e-12 | N84: 0 | O84: -2.660272003e-13 | P84: 0 | Q84: -3.900351099e-14 | R84: -4.91171387e-13 | S84: -3.729151981e-12 | T84: -1.4680724e-71 | V84: 0 | W84: 57 | X84: 0 | Y84: 0 | Z84: 0 | AA84: 0 | AB84: 0 | AC84: 0 | AD84: 0 | AE84: -3.729151981e-12 | AF84: 0 | AG84: 3.729151981e-12 | AH84: 3.729151981e-12 | AI84: 0 | AL84: -3.681448159e-12 | AN84: -1.773514668e-11
A85: 2080 | B85: 0 | C85: 0 | D85: -3.990408004e-11 | E85: 218323.8893 | F85: 0 | G85: 0 | H85: 0 | I85: -3.990408004e-11 | J85: 0 | K85: -3.990408004e-11 | L85: -1.037506081e-12 | M85: -1.895443802e-12 | N85: 0 | O85: -2.660272003e-13 | P85: 0 | Q85: -3.900351099e-14 | R85: -4.91171387e-13 | S85: -3.729151981e-12 | T85: -1.374548144e-71 | V85: 0 | W85: 58 | X85: 0 | Y85: 0 | Z85: 0 | AA85: 0 | AB85: 0 | AC85: 0 | AD85: 0 | AE85: -3.729151981e-12 | AF85: 0 | AG85: 3.729151981e-12 | AH85: 3.729151981e-12 | AI85: 0 | AL85: -3.681448159e-12 | AN85: -1.773514668e-11
A86: 2081 | B86: 0 | C86: 0 | D86: -3.990408004e-11 | E86: 218323.8893 | F86: 0 | G86: 0 | H86: 0 | I86: -3.990408004e-11 | J86: 0 | K86: -3.990408004e-11 | L86: -1.037506081e-12 | M86: -1.895443802e-12 | N86: 0 | O86: -2.660272003e-13 | P86: 0 | Q86: -3.900351099e-14 | R86: -4.91171387e-13 | S86: -3.729151981e-12 | T86: -1.286981896e-71 | V86: 0 | W86: 59 | X86: 0 | Y86: 0 | Z86: 0 | AA86: 0 | AB86: 0 | AC86: 0 | AD86: 0 | AE86: -3.729151981e-12 | AF86: 0 | AG86: 3.729151981e-12 | AH86: 3.729151981e-12 | AI86: 0 | AL86: -3.681448159e-12 | AN86: -1.773514668e-11
A87: 2082 | B87: 0 | C87: 0 | D87: -3.990408004e-11 | E87: 218323.8893 | F87: 0 | G87: 0 | H87: 0 | I87: -3.990408004e-11 | J87: 0 | K87: -3.990408004e-11 | L87: -1.037506081e-12 | M87: -1.895443802e-12 | N87: 0 | O87: -2.660272003e-13 | P87: 0 | Q87: -3.900351099e-14 | R87: -4.91171387e-13 | S87: -3.729151981e-12 | T87: -1.204994098e-71 | V87: 0 | W87: 60 | X87: 0 | Y87: 0 | Z87: 0 | AA87: 0 | AB87: 0 | AC87: 0 | AD87: 0 | AE87: -3.729151981e-12 | AF87: 0 | AG87: 3.729151981e-12 | AH87: 3.729151981e-12 | AI87: 0 | AL87: -3.681448159e-12 | AN87: -1.773514668e-11
A88: 2083 | B88: 0 | C88: 0 | D88: -3.990408004e-11 | E88: 218323.8893 | F88: 0 | G88: 0 | H88: 0 | I88: -3.990408004e-11 | J88: 0 | K88: -3.990408004e-11 | L88: -1.037506081e-12 | M88: =IF(A88=1,($N$3+$N$2)*K88,($N$3+$N$2)*K88) -> -1.895443802e-12 | N88: 0 | O88: -2.660272003e-13 | P88: 0 | Q88: -3.900351099e-14 | R88: -4.91171387e-13 | S88: -3.729151981e-12 | T88: -1.128229371e-71 | V88: 0 | W88: 61 | X88: 0 | Y88: 0 | Z88: 0 | AA88: 0 | AB88: 0 | AC88: 0 | AD88: 0 | AE88: -3.729151981e-12 | AF88: 0 | AG88: 3.729151981e-12 | AH88: 3.729151981e-12 | AI88: 0 | AL88: -3.681448159e-12 | AN88: -1.773514668e-11
A89: 2084 | B89: 0 | C89: 0 | D89: -3.990408004e-11 | E89: 218323.8893 | F89: 0 | G89: 0 | H89: 0 | I89: -3.990408004e-11 | J89: 0 | K89: -3.990408004e-11 | L89: -1.037506081e-12 | M89: =IF(A89=1,($N$3+$N$2)*K89,($N$3+$N$2)*K89) -> -1.895443802e-12 | N89: 0 | O89: -2.660272003e-13 | P89: 0 | Q89: -3.900351099e-14 | R89: -4.91171387e-13 | S89: -3.729151981e-12 | T89: -1.056354978e-71 | V89: 0 | W89: 62 | X89: 0 | Y89: 0 | Z89: 0 | AA89: 0 | AB89: 0 | AC89: 0 | AD89: 0 | AE89: -3.729151981e-12 | AF89: 0 | AG89: 3.729151981e-12 | AH89: 3.729151981e-12 | AI89: 0 | AL89: -3.681448159e-12 | AN89: -1.773514668e-11
A90: 2085 | B90: 0 | C90: 0 | D90: -3.990408004e-11 | E90: 218323.8893 | F90: 0 | G90: 0 | H90: 0 | I90: -3.990408004e-11 | J90: 0 | K90: -3.990408004e-11 | L90: -1.037506081e-12 | M90: -1.895443802e-12 | N90: 0 | O90: -2.660272003e-13 | P90: 0 | Q90: -3.900351099e-14 | R90: -4.91171387e-13 | S90: -3.729151981e-12 | T90: -9.890593783e-72 | V90: 0 | W90: 63 | X90: 0 | Y90: 0 | Z90: 0 | AA90: 0 | AB90: 0 | AC90: 0 | AD90: 0 | AE90: -3.729151981e-12 | AF90: 0 | AG90: 3.729151981e-12 | AH90: 3.729151981e-12 | AI90: 0 | AL90: -3.681448159e-12 | AN90: -1.773514668e-11
A91: 2086 | B91: 0 | C91: 0 | D91: -3.990408004e-11 | E91: 218323.8893 | F91: 0 | G91: 0 | H91: 0 | I91: -3.990408004e-11 | J91: 0 | K91: -3.990408004e-11 | L91: -1.037506081e-12 | M91: -1.895443802e-12 | N91: 0 | O91: -2.660272003e-13 | P91: 0 | Q91: -3.900351099e-14 | R91: -4.91171387e-13 | S91: -3.729151981e-12 | T91: -9.260508766e-72 | V91: 0 | W91: 64 | X91: 0 | Y91: 0 | Z91: 0 | AA91: 0 | AB91: 0 | AC91: 0 | AD91: 0 | AE91: -3.729151981e-12 | AF91: 0 | AG91: 3.729151981e-12 | AH91: 3.729151981e-12 | AI91: 0 | AL91: -3.681448159e-12 | AN91: -1.773514668e-11
A92: =1+A91 -> 2087 | B92: 0 | C92: 0 | D92: =I91+C92 -> -3.990408004e-11 | E92: =E91+J92 -> 218323.8893 | F92: =CA201 -> 0 | G92: 0 | H92: =(F92-G92)*$D$2 -> 0 | I92: =D92-J92-H92 -> -3.990408004e-11 | J92: =CA387 -> 0 | K92: =(+I92+D92)/2 -> -3.990408004e-11 | L92: -1.037506081e-12 | M92: -1.895443802e-12 | N92: 0 | O92: =AN92*$D$10 -> -2.660272003e-13 | P92: 0 | Q92: =(+AL92-(G92+L92+N92+O92+P92))*$D$1 -> -3.900351099e-14 | R92: =(+AL92-(G92+L92+N92+O92+P92+Q92))*$D$2 -> -4.91171387e-13 | S92: =J92+M92+L92+N92+O92+P92+Q92+R92 -> -3.729151981e-12 | T92: -8.670563618e-72 | V92: 0 | W92: 65 | X92: 0 | Y92: 0 | Z92: 0 | AA92: 0 | AB92: 0 | AC92: 0 | AD92: 0 | AE92: =S92 -> -3.729151981e-12 | AF92: =V92 -> 0 | AG92: =AF92-AE92 -> 3.729151981e-12 | AH92: 3.729151981e-12 | AI92: 0 | AL92: -3.681448159e-12 | AN92: -1.773514668e-11
A93: 2088 | B93: 0 | C93: =B93 -> 0 | D93: -3.990408004e-11 | E93: 218323.8893 | F93: 0 | G93: =CA294 -> 0 | H93: 0 | I93: -3.990408004e-11 | J93: 0 | K93: -3.990408004e-11 | L93: =IF(A93=1,$N$1*K93,$N$1*K93) -> -1.037506081e-12 | M93: -1.895443802e-12 | N93: 0 | O93: -2.660272003e-13 | P93: =AL93*$T$8 -> 0 | Q93: -3.900351099e-14 | R93: -4.91171387e-13 | S93: -3.729151981e-12 | T93: =S93/(1+$D$3)^(A93-1) -> -8.118201208e-72 | V93: 0 | W93: =1+W92 -> 66 | X93: 0 | Y93: =+X93 -> 0 | Z93: =X93*$Z$24 -> 0 | AA93: 0 | AB93: 0 | AC93: 0 | AD93: 0 | AE93: -3.729151981e-12 | AF93: 0 | AG93: 3.729151981e-12 | AH93: =AF93-AE93 -> 3.729151981e-12 | AI93: =IF(A93=1,AF93-T89,AF93) -> 0 | AL93: =(+J93+L93+M93+N93+O93-(($D$1+(1-$D$1)*$D$2)*(G93+L93+N93+O93)))/$T$16 -> -3.681448159e-12 | AN93: =C93-J92+AN92 -> -1.773514668e-11
A94: 2089 | B94: 0 | C94: 0 | D94: -3.990408004e-11 | E94: 218323.8893 | F94: 0 | G94: 0 | H94: 0 | I94: -3.990408004e-11 | J94: 0 | K94: -3.990408004e-11 | L94: -1.037506081e-12 | M94: -1.895443802e-12 | N94: 0 | O94: -2.660272003e-13 | P94: 0 | Q94: -3.900351099e-14 | R94: -4.91171387e-13 | S94: -3.729151981e-12 | T94: -7.601027309e-72 | V94: 0 | W94: 67 | X94: 0 | Y94: 0 | Z94: 0 | AA94: 0 | AB94: 0 | AC94: 0 | AD94: 0 | AE94: -3.729151981e-12 | AF94: 0 | AG94: 3.729151981e-12 | AH94: 3.729151981e-12 | AI94: 0 | AL94: -3.681448159e-12 | AN94: -1.773514668e-11
A95: 2090 | B95: 0 | C95: 0 | D95: -3.990408004e-11 | E95: 218323.8893 | F95: 0 | G95: 0 | H95: 0 | I95: -3.990408004e-11 | J95: 0 | K95: -3.990408004e-11 | L95: -1.037506081e-12 | M95: -1.895443802e-12 | N95: 0 | O95: -2.660272003e-13 | P95: 0 | Q95: -3.900351099e-14 | R95: -4.91171387e-13 | S95: -3.729151981e-12 | T95: -7.116800222e-72 | V95: 0 | W95: 68 | X95: 0 | Y95: 0 | Z95: 0 | AA95: 0 | AB95: 0 | AC95: 0 | AD95: 0 | AE95: -3.729151981e-12 | AF95: 0 | AG95: 3.729151981e-12 | AH95: 3.729151981e-12 | AI95: 0 | AL95: -3.681448159e-12 | AN95: -1.773514668e-11
A96: 2091 | B96: 0 | C96: 0 | D96: -3.990408004e-11 | E96: 218323.8893 | F96: 0 | G96: 0 | H96: 0 | I96: -3.990408004e-11 | J96: 0 | K96: -3.990408004e-11 | L96: -1.037506081e-12 | M96: -1.895443802e-12 | N96: 0 | O96: -2.660272003e-13 | P96: 0 | Q96: -3.900351099e-14 | R96: -4.91171387e-13 | S96: -3.729151981e-12 | T96: -6.663421054e-72 | V96: 0 | W96: 69 | X96: 0 | Y96: 0 | Z96: 0 | AA96: 0 | AB96: 0 | AC96: 0 | AD96: 0 | AE96: -3.729151981e-12 | AF96: 0 | AG96: 3.729151981e-12 | AH96: 3.729151981e-12 | AI96: 0 | AL96: -3.681448159e-12 | AN96: -1.773514668e-11
A97: 2092 | B97: 0 | C97: 0 | D97: -3.990408004e-11 | E97: 218323.8893 | F97: 0 | G97: 0 | H97: 0 | I97: -3.990408004e-11 | J97: 0 | K97: -3.990408004e-11 | L97: -1.037506081e-12 | M97: -1.895443802e-12 | N97: 0 | O97: -2.660272003e-13 | P97: 0 | Q97: -3.900351099e-14 | R97: -4.91171387e-13 | S97: -3.729151981e-12 | T97: -6.238924622e-72 | V97: 0 | W97: 70 | X97: 0 | Y97: 0 | Z97: 0 | AA97: 0 | AB97: 0 | AC97: 0 | AD97: 0 | AE97: -3.729151981e-12 | AF97: 0 | AG97: 3.729151981e-12 | AH97: 3.729151981e-12 | AI97: 0 | AL97: -3.681448159e-12 | AN97: -1.773514668e-11
A98: 2093 | B98: 0 | C98: 0 | D98: -3.990408004e-11 | E98: 218323.8893 | F98: 0 | G98: 0 | H98: 0 | I98: -3.990408004e-11 | J98: 0 | K98: -3.990408004e-11 | L98: -1.037506081e-12 | M98: -1.895443802e-12 | N98: 0 | O98: -2.660272003e-13 | P98: 0 | Q98: -3.900351099e-14 | R98: -4.91171387e-13 | S98: -3.729151981e-12 | T98: -5.84147094e-72 | V98: 0 | W98: 71 | X98: 0 | Y98: 0 | Z98: 0 | AA98: 0 | AB98: 0 | AC98: 0 | AD98: 0 | AE98: -3.729151981e-12 | AF98: 0 | AG98: 3.729151981e-12 | AH98: 3.729151981e-12 | AI98: 0 | AL98: -3.681448159e-12 | AN98: -1.773514668e-11
A99: 2094 | B99: 0 | C99: 0 | D99: -3.990408004e-11 | E99: 218323.8893 | F99: 0 | G99: 0 | H99: 0 | I99: -3.990408004e-11 | J99: 0 | K99: -3.990408004e-11 | L99: -1.037506081e-12 | M99: -1.895443802e-12 | N99: 0 | O99: -2.660272003e-13 | P99: 0 | Q99: -3.900351099e-14 | R99: -4.91171387e-13 | S99: -3.729151981e-12 | T99: -5.469337234e-72 | V99: 0 | W99: 72 | X99: 0 | Y99: 0 | Z99: 0 | AA99: 0 | AB99: 0 | AC99: 0 | AD99: 0 | AE99: -3.729151981e-12 | AF99: 0 | AG99: 3.729151981e-12 | AH99: 3.729151981e-12 | AI99: 0 | AL99: -3.681448159e-12 | AN99: -1.773514668e-11
A100: 2095 | B100: 0 | C100: 0 | D100: -3.990408004e-11 | E100: 218323.8893 | F100: 0 | G100: 0 | H100: 0 | I100: -3.990408004e-11 | J100: 0 | K100: -3.990408004e-11 | L100: -1.037506081e-12 | M100: -1.895443802e-12 | N100: 0 | O100: -2.660272003e-13 | P100: 0 | Q100: -3.900351099e-14 | R100: -4.91171387e-13 | S100: -3.729151981e-12 | T100: -5.120910485e-72 | V100: 0 | W100: 73 | X100: 0 | Y100: 0 | Z100: 0 | AA100: 0 | AB100: 0 | AC100: 0 | AD100: 0 | AE100: -3.729151981e-12 | AF100: 0 | AG100: 3.729151981e-12 | AH100: 3.729151981e-12 | AI100: 0 | AL100: -3.681448159e-12 | AN100: -1.773514668e-11
A101: 2096 | B101: 0 | C101: 0 | D101: -3.990408004e-11 | E101: 218323.8893 | F101: 0 | G101: 0 | H101: 0 | I101: -3.990408004e-11 | J101: 0 | K101: -3.990408004e-11 | L101: -1.037506081e-12 | M101: -1.895443802e-12 | N101: 0 | O101: -2.660272003e-13 | P101: 0 | Q101: -3.900351099e-14 | R101: -4.91171387e-13 | S101: -3.729151981e-12 | T101: -4.794680429e-72 | V101: 0 | W101: 74 | X101: 0 | Y101: 0 | Z101: 0 | AA101: 0 | AB101: 0 | AC101: 0 | AD101: 0 | AE101: -3.729151981e-12 | AF101: 0 | AG101: 3.729151981e-12 | AH101: 3.729151981e-12 | AI101: 0 | AL101: -3.681448159e-12 | AN101: -1.773514668e-11
A102: 2097 | B102: 0 | C102: 0 | D102: -3.990408004e-11 | E102: 218323.8893 | F102: 0 | G102: 0 | H102: 0 | I102: -3.990408004e-11 | J102: 0 | K102: -3.990408004e-11 | L102: -1.037506081e-12 | M102: -1.895443802e-12 | N102: 0 | O102: -2.660272003e-13 | P102: 0 | Q102: -3.900351099e-14 | R102: -4.91171387e-13 | S102: -3.729151981e-12 | T102: -4.489233014e-72 | V102: 0 | W102: 75 | X102: 0 | Y102: 0 | Z102: 0 | AA102: 0 | AB102: 0 | AC102: 0 | AD102: 0 | AE102: -3.729151981e-12 | AF102: 0 | AG102: 3.729151981e-12 | AH102: 3.729151981e-12 | AI102: 0 | AL102: -3.681448159e-12 | AN102: -1.773514668e-11
A103: 2098 | B103: 0 | C103: 0 | D103: -3.990408004e-11 | E103: 218323.8893 | F103: 0 | G103: 0 | H103: 0 | I103: -3.990408004e-11 | J103: 0 | K103: -3.990408004e-11 | L103: -1.037506081e-12 | M103: -1.895443802e-12 | N103: 0 | O103: -2.660272003e-13 | P103: 0 | Q103: -3.900351099e-14 | R103: -4.91171387e-13 | S103: -3.729151981e-12 | T103: -4.203244274e-72 | V103: 0 | W103: 76 | X103: 0 | Y103: 0 | Z103: 0 | AA103: 0 | AB103: 0 | AC103: 0 | AD103: 0 | AE103: -3.729151981e-12 | AF103: 0 | AG103: 3.729151981e-12 | AH103: 3.729151981e-12 | AI103: 0 | AL103: -3.681448159e-12 | AN103: -1.773514668e-11
A104: = | B104: = | C104: = | D104: = | E104: = | F104: = | G104: = | H104: = | I104: = | J104: = | K104: = | L104: = | M104: = | N104: = | O104: = | P104: = | Q104: = | R104: = | S104: = | T104: =
A106: (a) Time Period in Years
A107: (b) Capital Additions Tax Basis
A108: (c) Capital Additions Book Basis
A109: (d) Rate Base Beginning of Period = Previous(i) + Previous(c)
A110: (e) Accumulated Depreciation = Previous(e) + (j)
A111: (f) Tax Depreciation = Modified ACRS Schedules Times The Tax Basis
A112: (g) Book Depreciation on Tax Basis = Straight Line Depreciation of Tax Basis
A113: (h) Deferred Taxes = [(f)-(g)] * Federal Income Tax Rate
A114: (i) Rate Base End of Period = (d) - (j) - (h)
A115: (j) Book Depreciation = Straight Line Per Book Life
A116: (k) Average Rate Base = [(d) + (i)] / 2
A117: (l) Interest Expense = Weighted Cost of Debt * (k)
A118: (m) Equity Return = [Weighted Cost of Preferred + Weighted Cost of Common] * (k)
A119: (n) Operating and Maintenance Expense = Previous(n) * [1 + O&M Escalation Factor]
A120: (o) Property Taxes = Property Tax Rate * (d)
A121: (p) Miscellaneous Revenue Items = Revenue Requirements * Miscellaneous Revenue Items Percentage
A122: (q) State Income Tax = [Revenue Requirement - [(g) + (l) + (m) + (n) + (o) + (p)] * State Income Tax Rate
A123: (r) Federal Income Taxes = [Revenue Requirements - [(g) + (l) + (n) + (o) + Miscellaneous Revenue Items + State Tax] * Federal Income Tax Rate
A124: (s) Total Revenue Requirements = (j) + (l) + (m) + (n) + (o) + (p) + (q) + (r)
A125: (t) Present Value Revenue Requirements = Total Revenue Requirements / [1 + Discount Factor] ^ [(a) - .5]
A127: Revenue Requirements = [(j) + (l) + (m) + (n) + (o) - Federal Income Tax Rate * [(g) + (l) + (n) + (o)]] / Conversion Factor
A130: TAX DEPRECIATION
A132: Class => | B132: =$D$4 -> 4
C133: 1 | D133: 2 | E133: 3 | F133: 4 | G133: 5 | H133: 6 | I133: 7 | J133: 8 | K133: 9 | L133: 10 | M133: 11 | N133: 12 | O133: 13 | P133: 14 | Q133: 15 | R133: 16 | S133: 17 | T133: 18 | U133: 19 | V133: 20 | W133: 21 | X133: 22 | Y133: 23 | Z133: 24 | AA133: 25 | AB133: 26 | AC133: 27 | AD133: 28 | AE133: 29 | AF133: 30 | AG133: 31 | AH133: 32 | AI133: 33 | AJ133: 34 | AK133: 35 | AL133: 36 | AM133: 37 | AN133: 38 | AO133: 39 | AP133: 40 | AQ133: 41 | AR133: 42 | AS133: 43 | AT133: 44 | AU133: 45 | AV133: 46 | AW133: 47 | AX133: 48 | AY133: 49 | AZ133: 50 | BA133: 51 | BB133: 52 | BC133: 53 | BD133: 54 | BE133: 55 | BF133: 56 | BG133: 57 | BH133: 58 | BI133: 59 | BJ133: 60 | BK133: 61 | BL133: 62 | BM133: 63 | BN133: 64 | BO133: 65 | BP133: 66 | BQ133: 67 | BR133: 68 | BS133: 69 | BT133: 70 | BU133: 71 | BV133: 72 | BW133: 73 | BX133: 74 | BY133: 75 | BZ133: 76 | CA133: Total
C134: - | D134: - | E134: - | F134: - | G134: - | H134: - | I134: - | J134: - | K134: - | L134: - | M134: - | N134: - | O134: - | P134: - | Q134: - | R134: - | S134: - | T134: - | U134: - | V134: - | W134: - | X134: - | Y134: - | Z134: - | AA134: - | AB134: - | AC134: - | AD134: - | AE134: - | AF134: - | AG134: - | AH134: - | AI134: - | AJ134: - | AK134: - | AL134: - | AM134: - | AN134: - | AO134: - | AP134: - | AQ134: - | AR134: - | AS134: - | AT134: - | AU134: - | AV134: - | AW134: - | AX134: - | AY134: - | AZ134: - | BA134: - | BB134: - | BC134: - | BD134: - | BE134: - | BF134: - | BG134: - | BH134: - | BI134: - | BJ134: - | BK134: - | BL134: - | BM134: - | BN134: - | BO134: - | BP134: - | BQ134: - | BR134: - | BS134: - | BT134: - | BU134: - | BV134: - | BW134: - | BX134: - | BY134: - | BZ134: - | CA134: -
A135: Rate | B135: Capital | C135: =$B28 -> 0 | D135: =$B29 -> 8308.603895 | E135: =$B30 -> 8469.709863 | F135: =$B31 -> 8600.562119 | G135: =$B32 -> 8747.306506 | H135: =$B33 -> 8895.92779 | I135: =$B34 -> 9043.487191 | J135: =$B35 -> 9192.846603 | K135: =$B36 -> 9344.014776 | L135: =$B37 -> 9497.00032 | M135: =$B38 -> 9651.811708 | N135: =$B39 -> 9808.457276 | O135: =$B40 -> 9966.945224 | P135: =$B41 -> 10127.28362 | Q135: =$B42 -> 10289.4804 | R135: =$B43 -> 10453.54337 | S135: =$B44 -> 10619.4802 | T135: =$B45 -> 10787.29847 | U135: =$B46 -> 10957.00559 | V135: =$B47 -> 11128.60888 | W135: =$B48 -> 11302.11555 | X135: =$B49 -> 11477.53268 | Y135: =$B50 -> 11654.86724 | Z135: =$B51 -> 0 | AA135: =$B52 -> 0 | AB135: =$B53 -> 0 | AC135: =$B54 -> 0 | AD135: =$B55 -> 0 | AE135: =$B56 -> 0 | AF135: =$B57 -> 0 | AG135: =$B58 -> 0 | AH135: =$B59 -> 0 | AI135: =$B60 -> 0 | AJ135: =$B61 -> 0 | AK135: =$B62 -> 0 | AL135: =$B63 -> 0 | AM135: =$B64 -> 0 | AN135: =$B65 -> 0 | AO135: =$B66 -> 0 | AP135: =$B67 -> 0 | AQ135: =$B68 -> 0 | AR135: =$B69 -> 0 | AS135: =$B70 -> 0 | AT135: =$B71 -> 0 | AU135: =$B72 -> 0 | AV135: =$B73 -> 0 | AW135: =$B74 -> 0 | AX135: =$B75 -> 0 | AY135: =$B76 -> 0 | AZ135: =$B77 -> 0 | BA135: =$B78 -> 0 | BB135: =$B79 -> 0 | BC135: =$B80 -> 0 | BD135: =$B81 -> 0 | BE135: =$B82 -> 0 | BF135: =$B83 -> 0 | BG135: =$B84 -> 0 | BH135: =$B85 -> 0 | BI135: =$B86 -> 0 | BJ135: =$B87 -> 0 | BK135: =$B88 -> 0 | BL135: =$B89 -> 0 | BM135: =$B90 -> 0 | BN135: =$B91 -> 0 | BO135: =$B92 -> 0 | BP135: =$B93 -> 0 | BQ135: =$B94 -> 0 | BR135: =$B95 -> 0 | BS135: =$B96 -> 0 | BT135: =$B97 -> 0 | BU135: =$B98 -> 0 | BV135: =$B99 -> 0 | BW135: =$B100 -> 0 | BX135: =$B101 -> 0 | BY135: =$B102 -> 0 | BZ135: =$B103 -> 0 | CA135: =SUM($C135:$BZ135) -> 218323.8893 | CC135: 31.5 Year | CD135: 20 Years | CE135: 7 Years | CF135: 5 Years
C136: - | D136: - | E136: - | F136: - | G136: - | H136: - | I136: - | J136: - | K136: - | L136: - | M136: - | N136: - | O136: - | P136: - | Q136: - | R136: - | S136: - | T136: - | U136: - | V136: - | W136: - | X136: - | Y136: - | Z136: - | AA136: - | AB136: - | AC136: - | AD136: - | AE136: - | AF136: - | AG136: - | AH136: - | AI136: - | AJ136: - | AK136: - | AL136: - | AM136: - | AN136: - | AO136: - | AP136: - | AQ136: - | AR136: - | AS136: - | AT136: - | AU136: - | AV136: - | AW136: - | AX136: - | AY136: - | AZ136: - | BA136: - | BB136: - | BC136: - | BD136: - | BE136: - | BF136: - | BG136: - | BH136: - | BI136: - | BJ136: - | BK136: - | BL136: - | BM136: - | BN136: - | BO136: - | BP136: - | BQ136: - | BR136: - | BS136: - | BT136: - | BU136: - | BV136: - | BW136: - | BX136: - | BY136: - | BZ136: - | CA136: -
A137: =IF($B$132=1,CC137,IF($B$132=2,CD137,IF($B$132=3,CE137,IF($B$132=4,CF137,#VALUE!)))) -> 0.2 | B137: =+B136+1 -> 1 | C137: =C$135*$A137 -> 0 | CA137: =SUM($C137:$BZ137) -> 0 | CC137: 0.01587 | CD137: 0.0375 | CE137: 0.14286 | CF137: 0.2
A138: =IF($B$132=1,CC138,IF($B$132=2,CD138,IF($B$132=3,CE138,IF($B$132=4,CF138,#VALUE!)))) -> 0.32 | B138: =+B137+1 -> 2 | C138: =C$135*$A138 -> 0 | D138: =D$135*$A137 -> 1661.720779 | CA138: 1661.720779 | CC138: 0.03175 | CD138: 0.07219 | CE138: 0.2449 | CF138: 0.32
A139: 0.192 | B139: 3 | C139: 0 | D139: =D$135*$A138 -> 2658.753246 | E139: =E$135*$A137 -> 1693.941973 | CA139: 4352.695219 | CC139: 0.03175 | CD139: 0.06678 | CE139: 0.17493 | CF139: 0.192
A140: 0.1152 | B140: 4 | C140: 0 | D140: 1595.251948 | E140: =E$135*$A138 -> 2710.307156 | F140: =F$135*$A137 -> 1720.112424 | CA140: 6025.671528 | CC140: 0.03175 | CD140: 0.06178 | CE140: 0.12495 | CF140: 0.1152
A141: 0.1152 | B141: 5 | C141: 0 | D141: 957.1511687 | E141: 1626.184294 | F141: =F$135*$A138 -> 2752.179878 | G141: =G$135*$A137 -> 1749.461301 | CA141: 7084.976642 | CC141: 0.03175 | CD141: 0.05715 | CE141: 0.08925 | CF141: 0.1152
A142: 0.0576 | B142: 6 | C142: 0 | D142: 957.1511687 | E142: 975.7105762 | F142: 1651.307927 | G142: =G$135*$A138 -> 2799.138082 | H142: =H$135*$A137 -> 1779.185558 | CA142: 8162.493312 | CC142: 0.03175 | CD142: 0.05286 | CE142: 0.08925 | CF142: 0.0576
A143: 0 | B143: 7 | C143: 0 | D143: 478.5755843 | E143: 975.7105762 | F143: 990.7847561 | G143: 1679.482849 | H143: =H$135*$A138 -> 2846.696893 | I143: =I$135*$A137 -> 1808.697438 | CA143: 8779.948097 | CC143: 0.03175 | CD143: 0.0489 | CE143: 0.08925 | CF143: 0
A144: 0 | B144: 8 | C144: 0 | D144: 0 | E144: 487.8552881 | F144: 990.7847561 | G144: 1007.68971 | H144: 1708.018136 | I144: =I$135*$A138 -> 2893.915901 | J144: =J$135*$A137 -> 1838.569321 | CA144: 8926.833111 | CC144: 0.03175 | CD144: 0.04523 | CE144: 0.04461 | CF144: 0
A145: 0 | B145: 9 | C145: 0 | D145: 0 | E145: 0 | F145: 495.3923781 | G145: 1007.68971 | H145: 1024.810881 | I145: 1736.349541 | J145: =J$135*$A138 -> 2941.710913 | K145: =K$135*$A137 -> 1868.802955 | CA145: 9074.756378 | CC145: 0.03175 | CD145: 0.04461 | CE145: 0 | CF145: 0
A146: 0 | B146: 10 | C146: 0 | D146: 0 | E146: 0 | F146: 0 | G146: 503.8448548 | H146: 1024.810881 | I146: 1041.809724 | J146: 1765.026548 | K146: =K$135*$A138 -> 2990.084728 | L146: =L$135*$A137 -> 1899.400064 | CA146: 9224.976801 | CC146: 0.03175 | CD146: 0.04461 | CE146: 0 | CF146: 0
A147: 0 | B147: 11 | C147: 0 | D147: 0 | E147: 0 | F147: 0 | G147: 0 | H147: 512.4054407 | I147: 1041.809724 | J147: 1059.015929 | K147: 1794.050837 | L147: =L$135*$A138 -> 3039.040102 | M147: =M$135*$A137 -> 1930.362342 | CA147: 9376.684375 | CC147: 0.03175 | CD147: 0.04461 | CE147: 0 | CF147: 0
A148: 0 | B148: 12 | C148: 0 | D148: 0 | E148: 0 | F148: 0 | G148: 0 | H148: 0 | I148: 520.9048622 | J148: 1059.015929 | K148: 1076.430502 | L148: 1823.424061 | M148: =M$135*$A138 -> 3088.579747 | N148: =N$135*$A137 -> 1961.691455 | CA148: 9530.046556 | CC148: 0.03175 | CD148: 0.04461 | CE148: 0 | CF148: 0
A149: 0 | B149: 13 | C149: 0 | D149: 0 | E149: 0 | F149: 0 | G149: 0 | H149: 0 | I149: 0 | J149: 529.5079643 | K149: 1076.430502 | L149: 1094.054437 | M149: 1853.147848 | N149: =N$135*$A138 -> 3138.706328 | O149: =O$135*$A137 -> 1993.389045 | CA149: 9685.236125 | CC149: 0.03175 | CD149: 0.04461 | CE149: 0 | CF149: 0
A150: 0 | B150: 14 | C150: 0 | D150: 0 | E150: 0 | F150: 0 | G150: 0 | H150: 0 | I150: 0 | J150: 0 | K150: 538.2152511 | L150: 1094.054437 | M150: 1111.888709 | N150: 1883.223797 | O150: =O$135*$A138 -> 3189.422472 | P150: =P$135*$A137 -> 2025.456724 | CA150: 9842.26139 | CC150: 0.03175 | CD150: 0.04461 | CE150: 0 | CF150: 0
A151: 0 | B151: 15 | C151: 0 | D151: 0 | E151: 0 | F151: 0 | G151: 0 | H151: 0 | I151: 0 | J151: 0 | K151: 0 | L151: 547.0272184 | M151: 1111.888709 | N151: 1129.934278 | O151: 1913.653483 | P151: =P$135*$A138 -> 3240.730758 | Q151: =Q$135*$A137 -> 2057.89608 | CA151: 10001.13053 | CC151: 0.03175 | CD151: 0.04461 | CE151: 0 | CF151: 0
A152: 0 | B152: 16 | C152: 0 | D152: 0 | E152: 0 | F152: 0 | G152: 0 | H152: 0 | I152: 0 | J152: 0 | K152: 0 | L152: 0 | M152: 555.9443544 | N152: 1129.934278 | O152: 1148.19209 | P152: 1944.438455 | Q152: =Q$135*$A138 -> 3292.633727 | R152: =R$135*$A137 -> 2090.708673 | CA152: 10161.85158 | CC152: 0.03175 | CD152: 0.04461 | CE152: 0 | CF152: 0
A153: 0 | B153: 17 | C153: 0 | D153: 0 | E153: 0 | F153: 0 | G153: 0 | H153: 0 | I153: 0 | J153: 0 | K153: 0 | L153: 0 | M153: 0 | N153: 564.9671391 | O153: 1148.19209 | P153: 1166.663073 | Q153: 1975.580236 | R153: =R$135*$A138 -> 3345.133877 | S153: =S$135*$A137 -> 2123.896041 | CA153: 10324.43246 | CC153: 0.03175 | CD153: 0.04461 | CE153: 0 | CF153: 0
A154: 0 | B154: 18 | C154: 0 | D154: 0 | E154: 0 | F154: 0 | G154: 0 | H154: 0 | I154: 0 | J154: 0 | K154: 0 | L154: 0 | M154: 0 | N154: 0 | O154: 574.0960449 | P154: 1166.663073 | Q154: 1185.348142 | R154: 2007.080326 | S154: =S$135*$A138 -> 3398.233665 | T154: =T$135*$A137 -> 2157.459693 | CA154: 10488.88095 | CC154: 0.03175 | CD154: 0.04461 | CE154: 0 | CF154: 0
A155: 0 | B155: 19 | C155: 0 | D155: 0 | E155: 0 | F155: 0 | G155: 0 | H155: 0 | I155: 0 | J155: 0 | K155: 0 | L155: 0 | M155: 0 | N155: 0 | O155: 0 | P155: 583.3315365 | Q155: 1185.348142 | R155: 1204.248196 | S155: 2038.940199 | T155: =T$135*$A138 -> 3451.93551 | U155: =U$135*$A137 -> 2191.401118 | CA155: 10655.2047 | CC155: 0.03175 | CD155: 0.04461 | CE155: 0 | CF155: 0
A156: 0 | B156: 20 | C156: 0 | D156: 0 | E156: 0 | F156: 0 | G156: 0 | H156: 0 | I156: 0 | J156: 0 | K156: 0 | L156: 0 | M156: 0 | N156: 0 | O156: 0 | P156: 0 | Q156: 592.6740709 | R156: 1204.248196 | S156: 1223.36412 | T156: 2071.161306 | U156: =U$135*$A138 -> 3506.241788 | V156: =V$135*$A137 -> 2225.721777 | CA156: 10823.41126 | CC156: 0.03175 | CD156: 0.04461 | CE156: 0 | CF156: 0
A157: 0 | B157: 21 | C157: 0 | D157: 0 | E157: 0 | F157: 0 | G157: 0 | H157: 0 | I157: 0 | J157: 0 | K157: 0 | L157: 0 | M157: 0 | N157: 0 | O157: 0 | P157: 0 | Q157: 0 | R157: 602.1240979 | S157: 1223.36412 | T157: 1242.696783 | U157: 2103.745073 | V157: =V$135*$A138 -> 3561.154843 | W157: =W$135*$A137 -> 2260.42311 | CA157: 10993.50803 | CC157: 0.03175 | CD157: 0.02229 | CE157: 0 | CF157: 0
A158: 0 | B158: 22 | C158: 0 | D158: 0 | E158: 0 | F158: 0 | G158: 0 | H158: 0 | I158: 0 | J158: 0 | K158: 0 | L158: 0 | M158: 0 | N158: 0 | O158: 0 | P158: 0 | Q158: 0 | R158: 0 | S158: 611.6820598 | T158: 1242.696783 | U158: 1262.247044 | V158: 2136.692906 | W158: =W$135*$A138 -> 3616.676977 | X158: =X$135*$A137 -> 2295.506536 | CA158: 11165.50231 | CC158: 0.03175 | CD158: 0 | CE158: 0 | CF158: 0
A159: 0 | B159: 23 | C159: 0 | D159: 0 | E159: 0 | F159: 0 | G159: 0 | H159: 0 | I159: 0 | J159: 0 | K159: 0 | L159: 0 | M159: 0 | N159: 0 | O159: 0 | P159: 0 | Q159: 0 | R159: 0 | S159: 0 | T159: 621.3483917 | U159: 1262.247044 | V159: 1282.015743 | W159: 2170.006186 | X159: =X$135*$A138 -> 3672.810458 | Y159: =Y$135*$A137 -> 2330.973449 | CA159: 11339.40127 | CC159: 0.03175 | CD159: 0 | CE159: 0 | CF159: 0
A160: 0 | B160: 24 | C160: 0 | D160: 0 | E160: 0 | F160: 0 | G160: 0 | H160: 0 | I160: 0 | J160: 0 | K160: 0 | L160: 0 | M160: 0 | N160: 0 | O160: 0 | P160: 0 | Q160: 0 | R160: 0 | S160: 0 | T160: 0 | U160: 631.1235219 | V160: 1282.015743 | W160: 1302.003712 | X160: 2203.686275 | Y160: =Y$135*$A138 -> 3729.557518 | Z160: =Z$135*$A137 -> 0 | CA160: 9148.386769 | CC160: 0.03175 | CD160: 0 | CE160: 0 | CF160: 0
A161: 0 | B161: 25 | C161: 0 | D161: 0 | E161: 0 | F161: 0 | G161: 0 | H161: 0 | I161: 0 | J161: 0 | K161: 0 | L161: 0 | M161: 0 | N161: 0 | O161: 0 | P161: 0 | Q161: 0 | R161: 0 | S161: 0 | T161: 0 | U161: 0 | V161: 641.0078717 | W161: 1302.003712 | X161: 1322.211765 | Y161: 2237.734511 | Z161: =Z$135*$A138 -> 0 | AA161: =AA$135*$A137 -> 0 | CA161: 5502.957859 | CC161: 0.03175 | CD161: 0 | CE161: 0 | CF161: 0
A162: 0 | B162: 26 | C162: 0 | D162: 0 | E162: 0 | F162: 0 | G162: 0 | H162: 0 | I162: 0 | J162: 0 | K162: 0 | L162: 0 | M162: 0 | N162: 0 | O162: 0 | P162: 0 | Q162: 0 | R162: 0 | S162: 0 | T162: 0 | U162: 0 | V162: 0 | W162: 651.0018558 | X162: 1322.211765 | Y162: 1342.640706 | Z162: 0 | AA162: =AA$135*$A138 -> 0 | AB162: =AB$135*$A137 -> 0 | CA162: 3315.854327 | CC162: 0.03175 | CD162: 0 | CE162: 0 | CF162: 0
A163: 0 | B163: 27 | C163: 0 | D163: 0 | E163: 0 | F163: 0 | G163: 0 | H163: 0 | I163: 0 | J163: 0 | K163: 0 | L163: 0 | M163: 0 | N163: 0 | O163: 0 | P163: 0 | Q163: 0 | R163: 0 | S163: 0 | T163: 0 | U163: 0 | V163: 0 | W163: 0 | X163: 661.1058824 | Y163: 1342.640706 | Z163: 0 | AA163: 0 | AB163: =AB$135*$A138 -> 0 | AC163: =AC$135*$A137 -> 0 | CA163: 2003.746589 | CC163: 0.03175 | CD163: 0 | CE163: 0 | CF163: 0
A164: 0 | B164: 28 | C164: 0 | D164: 0 | E164: 0 | F164: 0 | G164: 0 | H164: 0 | I164: 0 | J164: 0 | K164: 0 | L164: 0 | M164: 0 | N164: 0 | O164: 0 | P164: 0 | Q164: 0 | R164: 0 | S164: 0 | T164: 0 | U164: 0 | V164: 0 | W164: 0 | X164: 0 | Y164: 671.3203532 | Z164: 0 | AA164: 0 | AB164: 0 | AC164: =AC$135*$A138 -> 0 | AD164: =AD$135*$A137 -> 0 | CA164: 671.3203532 | CC164: 0.03175 | CD164: 0 | CE164: 0 | CF164: 0
A165: 0 | B165: 29 | C165: 0 | D165: 0 | E165: 0 | F165: 0 | G165: 0 | H165: 0 | I165: 0 | J165: 0 | K165: 0 | L165: 0 | M165: 0 | N165: 0 | O165: 0 | P165: 0 | Q165: 0 | R165: 0 | S165: 0 | T165: 0 | U165: 0 | V165: 0 | W165: 0 | X165: 0 | Y165: 0 | Z165: 0 | AA165: 0 | AB165: 0 | AC165: 0 | AD165: =AD$135*$A138 -> 0 | AE165: =AE$135*$A137 -> 0 | CA165: 0 | CC165: 0.03175 | CD165: 0 | CE165: 0 | CF165: 0
A166: 0 | B166: 30 | C166: 0 | D166: 0 | E166: 0 | F166: 0 | G166: 0 | H166: 0 | I166: 0 | J166: 0 | K166: 0 | L166: 0 | M166: 0 | N166: 0 | O166: 0 | P166: 0 | Q166: 0 | R166: 0 | S166: 0 | T166: 0 | U166: 0 | V166: 0 | W166: 0 | X166: 0 | Y166: 0 | Z166: 0 | AA166: 0 | AB166: 0 | AC166: 0 | AD166: 0 | AE166: =AE$135*$A138 -> 0 | AF166: =AF$135*$A137 -> 0 | CA166: 0 | CC166: 0.03175 | CD166: 0 | CE166: 0 | CF166: 0
A167: 0 | B167: 31 | C167: 0 | D167: 0 | E167: 0 | F167: 0 | G167: 0 | H167: 0 | I167: 0 | J167: 0 | K167: 0 | L167: 0 | M167: 0 | N167: 0 | O167: 0 | P167: 0 | Q167: 0 | R167: 0 | S167: 0 | T167: 0 | U167: 0 | V167: 0 | W167: 0 | X167: 0 | Y167: 0 | Z167: 0 | AA167: 0 | AB167: 0 | AC167: 0 | AD167: 0 | AE167: 0 | AF167: =AF$135*$A138 -> 0 | AG167: =AG$135*$A137 -> 0 | CA167: 0 | CC167: 0.03175 | CD167: 0 | CE167: 0 | CF167: 0
A168: 0 | B168: 32 | C168: 0 | D168: 0 | E168: 0 | F168: 0 | G168: 0 | H168: 0 | I168: 0 | J168: 0 | K168: 0 | L168: 0 | M168: 0 | N168: 0 | O168: 0 | P168: 0 | Q168: 0 | R168: 0 | S168: 0 | T168: 0 | U168: 0 | V168: 0 | W168: 0 | X168: 0 | Y168: 0 | Z168: 0 | AA168: 0 | AB168: 0 | AC168: 0 | AD168: 0 | AE168: 0 | AF168: 0 | AG168: =AG$135*$A138 -> 0 | AH168: =AH$135*$A137 -> 0 | CA168: 0 | CC168: 0.03163 | CD168: 0 | CE168: 0 | CF168: 0
A169: 0 | B169: 33 | C169: 0 | D169: 0 | E169: 0 | F169: 0 | G169: 0 | H169: 0 | I169: 0 | J169: 0 | K169: 0 | L169: 0 | M169: 0 | N169: 0 | O169: 0 | P169: 0 | Q169: 0 | R169: 0 | S169: 0 | T169: 0 | U169: 0 | V169: 0 | W169: 0 | X169: 0 | Y169: 0 | Z169: 0 | AA169: 0 | AB169: 0 | AC169: 0 | AD169: 0 | AE169: 0 | AF169: 0 | AG169: 0 | AH169: =AH$135*$A138 -> 0 | AI169: =AI$135*$A137 -> 0 | CA169: 0
A170: 0 | B170: 34 | C170: 0 | D170: 0 | E170: 0 | F170: 0 | G170: 0 | H170: 0 | I170: 0 | J170: 0 | K170: 0 | L170: 0 | M170: 0 | N170: 0 | O170: 0 | P170: 0 | Q170: 0 | R170: 0 | S170: 0 | T170: 0 | U170: 0 | V170: 0 | W170: 0 | X170: 0 | Y170: 0 | Z170: 0 | AA170: 0 | AB170: 0 | AC170: 0 | AD170: 0 | AE170: 0 | AF170: 0 | AG170: 0 | AH170: 0 | AI170: =AI$135*$A138 -> 0 | AJ170: =AJ$135*$A137 -> 0 | CA170: 0
A171: 0 | B171: 35 | C171: 0 | D171: 0 | E171: 0 | F171: 0 | G171: 0 | H171: 0 | I171: 0 | J171: 0 | K171: 0 | L171: 0 | M171: 0 | N171: 0 | O171: 0 | P171: 0 | Q171: 0 | R171: 0 | S171: 0 | T171: 0 | U171: 0 | V171: 0 | W171: 0 | X171: 0 | Y171: 0 | Z171: 0 | AA171: 0 | AB171: 0 | AC171: 0 | AD171: 0 | AE171: 0 | AF171: 0 | AG171: 0 | AH171: 0 | AI171: 0 | AJ171: =AJ$135*$A138 -> 0 | AK171: =AK$135*$A137 -> 0 | CA171: 0
A172: 0 | B172: 36 | C172: 0 | D172: 0 | E172: 0 | F172: 0 | G172: 0 | H172: 0 | I172: 0 | J172: 0 | K172: 0 | L172: 0 | M172: 0 | N172: 0 | O172: 0 | P172: 0 | Q172: 0 | R172: 0 | S172: 0 | T172: 0 | U172: 0 | V172: 0 | W172: 0 | X172: 0 | Y172: 0 | Z172: 0 | AA172: 0 | AB172: 0 | AC172: 0 | AD172: 0 | AE172: 0 | AF172: 0 | AG172: 0 | AH172: 0 | AI172: 0 | AJ172: 0 | AK172: =AK$135*$A138 -> 0 | AL172: =AL$135*$A137 -> 0 | CA172: 0
A173: 0 | B173: 37 | C173: 0 | D173: 0 | E173: 0 | F173: 0 | G173: 0 | H173: 0 | I173: 0 | J173: 0 | K173: 0 | L173: 0 | M173: 0 | N173: 0 | O173: 0 | P173: 0 | Q173: 0 | R173: 0 | S173: 0 | T173: 0 | U173: 0 | V173: 0 | W173: 0 | X173: 0 | Y173: 0 | Z173: 0 | AA173: 0 | AB173: 0 | AC173: 0 | AD173: 0 | AE173: 0 | AF173: 0 | AG173: 0 | AH173: 0 | AI173: 0 | AJ173: 0 | AK173: 0 | AL173: =AL$135*$A138 -> 0 | AM173: =AM$135*$A137 -> 0 | CA173: 0
A174: 0 | B174: 38 | C174: 0 | D174: 0 | E174: 0 | F174: 0 | G174: 0 | H174: 0 | I174: 0 | J174: 0 | K174: 0 | L174: 0 | M174: 0 | N174: 0 | O174: 0 | P174: 0 | Q174: 0 | R174: 0 | S174: 0 | T174: 0 | U174: 0 | V174: 0 | W174: 0 | X174: 0 | Y174: 0 | Z174: 0 | AA174: 0 | AB174: 0 | AC174: 0 | AD174: 0 | AE174: 0 | AF174: 0 | AG174: 0 | AH174: 0 | AI174: 0 | AJ174: 0 | AK174: 0 | AL174: 0 | AM174: =AM$135*$A138 -> 0 | AN174: =AN$135*$A137 -> 0 | CA174: 0
A175: 0 | B175: 39 | C175: 0 | D175: 0 | E175: 0 | F175: 0 | G175: 0 | H175: 0 | I175: 0 | J175: 0 | K175: 0 | L175: 0 | M175: 0 | N175: 0 | O175: 0 | P175: 0 | Q175: 0 | R175: 0 | S175: 0 | T175: 0 | U175: 0 | V175: 0 | W175: 0 | X175: 0 | Y175: 0 | Z175: 0 | AA175: 0 | AB175: 0 | AC175: 0 | AD175: 0 | AE175: 0 | AF175: 0 | AG175: 0 | AH175: 0 | AI175: 0 | AJ175: 0 | AK175: 0 | AL175: 0 | AM175: 0 | AN175: =AN$135*$A138 -> 0 | AO175: =AO$135*$A137 -> 0 | CA175: 0
A176: 0 | B176: 40 | C176: 0 | D176: 0 | E176: 0 | F176: 0 | G176: 0 | H176: 0 | I176: 0 | J176: 0 | K176: 0 | L176: 0 | M176: 0 | N176: 0 | O176: 0 | P176: 0 | Q176: 0 | R176: 0 | S176: 0 | T176: 0 | U176: 0 | V176: 0 | W176: 0 | X176: 0 | Y176: 0 | Z176: 0 | AA176: 0 | AB176: 0 | AC176: 0 | AD176: 0 | AE176: 0 | AF176: 0 | AG176: 0 | AH176: 0 | AI176: 0 | AJ176: 0 | AK176: 0 | AL176: 0 | AM176: 0 | AN176: 0 | AO176: =AO$135*$A138 -> 0 | AP176: =AP$135*$A137 -> 0 | CA176: 0
A177: 0 | B177: 41 | C177: 0 | D177: 0 | E177: 0 | F177: 0 | G177: 0 | H177: 0 | I177: 0 | J177: 0 | K177: 0 | L177: 0 | M177: 0 | N177: 0 | O177: 0 | P177: 0 | Q177: 0 | R177: 0 | S177: 0 | T177: 0 | U177: 0 | V177: 0 | W177: 0 | X177: 0 | Y177: 0 | Z177: 0 | AA177: 0 | AB177: 0 | AC177: 0 | AD177: 0 | AE177: 0 | AF177: 0 | AG177: 0 | AH177: 0 | AI177: 0 | AJ177: 0 | AK177: 0 | AL177: 0 | AM177: 0 | AN177: 0 | AO177: 0 | AP177: =AP$135*$A138 -> 0 | AQ177: =AQ$135*$A137 -> 0 | CA177: 0
A178: 0 | B178: 42 | C178: 0 | D178: 0 | E178: 0 | F178: 0 | G178: 0 | H178: 0 | I178: 0 | J178: 0 | K178: 0 | L178: 0 | M178: 0 | N178: 0 | O178: 0 | P178: 0 | Q178: 0 | R178: 0 | S178: 0 | T178: 0 | U178: 0 | V178: 0 | W178: 0 | X178: 0 | Y178: 0 | Z178: 0 | AA178: 0 | AB178: 0 | AC178: 0 | AD178: 0 | AE178: 0 | AF178: 0 | AG178: 0 | AH178: 0 | AI178: 0 | AJ178: 0 | AK178: 0 | AL178: 0 | AM178: 0 | AN178: 0 | AO178: 0 | AP178: 0 | AQ178: =AQ$135*$A138 -> 0 | AR178: =AR$135*$A137 -> 0 | CA178: 0
A179: 0 | B179: 43 | C179: 0 | D179: 0 | E179: 0 | F179: 0 | G179: 0 | H179: 0 | I179: 0 | J179: 0 | K179: 0 | L179: 0 | M179: 0 | N179: 0 | O179: 0 | P179: 0 | Q179: 0 | R179: 0 | S179: 0 | T179: 0 | U179: 0 | V179: 0 | W179: 0 | X179: 0 | Y179: 0 | Z179: 0 | AA179: 0 | AB179: 0 | AC179: 0 | AD179: 0 | AE179: 0 | AF179: 0 | AG179: 0 | AH179: 0 | AI179: 0 | AJ179: 0 | AK179: 0 | AL179: 0 | AM179: 0 | AN179: 0 | AO179: 0 | AP179: 0 | AQ179: 0 | AR179: =AR$135*$A138 -> 0 | AS179: =AS$135*$A137 -> 0 | CA179: 0
A180: 0 | B180: 44 | C180: 0 | D180: 0 | E180: 0 | F180: 0 | G180: 0 | H180: 0 | I180: 0 | J180: 0 | K180: 0 | L180: 0 | M180: 0 | N180: 0 | O180: 0 | P180: 0 | Q180: 0 | R180: 0 | S180: 0 | T180: 0 | U180: 0 | V180: 0 | W180: 0 | X180: 0 | Y180: 0 | Z180: 0 | AA180: 0 | AB180: 0 | AC180: 0 | AD180: 0 | AE180: 0 | AF180: 0 | AG180: 0 | AH180: 0 | AI180: 0 | AJ180: 0 | AK180: 0 | AL180: 0 | AM180: 0 | AN180: 0 | AO180: 0 | AP180: 0 | AQ180: 0 | AR180: 0 | AS180: =AS$135*$A138 -> 0 | AT180: =AT$135*$A137 -> 0 | CA180: 0
A181: 0 | B181: 45 | C181: 0 | D181: 0 | E181: 0 | F181: 0 | G181: 0 | H181: 0 | I181: 0 | J181: 0 | K181: 0 | L181: 0 | M181: 0 | N181: 0 | O181: 0 | P181: 0 | Q181: 0 | R181: 0 | S181: 0 | T181: 0 | U181: 0 | V181: 0 | W181: 0 | X181: 0 | Y181: 0 | Z181: 0 | AA181: 0 | AB181: 0 | AC181: 0 | AD181: 0 | AE181: 0 | AF181: 0 | AG181: 0 | AH181: 0 | AI181: 0 | AJ181: 0 | AK181: 0 | AL181: 0 | AM181: 0 | AN181: 0 | AO181: 0 | AP181: 0 | AQ181: 0 | AR181: 0 | AS181: 0 | AT181: =AT$135*$A138 -> 0 | AU181: =AU$135*$A137 -> 0 | CA181: 0
A182: 0 | B182: 46 | C182: 0 | D182: 0 | E182: 0 | F182: 0 | G182: 0 | H182: 0 | I182: 0 | J182: 0 | K182: 0 | L182: 0 | M182: 0 | N182: 0 | O182: 0 | P182: 0 | Q182: 0 | R182: 0 | S182: 0 | T182: 0 | U182: 0 | V182: 0 | W182: 0 | X182: 0 | Y182: 0 | Z182: 0 | AA182: 0 | AB182: 0 | AC182: 0 | AD182: 0 | AE182: 0 | AF182: 0 | AG182: 0 | AH182: 0 | AI182: 0 | AJ182: 0 | AK182: 0 | AL182: 0 | AM182: 0 | AN182: 0 | AO182: 0 | AP182: 0 | AQ182: 0 | AR182: 0 | AS182: 0 | AT182: 0 | AU182: =AU$135*$A138 -> 0 | AV182: =AV$135*$A137 -> 0 | CA182: 0
A183: 0 | B183: 47 | C183: 0 | D183: 0 | E183: 0 | F183: 0 | G183: 0 | H183: 0 | I183: 0 | J183: 0 | K183: 0 | L183: 0 | M183: 0 | N183: 0 | O183: 0 | P183: 0 | Q183: 0 | R183: 0 | S183: 0 | T183: 0 | U183: 0 | V183: 0 | W183: 0 | X183: 0 | Y183: 0 | Z183: 0 | AA183: 0 | AB183: 0 | AC183: 0 | AD183: 0 | AE183: 0 | AF183: 0 | AG183: 0 | AH183: 0 | AI183: 0 | AJ183: 0 | AK183: 0 | AL183: 0 | AM183: 0 | AN183: 0 | AO183: 0 | AP183: 0 | AQ183: 0 | AR183: 0 | AS183: 0 | AT183: 0 | AU183: 0 | AV183: =AV$135*$A138 -> 0 | AW183: =AW$135*$A137 -> 0 | CA183: 0
A184: 0 | B184: 48 | C184: 0 | D184: 0 | E184: 0 | F184: 0 | G184: 0 | H184: 0 | I184: 0 | J184: 0 | K184: 0 | L184: 0 | M184: 0 | N184: 0 | O184: 0 | P184: 0 | Q184: 0 | R184: 0 | S184: 0 | T184: 0 | U184: 0 | V184: 0 | W184: 0 | X184: 0 | Y184: 0 | Z184: 0 | AA184: 0 | AB184: 0 | AC184: 0 | AD184: 0 | AE184: 0 | AF184: 0 | AG184: 0 | AH184: 0 | AI184: 0 | AJ184: 0 | AK184: 0 | AL184: 0 | AM184: 0 | AN184: 0 | AO184: 0 | AP184: 0 | AQ184: 0 | AR184: 0 | AS184: 0 | AT184: 0 | AU184: 0 | AV184: 0 | AW184: =AW$135*$A138 -> 0 | AX184: =AX$135*$A137 -> 0 | CA184: 0
A185: 0 | B185: 49 | C185: 0 | D185: 0 | E185: 0 | F185: 0 | G185: 0 | H185: 0 | I185: 0 | J185: 0 | K185: 0 | L185: 0 | M185: 0 | N185: 0 | O185: 0 | P185: 0 | Q185: 0 | R185: 0 | S185: 0 | T185: 0 | U185: 0 | V185: 0 | W185: 0 | X185: 0 | Y185: 0 | Z185: 0 | AA185: 0 | AB185: 0 | AC185: 0 | AD185: 0 | AE185: 0 | AF185: 0 | AG185: 0 | AH185: 0 | AI185: 0 | AJ185: 0 | AK185: 0 | AL185: 0 | AM185: 0 | AN185: 0 | AO185: 0 | AP185: 0 | AQ185: 0 | AR185: 0 | AS185: 0 | AT185: 0 | AU185: 0 | AV185: 0 | AW185: 0 | AX185: =AX$135*$A138 -> 0 | AY185: =AY$135*$A137 -> 0 | CA185: 0
A186: 0 | B186: 50 | C186: 0 | D186: 0 | E186: 0 | F186: 0 | G186: 0 | H186: 0 | I186: 0 | J186: 0 | K186: 0 | L186: 0 | M186: 0 | N186: 0 | O186: 0 | P186: 0 | Q186: 0 | R186: 0 | S186: 0 | T186: 0 | U186: 0 | V186: 0 | W186: 0 | X186: 0 | Y186: 0 | Z186: 0 | AA186: 0 | AB186: 0 | AC186: 0 | AD186: 0 | AE186: 0 | AF186: 0 | AG186: 0 | AH186: 0 | AI186: 0 | AJ186: 0 | AK186: 0 | AL186: 0 | AM186: 0 | AN186: 0 | AO186: 0 | AP186: 0 | AQ186: 0 | AR186: 0 | AS186: 0 | AT186: 0 | AU186: 0 | AV186: 0 | AW186: 0 | AX186: 0 | AY186: =AY$135*$A138 -> 0 | AZ186: =AZ$135*$A137 -> 0 | CA186: 0
A187: 0 | B187: 51 | C187: 0 | D187: 0 | E187: 0 | F187: 0 | G187: 0 | H187: 0 | I187: 0 | J187: 0 | K187: 0 | L187: 0 | M187: 0 | N187: 0 | O187: 0 | P187: 0 | Q187: 0 | R187: 0 | S187: 0 | T187: 0 | U187: 0 | V187: 0 | W187: 0 | X187: 0 | Y187: 0 | Z187: 0 | AA187: 0 | AB187: 0 | AC187: 0 | AD187: 0 | AE187: 0 | AF187: 0 | AG187: 0 | AH187: 0 | AI187: 0 | AJ187: 0 | AK187: 0 | AL187: 0 | AM187: 0 | AN187: 0 | AO187: 0 | AP187: 0 | AQ187: 0 | AR187: 0 | AS187: 0 | AT187: 0 | AU187: 0 | AV187: 0 | AW187: 0 | AX187: 0 | AY187: 0 | AZ187: =AZ$135*$A138 -> 0 | BA187: =BA$135*$A137 -> 0 | CA187: 0
A188: 0 | B188: 52 | C188: 0 | D188: 0 | E188: 0 | F188: 0 | G188: 0 | H188: 0 | I188: 0 | J188: 0 | K188: 0 | L188: 0 | M188: 0 | N188: 0 | O188: 0 | P188: 0 | Q188: 0 | R188: 0 | S188: 0 | T188: 0 | U188: 0 | V188: 0 | W188: 0 | X188: 0 | Y188: 0 | Z188: 0 | AA188: 0 | AB188: 0 | AC188: 0 | AD188: 0 | AE188: 0 | AF188: 0 | AG188: 0 | AH188: 0 | AI188: 0 | AJ188: 0 | AK188: 0 | AL188: 0 | AM188: 0 | AN188: 0 | AO188: 0 | AP188: 0 | AQ188: 0 | AR188: 0 | AS188: 0 | AT188: 0 | AU188: 0 | AV188: 0 | AW188: 0 | AX188: 0 | AY188: 0 | AZ188: 0 | BA188: =BA$135*$A138 -> 0 | BB188: =BB$135*$A137 -> 0 | CA188: 0
A189: 0 | B189: 53 | C189: 0 | D189: 0 | E189: 0 | F189: 0 | G189: 0 | H189: 0 | I189: 0 | J189: 0 | K189: 0 | L189: 0 | M189: 0 | N189: 0 | O189: 0 | P189: 0 | Q189: 0 | R189: 0 | S189: 0 | T189: 0 | U189: 0 | V189: 0 | W189: 0 | X189: 0 | Y189: 0 | Z189: 0 | AA189: 0 | AB189: 0 | AC189: 0 | AD189: 0 | AE189: 0 | AF189: 0 | AG189: 0 | AH189: 0 | AI189: 0 | AJ189: 0 | AK189: 0 | AL189: 0 | AM189: 0 | AN189: 0 | AO189: 0 | AP189: 0 | AQ189: 0 | AR189: 0 | AS189: 0 | AT189: 0 | AU189: 0 | AV189: 0 | AW189: 0 | AX189: 0 | AY189: 0 | AZ189: 0 | BA189: 0 | BB189: =BB$135*$A138 -> 0 | BC189: =BC$135*$A137 -> 0 | CA189: 0
A190: 0 | B190: 54 | C190: 0 | D190: 0 | E190: 0 | F190: 0 | G190: 0 | H190: 0 | I190: 0 | J190: 0 | K190: 0 | L190: 0 | M190: 0 | N190: 0 | O190: 0 | P190: 0 | Q190: 0 | R190: 0 | S190: 0 | T190: 0 | U190: 0 | V190: 0 | W190: 0 | X190: 0 | Y190: 0 | Z190: 0 | AA190: 0 | AB190: 0 | AC190: 0 | AD190: 0 | AE190: 0 | AF190: 0 | AG190: 0 | AH190: 0 | AI190: 0 | AJ190: 0 | AK190: 0 | AL190: 0 | AM190: 0 | AN190: 0 | AO190: 0 | AP190: 0 | AQ190: 0 | AR190: 0 | AS190: 0 | AT190: 0 | AU190: 0 | AV190: 0 | AW190: 0 | AX190: 0 | AY190: 0 | AZ190: 0 | BA190: 0 | BB190: 0 | BC190: =BC$135*$A138 -> 0 | BD190: =BD$135*$A137 -> 0 | CA190: 0
A191: 0 | B191: 55 | C191: 0 | D191: 0 | E191: 0 | F191: 0 | G191: 0 | H191: 0 | I191: 0 | J191: 0 | K191: 0 | L191: 0 | M191: 0 | N191: 0 | O191: 0 | P191: 0 | Q191: 0 | R191: 0 | S191: 0 | T191: 0 | U191: 0 | V191: 0 | W191: 0 | X191: 0 | Y191: 0 | Z191: 0 | AA191: 0 | AB191: 0 | AC191: 0 | AD191: 0 | AE191: 0 | AF191: 0 | AG191: 0 | AH191: 0 | AI191: 0 | AJ191: 0 | AK191: 0 | AL191: 0 | AM191: 0 | AN191: 0 | AO191: 0 | AP191: 0 | AQ191: 0 | AR191: 0 | AS191: 0 | AT191: 0 | AU191: 0 | AV191: 0 | AW191: 0 | AX191: 0 | AY191: 0 | AZ191: 0 | BA191: 0 | BB191: 0 | BC191: 0 | BD191: =BD$135*$A138 -> 0 | BE191: =BE$135*$A137 -> 0 | CA191: 0
A192: 0 | B192: 56 | C192: 0 | D192: 0 | E192: 0 | F192: 0 | G192: 0 | H192: 0 | I192: 0 | J192: 0 | K192: 0 | L192: 0 | M192: 0 | N192: 0 | O192: 0 | P192: 0 | Q192: 0 | R192: 0 | S192: 0 | T192: 0 | U192: 0 | V192: 0 | W192: 0 | X192: 0 | Y192: 0 | Z192: 0 | AA192: 0 | AB192: 0 | AC192: 0 | AD192: 0 | AE192: 0 | AF192: 0 | AG192: 0 | AH192: 0 | AI192: 0 | AJ192: 0 | AK192: 0 | AL192: 0 | AM192: 0 | AN192: 0 | AO192: 0 | AP192: 0 | AQ192: 0 | AR192: 0 | AS192: 0 | AT192: 0 | AU192: 0 | AV192: 0 | AW192: 0 | AX192: 0 | AY192: 0 | AZ192: 0 | BA192: 0 | BB192: 0 | BC192: 0 | BD192: 0 | BE192: =BE$135*$A138 -> 0 | BF192: =BF$135*$A137 -> 0 | CA192: 0
A193: 0 | B193: 57 | C193: 0 | D193: 0 | E193: 0 | F193: 0 | G193: 0 | H193: 0 | I193: 0 | J193: 0 | K193: 0 | L193: 0 | M193: 0 | N193: 0 | O193: 0 | P193: 0 | Q193: 0 | R193: 0 | S193: 0 | T193: 0 | U193: 0 | V193: 0 | W193: 0 | X193: 0 | Y193: 0 | Z193: 0 | AA193: 0 | AB193: 0 | AC193: 0 | AD193: 0 | AE193: 0 | AF193: 0 | AG193: 0 | AH193: 0 | AI193: 0 | AJ193: 0 | AK193: 0 | AL193: 0 | AM193: 0 | AN193: 0 | AO193: 0 | AP193: 0 | AQ193: 0 | AR193: 0 | AS193: 0 | AT193: 0 | AU193: 0 | AV193: 0 | AW193: 0 | AX193: 0 | AY193: 0 | AZ193: 0 | BA193: 0 | BB193: 0 | BC193: 0 | BD193: 0 | BE193: 0 | BF193: =BF$135*$A138 -> 0 | BG193: =BG$135*$A137 -> 0 | CA193: 0
A194: 0 | B194: 58 | C194: 0 | D194: 0 | E194: 0 | F194: 0 | G194: 0 | H194: 0 | I194: 0 | J194: 0 | K194: 0 | L194: 0 | M194: 0 | N194: 0 | O194: 0 | P194: 0 | Q194: 0 | R194: 0 | S194: 0 | T194: 0 | U194: 0 | V194: 0 | W194: 0 | X194: 0 | Y194: 0 | Z194: 0 | AA194: 0 | AB194: 0 | AC194: 0 | AD194: 0 | AE194: 0 | AF194: 0 | AG194: 0 | AH194: 0 | AI194: 0 | AJ194: 0 | AK194: 0 | AL194: 0 | AM194: 0 | AN194: 0 | AO194: 0 | AP194: 0 | AQ194: 0 | AR194: 0 | AS194: 0 | AT194: 0 | AU194: 0 | AV194: 0 | AW194: 0 | AX194: 0 | AY194: 0 | AZ194: 0 | BA194: 0 | BB194: 0 | BC194: 0 | BD194: 0 | BE194: 0 | BF194: 0 | BG194: =BG$135*$A138 -> 0 | BH194: =BH$135*$A137 -> 0 | CA194: 0
A195: 0 | B195: 59 | C195: 0 | D195: 0 | E195: 0 | F195: 0 | G195: 0 | H195: 0 | I195: 0 | J195: 0 | K195: 0 | L195: 0 | M195: 0 | N195: 0 | O195: 0 | P195: 0 | Q195: 0 | R195: 0 | S195: 0 | T195: 0 | U195: 0 | V195: 0 | W195: 0 | X195: 0 | Y195: 0 | Z195: 0 | AA195: 0 | AB195: 0 | AC195: 0 | AD195: 0 | AE195: 0 | AF195: 0 | AG195: 0 | AH195: 0 | AI195: 0 | AJ195: 0 | AK195: 0 | AL195: 0 | AM195: 0 | AN195: 0 | AO195: 0 | AP195: 0 | AQ195: 0 | AR195: 0 | AS195: 0 | AT195: 0 | AU195: 0 | AV195: 0 | AW195: 0 | AX195: 0 | AY195: 0 | AZ195: 0 | BA195: 0 | BB195: 0 | BC195: 0 | BD195: 0 | BE195: 0 | BF195: 0 | BG195: 0 | BH195: =BH$135*$A138 -> 0 | BI195: =BI$135*$A137 -> 0 | CA195: 0
A196: 0 | B196: 60 | C196: 0 | D196: 0 | E196: 0 | F196: 0 | G196: 0 | H196: 0 | I196: 0 | J196: 0 | K196: 0 | L196: 0 | M196: 0 | N196: 0 | O196: 0 | P196: 0 | Q196: 0 | R196: 0 | S196: 0 | T196: 0 | U196: 0 | V196: 0 | W196: 0 | X196: 0 | Y196: 0 | Z196: 0 | AA196: 0 | AB196: 0 | AC196: 0 | AD196: 0 | AE196: 0 | AF196: 0 | AG196: 0 | AH196: 0 | AI196: 0 | AJ196: 0 | AK196: 0 | AL196: 0 | AM196: 0 | AN196: 0 | AO196: 0 | AP196: 0 | AQ196: 0 | AR196: 0 | AS196: 0 | AT196: 0 | AU196: 0 | AV196: 0 | AW196: 0 | AX196: 0 | AY196: 0 | AZ196: 0 | BA196: 0 | BB196: 0 | BC196: 0 | BD196: 0 | BE196: 0 | BF196: 0 | BG196: 0 | BH196: 0 | BI196: =BI$135*$A138 -> 0 | BJ196: =BJ$135*$A137 -> 0 | CA196: 0
A197: 0 | B197: 61 | C197: 0 | D197: 0 | E197: 0 | F197: 0 | G197: 0 | H197: 0 | I197: 0 | J197: 0 | K197: 0 | L197: 0 | M197: 0 | N197: 0 | O197: 0 | P197: 0 | Q197: 0 | R197: 0 | S197: 0 | T197: 0 | U197: 0 | V197: 0 | W197: 0 | X197: 0 | Y197: 0 | Z197: 0 | AA197: 0 | AB197: 0 | AC197: 0 | AD197: 0 | AE197: 0 | AF197: 0 | AG197: 0 | AH197: 0 | AI197: 0 | AJ197: 0 | AK197: 0 | AL197: 0 | AM197: 0 | AN197: 0 | AO197: 0 | AP197: 0 | AQ197: 0 | AR197: 0 | AS197: 0 | AT197: 0 | AU197: 0 | AV197: 0 | AW197: 0 | AX197: 0 | AY197: 0 | AZ197: 0 | BA197: 0 | BB197: 0 | BC197: 0 | BD197: 0 | BE197: 0 | BF197: 0 | BG197: 0 | BH197: 0 | BI197: 0 | BJ197: =BJ$135*$A138 -> 0 | BK197: =BK$135*$A137 -> 0 | CA197: 0
A198: 0 | B198: 62 | C198: 0 | D198: 0 | E198: 0 | F198: 0 | G198: 0 | H198: 0 | I198: 0 | J198: 0 | K198: 0 | L198: 0 | M198: 0 | N198: 0 | O198: 0 | P198: 0 | Q198: 0 | R198: 0 | S198: 0 | T198: 0 | U198: 0 | V198: 0 | W198: 0 | X198: 0 | Y198: 0 | Z198: 0 | AA198: 0 | AB198: 0 | AC198: 0 | AD198: 0 | AE198: 0 | AF198: 0 | AG198: 0 | AH198: 0 | AI198: 0 | AJ198: 0 | AK198: 0 | AL198: 0 | AM198: 0 | AN198: 0 | AO198: 0 | AP198: 0 | AQ198: 0 | AR198: 0 | AS198: 0 | AT198: 0 | AU198: 0 | AV198: 0 | AW198: 0 | AX198: 0 | AY198: 0 | AZ198: 0 | BA198: 0 | BB198: 0 | BC198: 0 | BD198: 0 | BE198: 0 | BF198: 0 | BG198: 0 | BH198: 0 | BI198: 0 | BJ198: 0 | BK198: =BK$135*$A138 -> 0 | BL198: =BL$135*$A137 -> 0 | CA198: 0
A199: 0 | B199: 63 | C199: 0 | D199: 0 | E199: 0 | F199: 0 | G199: 0 | H199: 0 | I199: 0 | J199: 0 | K199: 0 | L199: 0 | M199: 0 | N199: 0 | O199: 0 | P199: 0 | Q199: 0 | R199: 0 | S199: 0 | T199: 0 | U199: 0 | V199: 0 | W199: 0 | X199: 0 | Y199: 0 | Z199: 0 | AA199: 0 | AB199: 0 | AC199: 0 | AD199: 0 | AE199: 0 | AF199: 0 | AG199: 0 | AH199: 0 | AI199: 0 | AJ199: 0 | AK199: 0 | AL199: 0 | AM199: 0 | AN199: 0 | AO199: 0 | AP199: 0 | AQ199: 0 | AR199: 0 | AS199: 0 | AT199: 0 | AU199: 0 | AV199: 0 | AW199: 0 | AX199: 0 | AY199: 0 | AZ199: 0 | BA199: 0 | BB199: 0 | BC199: 0 | BD199: 0 | BE199: 0 | BF199: 0 | BG199: 0 | BH199: 0 | BI199: 0 | BJ199: 0 | BK199: 0 | BL199: =BL$135*$A138 -> 0 | BM199: =BM$135*$A137 -> 0 | CA199: 0
A200: 0 | B200: 64 | C200: 0 | D200: 0 | E200: 0 | F200: 0 | G200: 0 | H200: 0 | I200: 0 | J200: 0 | K200: 0 | L200: 0 | M200: 0 | N200: 0 | O200: 0 | P200: 0 | Q200: 0 | R200: 0 | S200: 0 | T200: 0 | U200: 0 | V200: 0 | W200: 0 | X200: 0 | Y200: 0 | Z200: 0 | AA200: 0 | AB200: 0 | AC200: 0 | AD200: 0 | AE200: 0 | AF200: 0 | AG200: 0 | AH200: 0 | AI200: 0 | AJ200: 0 | AK200: 0 | AL200: 0 | AM200: 0 | AN200: 0 | AO200: 0 | AP200: 0 | AQ200: 0 | AR200: 0 | AS200: 0 | AT200: 0 | AU200: 0 | AV200: 0 | AW200: 0 | AX200: 0 | AY200: 0 | AZ200: 0 | BA200: 0 | BB200: 0 | BC200: 0 | BD200: 0 | BE200: 0 | BF200: 0 | BG200: 0 | BH200: 0 | BI200: 0 | BJ200: 0 | BK200: 0 | BL200: 0 | BM200: =BM$135*$A138 -> 0 | BN200: =BN$135*$A137 -> 0 | CA200: 0
A201: 0 | B201: 65 | C201: 0 | D201: 0 | E201: 0 | F201: 0 | G201: 0 | H201: 0 | I201: 0 | J201: 0 | K201: 0 | L201: 0 | M201: 0 | N201: 0 | O201: 0 | P201: 0 | Q201: 0 | R201: 0 | S201: 0 | T201: 0 | U201: 0 | V201: 0 | W201: 0 | X201: 0 | Y201: 0 | Z201: 0 | AA201: 0 | AB201: 0 | AC201: 0 | AD201: 0 | AE201: 0 | AF201: 0 | AG201: 0 | AH201: 0 | AI201: 0 | AJ201: 0 | AK201: 0 | AL201: 0 | AM201: 0 | AN201: 0 | AO201: 0 | AP201: 0 | AQ201: 0 | AR201: 0 | AS201: 0 | AT201: 0 | AU201: 0 | AV201: 0 | AW201: 0 | AX201: 0 | AY201: 0 | AZ201: 0 | BA201: 0 | BB201: 0 | BC201: 0 | BD201: 0 | BE201: 0 | BF201: 0 | BG201: 0 | BH201: 0 | BI201: 0 | BJ201: 0 | BK201: 0 | BL201: 0 | BM201: 0 | BN201: =BN$135*$A138 -> 0 | BO201: =BO$135*$A137 -> 0 | CA201: =SUM($C201:$BZ201) -> 0
A202: =IF($B$132=1,CC202,IF($B$132=2,CD202,IF($B$132=3,CE202,IF($B$132=4,CF202,#VALUE!)))) -> 0 | B202: =+B201+1 -> 66 | C202: =C$135*$A202 -> 0 | D202: 0 | E202: 0 | F202: 0 | G202: 0 | H202: 0 | I202: 0 | J202: 0 | K202: 0 | L202: 0 | M202: 0 | N202: 0 | O202: 0 | P202: 0 | Q202: 0 | R202: 0 | S202: 0 | T202: 0 | U202: 0 | V202: 0 | W202: 0 | X202: 0 | Y202: 0 | Z202: 0 | AA202: 0 | AB202: 0 | AC202: 0 | AD202: 0 | AE202: 0 | AF202: 0 | AG202: 0 | AH202: 0 | AI202: 0 | AJ202: 0 | AK202: 0 | AL202: 0 | AM202: 0 | AN202: 0 | AO202: 0 | AP202: 0 | AQ202: 0 | AR202: 0 | AS202: 0 | AT202: 0 | AU202: 0 | AV202: 0 | AW202: 0 | AX202: 0 | AY202: 0 | AZ202: 0 | BA202: 0 | BB202: 0 | BC202: 0 | BD202: 0 | BE202: 0 | BF202: 0 | BG202: 0 | BH202: 0 | BI202: 0 | BJ202: 0 | BK202: 0 | BL202: 0 | BM202: 0 | BN202: 0 | BO202: =BO$135*$A138 -> 0 | BP202: =BP$135*$A137 -> 0 | CA202: 0
A203: 0 | B203: 67 | C203: 0 | D203: =D$135*$A202 -> 0 | E203: 0 | F203: 0 | G203: 0 | H203: 0 | I203: 0 | J203: 0 | K203: 0 | L203: 0 | M203: 0 | N203: 0 | O203: 0 | P203: 0 | Q203: 0 | R203: 0 | S203: 0 | T203: 0 | U203: 0 | V203: 0 | W203: 0 | X203: 0 | Y203: 0 | Z203: 0 | AA203: 0 | AB203: 0 | AC203: 0 | AD203: 0 | AE203: 0 | AF203: 0 | AG203: 0 | AH203: 0 | AI203: 0 | AJ203: 0 | AK203: 0 | AL203: 0 | AM203: 0 | AN203: 0 | AO203: 0 | AP203: 0 | AQ203: 0 | AR203: 0 | AS203: 0 | AT203: 0 | AU203: 0 | AV203: 0 | AW203: 0 | AX203: 0 | AY203: 0 | AZ203: 0 | BA203: 0 | BB203: 0 | BC203: 0 | BD203: 0 | BE203: 0 | BF203: 0 | BG203: 0 | BH203: 0 | BI203: 0 | BJ203: 0 | BK203: 0 | BL203: 0 | BM203: 0 | BN203: 0 | BO203: 0 | BP203: =BP$135*$A138 -> 0 | BQ203: =BQ$135*$A137 -> 0 | CA203: 0
A204: 0 | B204: 68 | C204: 0 | D204: 0 | E204: =E$135*$A202 -> 0 | F204: 0 | G204: 0 | H204: 0 | I204: 0 | J204: 0 | K204: 0 | L204: 0 | M204: 0 | N204: 0 | O204: 0 | P204: 0 | Q204: 0 | R204: 0 | S204: 0 | T204: 0 | U204: 0 | V204: 0 | W204: 0 | X204: 0 | Y204: 0 | Z204: 0 | AA204: 0 | AB204: 0 | AC204: 0 | AD204: 0 | AE204: 0 | AF204: 0 | AG204: 0 | AH204: 0 | AI204: 0 | AJ204: 0 | AK204: 0 | AL204: 0 | AM204: 0 | AN204: 0 | AO204: 0 | AP204: 0 | AQ204: 0 | AR204: 0 | AS204: 0 | AT204: 0 | AU204: 0 | AV204: 0 | AW204: 0 | AX204: 0 | AY204: 0 | AZ204: 0 | BA204: 0 | BB204: 0 | BC204: 0 | BD204: 0 | BE204: 0 | BF204: 0 | BG204: 0 | BH204: 0 | BI204: 0 | BJ204: 0 | BK204: 0 | BL204: 0 | BM204: 0 | BN204: 0 | BO204: 0 | BP204: 0 | BQ204: =BQ$135*$A138 -> 0 | BR204: =BR$135*$A137 -> 0 | CA204: 0
A205: 0 | B205: 69 | C205: 0 | D205: 0 | E205: 0 | F205: =F$135*$A202 -> 0 | G205: 0 | H205: 0 | I205: 0 | J205: 0 | K205: 0 | L205: 0 | M205: 0 | N205: 0 | O205: 0 | P205: 0 | Q205: 0 | R205: 0 | S205: 0 | T205: 0 | U205: 0 | V205: 0 | W205: 0 | X205: 0 | Y205: 0 | Z205: 0 | AA205: 0 | AB205: 0 | AC205: 0 | AD205: 0 | AE205: 0 | AF205: 0 | AG205: 0 | AH205: 0 | AI205: 0 | AJ205: 0 | AK205: 0 | AL205: 0 | AM205: 0 | AN205: 0 | AO205: 0 | AP205: 0 | AQ205: 0 | AR205: 0 | AS205: 0 | AT205: 0 | AU205: 0 | AV205: 0 | AW205: 0 | AX205: 0 | AY205: 0 | AZ205: 0 | BA205: 0 | BB205: 0 | BC205: 0 | BD205: 0 | BE205: 0 | BF205: 0 | BG205: 0 | BH205: 0 | BI205: 0 | BJ205: 0 | BK205: 0 | BL205: 0 | BM205: 0 | BN205: 0 | BO205: 0 | BP205: 0 | BQ205: 0 | BR205: =BR$135*$A138 -> 0 | BS205: =BS$135*$A137 -> 0 | CA205: 0
... 177 more rows

Sheet Inflation
A3: 2022 | B3: 100
A4: 2023 | B4: 107.1911202
A5: 2024 | B5: 110.5912226
A6: 2025 | B6: 113.1926507
A7: 2026 | B7: 115.7206199
A8: 2027 | B8: 118.305047
A9: 2028 | B9: 120.9471931
A10: 2029 | B10: 123.6080313
A11: 2030 | B11: 126.327408
A12: 2031 | B12: 129.106611
A13: 2032 | B13: 131.9469564
A14: 2033 | B14: 134.8497895
A15: 2034 | B15: 137.8164849
A16: 2035 | B16: 140.8484475
A17: 2036 | B17: 143.9471134
A18: 2037 | B18: 147.1139499
A19: 2038 | B19: 150.3504568
A20: 2039 | B20: 153.6581668
A21: 2040 | B21: 157.0386465
A22: 2041 | B22: 160.4934967
A23: 2042 | B23: 164.0243536
A24: 2043 | B24: 167.6328894
A25: 2044 | B25: 171.320813
A26: 2045 | B26: 175.0898709
